{"text_format":"1","workbook":"xlsx","n_sheets":9,"sheets":["Prezenční listina","Startovní listina","Výsledková listina","Družstva","Běh Vírem","mezičasy","Výsledková listina (3)","Družstva (prac.)","Výsledková listina (2)"],"not_rendered":{"charts":0,"images":10,"macros":1,"external_links":0,"defined_names":12,"comments":0,"pivot_tables":0},"unopened":[],"bounds":{"document_bytes":16777216,"sheet_cells":100000,"rows_first":2000,"rows_last":500,"rows_between":2000,"halvings":0,"cell_chars":16384,"cell_head_chars":4096},"cells_cut":0,"cells_raw":0,"read":"whole","date_system":"1900"}

{"sheet":"Prezenční listina","index":0,"n_rows":152,"n_cols":19,"rows_kept":152,"cut":false,"hidden":false,"merged":[[5,10,5,12],[0,0,0,7]]}
[{"$f":"\"Prezenční listina - Malý svratecký maratón \"&O2","v":"Prezenční listina - Malý svratecký maratón 2019"}]
[null,"Příjmení","Jméno","Narození","Oddíl / Bydliště","Startovní číslo","Adresa (e-mail)","Kategorie",null,null,null,null,null,null,2019,null,null,null,"Pohlaví"]
[1,"Bělehrádek","Pavel",1958,"TJ Čolek (Velké Tresné)",31,null,{"$f":"IF(S3<>\"Ž\",IF($O$2-D3>39,IF($O$2-D3>49,IF($O$2-D3>59,IF($O$2-D3>69,IF($O$2-D3>90,\"\",\"E\"),\"D\"),\"C\"),\"B\"),\"A\"),IF(S3=\"Ž\",IF($O$2-D3>34,IF($O$2-D3>44,IF($O$2-D3>90,\"\",\"H\"),\"G\"),\"F\")))","v":"D"},null,null,null,null,null,null,null,null,null,null,{"$f":"IF(LEN(B3)=0,\" \",IF(MID(B3,LEN(B3),1)=\"á\",\"Ž\",\"M\"))","v":"M"}]
[{"$f":"IF(B4<>0,A3+1,\"\")","v":2},"Bracek","Petr",1979,"Kuřim",46,null,"B",null,null,null,null,null,null,null,null,null,null,"M"]
[{"$f":"IF(B5<>0,A4+1,\"\")","v":3},"Crha","Radek",1979,"NON AUTOS Radek CRHA (Vidonín)",69,null,"B",null,null,null,null,null,null,null,null,null,null,"M"]
[4,"Čapka","František",1968,"Minerva Boskovice",65,null,"C",null,null,"Rok nastavit v buňce O2",null,null,null,null,null,null,null,"M"]
[5,"Čuhel","Jiří",1958,"Křtěnov",50,null,"D",null,null,null,null,null,null,null,null,null,null,"M"]
[6,"Dušil","Jarda",1970,"Slaměnka (Brno)",67,null,"B",null,null,null,null,null,null,null,null,null,null,"M"]
[7,"Dvorský","Ladislav",1965,"MKS Ostrava",15,null,"C",null,null,null,null,null,null,null,null,null,null,"M"]
[8,"Dvořák","Petr",1986,"Brno",34,null,"A",null,null,null,null,null,null,null,null,null,null,"M"]
[9,"Eliáš","Lukáš",1979,"Ledová stěna Vír",5,null,"B",null,null,null,null,null,null,null,null,null,null,"M"]
[10,"Fikejs","Vladimír",1957,"3D Finess Race Team (Žamberk)",28,null,"D",null,null,null,null,null,null,null,null,null,null,"M"]
[11,"Fousek","Jan",1991,"MKS Ostrava",13,null,"A",null,null,null,null,null,null,null,null,null,null,"M"]
[12,"Glier","Michal",1982,"behejbrno.com",52,null,"A",null,null,null,null,null,null,null,null,null,null,"M"]
[13,"Glier","Miroslav",1949,"Ústí nad Labem",12,null,"E",null,null,null,null,null,null,null,null,null,null,"M"]
[14,"Hanák","Jakub",1986,"Plant Powered Runners (Vír)",null,null,"A",null,null,null,null,null,null,null,null,null,null,"M"]
[15,"Holý","Josef",1941,"AC Moravská Slavia Brno",23,null,"E",null,null,null,null,null,null,null,null,null,null,"M"]
[16,"Jakubec","Bohumil",1975,"Brno",null,null,"B",null,null,null,null,null,null,null,null,null,null,"M"]
[17,"Jílek","Jaroslav",1966,"Bystřice nad Pernštejnem",62,null,"C",null,null,null,null,null,null,null,null,null,null,"M"]
[18,"Konečný","Libor",1971,"Kuřim",70,null,"B",null,null,null,null,null,null,null,null,null,null,"M"]
[19,"Koudelka","Drahomír",1971,"Meixner Consulting (Pětihosty)",26,null,"B",null,null,null,null,null,null,null,null,null,null,"M"]
[20,"Kovačič","Sebastian",1978,"Bílovice nad Svitavou",49,null,"B",null,null,null,null,null,null,null,null,null,null,"M"]
[21,"Krátký","Josef",1965,"Hvězda Pardubice",35,null,"C",null,null,null,null,null,null,null,null,null,null,"M"]
[22,"Krátký","Pavel",1974,"TS Jan Kohut (Olomučany)",33,null,"B",null,null,null,null,null,null,null,null,null,null,"M"]
[23,"Kratochvíl","Jaroslav",1977,"SDH Hluboké",25,null,"B",null,null,null,null,null,null,null,null,null,null,"M"]
[24,"Kropáček","Jaroslav",1970,"Triatlon Křepice",45,null,"B",null,null,null,null,null,null,null,null,null,null,"M"]
[25,"Lorenčík","Aleš",1973,"Chrudim",57,null,"B",null,null,null,null,null,null,null,null,null,null,"M"]
[26,"Lorenzová","Dana",1968,"Nové Město na Moravě",null,null,"H",null,null,null,null,null,null,null,null,null,null,"Ž"]
[27,"Mareš","Bohumil",1951,"Posilovna Průvan Brno",37,null,"D",null,null,null,null,null,null,null,null,null,null,"M"]
[28,"Novotný","Jaroslav",1955,"TEP Trutnov",29,null,"D",null,null,null,null,null,null,null,null,null,null,"M"]
[29,"Novotný","Petr",1965,"AK Kuřim",null,null,"C",null,null,null,null,null,null,null,null,null,null,"M"]
[30,"Otta","Roman",1961,"Q Sport Vrchlabí",41,null,"C",null,null,null,null,null,null,null,null,null,null,"M"]
[31,"Petržílek","Zdeněk",1955,"KRB Chrudim",null,null,"D",null,null,null,null,null,null,null,null,null,null,"M"]
[32,"Psula","Roman",1984,"Ladermon Team (Olomouc)",2,null,"A",null,null,null,null,null,null,null,null,null,null,"M"]
[33,"Řezníček","Petr",1973,"Polnička",40,null,"B",null,null,null,null,null,null,null,null,null,null,{"$f":"IF(LEN(B35)=0,\" \",IF(MID(B35,LEN(B35),1)=\"á\",\"Ž\",\"M\"))","v":"M"}]
[34,"Sedláček","Svatopluk",1957,"AC Moravská Slavia Brno",68,null,"D",null,null,null,null,null,null,null,null,null,null,"M"]
[35,"Sotolář","Stanislav",1970,"Veselice",null,null,"B",null,null,null,null,null,null,null,null,null,null,"M"]
[36,"Svoboda","Petr",1968,"AC Moravská Slavia Brno",38,null,"C",null,null,null,null,null,null,null,null,null,null,"M"]
[37,"Šerák","Martin",1978,"Sokol Bílovice nad Svitavou",42,null,"B",null,null,null,null,null,null,null,null,null,null,"M"]
[38,"Timmermansá","Aniek",1985,"Autocamp Na Kopci",3,null,"F",null,null,null,null,null,null,null,null,null,null,"Ž"]
[39,"Tůma","Petr",1968,"Slatinští šneci (Slatina)",17,null,"C",null,null,null,null,null,null,null,null,null,null,"M"]
[40,"Viščor","Pavel",1974,"Brno",48,null,"B",null,null,null,null,null,null,null,null,null,null,"M"]
[41,"Vykoupil","Miloslav",1972,"Veverská Bitýška",56,null,"B",null,null,null,null,null,null,null,null,null,null,"M"]
[42,"Vytisk","Alfons",1949,"MKS Ostrava",14,null,"E",null,null,null,null,null,null,null,null,null,null,"M"]
[43,"Weis","Josef",1974,"Elite Sport Boskovice",51,null,"B",null,null,null,null,null,null,null,null,null,null,"M"]
[44,"Zejda","Ivo",1956,"AC Moravská Slavia Brno",22,null,"D",null,null,null,null,null,null,null,null,null,null,"M"]
[45,"Hanák","Martin",1993,"Ujčov",1,null,{"$f":"IF(S47<>\"Ž\",IF($O$2-D47>39,IF($O$2-D47>49,IF($O$2-D47>59,IF($O$2-D47>69,IF($O$2-D47>90,\"\",\"E\"),\"D\"),\"C\"),\"B\"),\"A\"),IF(S47=\"Ž\",IF($O$2-D47>34,IF($O$2-D47>44,IF($O$2-D47>90,\"\",\"H\"),\"G\"),\"F\")))","v":"A"},null,null,null,null,null,null,null,null,null,null,"M"]
[46,"Vintrlík","Martin",1977,"Triatlon Křepice",44,null,"B",null,null,null,null,null,null,null,null,null,null,"M"]
[47,"Komárková","Zdeňka",1974,"SDH Bolešín",4,null,"H",null,null,null,null,null,null,null,null,null,null,"Ž"]
[48,"Rychecký","Tomáš",1966,"HH Smíchov",6,null,"C",null,null,null,null,null,null,null,null,null,null,"M"]
[49,"Kalaš","Rudolf",1971,"Boskovice",7,null,"B",null,null,null,null,null,null,null,null,null,null,"M"]
[50,"Dostálová","Vendula",1981,"HALL 3000",8,null,"G",null,null,null,null,null,null,null,null,null,null,"Ž"]
[51,"Pivec","Jan",1981,"HALL 3000",9,null,"A",null,null,null,null,null,null,null,null,null,null,"M"]
[52,"Bečička","Petr",1960,"HALL 3000",10,null,"C",null,null,null,null,null,null,null,null,null,null,"M"]
[53,"Komblisá","Michaela",1981,"Izrael",11,null,"G",null,null,null,null,null,null,null,null,null,null,"Ž"]
[54,"Berák","Lukáš",1984,"Chotěvice",16,null,"A",null,null,null,null,null,null,null,null,null,null,"M"]
[55,"Bouček","Zdeněk",1956,"Velké Meziříčí",18,null,"D",null,null,null,null,null,null,null,null,null,null,"M"]
[56,"Ježová","Martina",1975,"Brno",20,null,"G",null,null,null,null,null,null,null,null,null,null,"Ž"]
[57,"Podsedník","Marek",1985,"Brno",21,null,"A",null,null,null,null,null,null,null,null,null,null,"M"]
[58,"Koutník","Lumír",1967,"A.O. Spartak Vrchlabí",24,null,"C",null,null,null,null,null,null,null,null,null,null,"M"]
[59,"Kubík","Jaromír",1955,"Blansko",27,null,"D",null,null,null,null,null,null,null,null,null,null,"M"]
[60,"Příhoda","Jan",1983,"Brno",30,null,"A",null,null,null,null,null,null,null,null,null,null,"M"]
[61,"Brázda","Richard",1975,"Český běžecký klub, Brno",32,null,"B",null,null,null,null,null,null,null,null,null,null,"M"]
[62,"Dvořáček","Jiří",1968,"Petrovice",36,null,"C",null,null,null,null,null,null,null,null,null,null,"M"]
[63,"Faja","Ondřej",1976,"Brno",39,null,"B",null,null,null,null,null,null,null,null,null,null,"M"]
[64,"Exner","Jakub",1983,"Swoboda-pteam",43,null,"A",null,null,null,null,null,null,null,null,null,null,"M"]
[65,"Plachý","Martin",1965,"MK Prostějov",47,null,{"$f":"IF(S67<>\"Ž\",IF($O$2-D67>39,IF($O$2-D67>49,IF($O$2-D67>59,IF($O$2-D67>69,IF($O$2-D67>90,\"\",\"E\"),\"D\"),\"C\"),\"B\"),\"A\"),IF(S67=\"Ž\",IF($O$2-D67>34,IF($O$2-D67>44,IF($O$2-D67>90,\"\",\"H\"),\"G\"),\"F\")))","v":"C"},null,null,null,null,null,null,null,null,null,null,{"$f":"IF(LEN(B67)=0,\" \",IF(MID(B67,LEN(B67),1)=\"á\",\"Ž\",\"M\"))","v":"M"}]
[66,"Orálek","Daniel",1970,"behejbrno.com",53,null,"B",null,null,null,null,null,null,null,null,null,null,"M"]
[{"$f":"IF(B69<>0,A68+1,\"\")","v":67},"Sajdl","Ondřej",1978,"Brno",54,null,"B",null,null,null,null,null,null,null,null,null,null,"M"]
[68,"Šůstek","Roman",1968,"Brno",55,null,"C",null,null,null,null,null,null,null,null,null,null,"M"]
[69,"Jurgová","Martina",1979,"Brno",58,null,"G",null,null,null,null,null,null,null,null,null,null,"Ž"]
[70,"Havlíček","Ivo",1966,"Lánov Krkonoše",59,null,"C",null,null,null,null,null,null,null,null,null,null,"M"]
[71,"Zedník","Petr",1982,"Dalečín",60,null,"A",null,null,null,null,null,null,null,null,null,null,"M"]
[72,"Munzarová","Věra",1980,"Dalečín",61,null,"G",null,null,null,null,null,null,null,null,null,null,"Ž"]
[73,"Boháč","Jiří",1954,"behejbrno.com",63,null,"D",null,null,null,null,null,null,null,null,null,null,"M"]
[74,"Bezchleba","Petr",1978,"SK TRI CYKLOCHLUBNA",64,null,"B",null,null,null,null,null,null,null,null,null,null,"M"]
[75,"Prokop","Ondřej",1962,"ČAU, Brno",66,null,"C",null,null,null,null,null,null,null,null,null,null,"M"]
["",null,null,null,null,null,null,"",null,null,null,null,null,null,null,null,null,null," "]
["",null,null,null,null,null,null,"",null,null,null,null,null,null,null,null,null,null," "]
["",null,null,null,null,null,null,"",null,null,null,null,null,null,null,null,null,null," "]
["",null,null,null,null,null,null,"",null,null,null,null,null,null,null,null,null,null," "]
["",null,null,null,null,null,null,"",null,null,null,null,null,null,null,null,null,null," "]
["",null,null,null,null,null,null,"",null,null,null,null,null,null,null,null,null,null," "]
["",null,null,null,null,null,null,"",null,null,null,null,null,null,null,null,null,null," "]
["",null,null,null,null,null,null,"",null,null,null,null,null,null,null,null,null,null," "]
["",null,null,null,null,null,null,"",null,null,null,null,null,null,null,null,null,null," "]
["",null,null,null,null,null,null,"",null,null,null,null,null,null,null,null,null,null," "]
["",null,null,null,null,null,null,"",null,null,null,null,null,null,null,null,null,null," "]
["",null,null,null,null,null,null,"",null,null,null,null,null,null,null,null,null,null," "]
["",null,null,null,null,null,null,"",null,null,null,null,null,null,null,null,null,null," "]
["",null,null,null,null,null,null,"",null,null,null,null,null,null,null,null,null,null," "]
["",null,null,null,null,null,null,"",null,null,null,null,null,null,null,null,null,null," "]
["",null,null,null,null,null,null,"",null,null,null,null,null,null,null,null,null,null," "]
["",null,null,null,null,null,null,"",null,null,null,null,null,null,null,null,null,null," "]
["",null,null,null,null,null,null,"",null,null,null,null,null,null,null,null,null,null," "]
["",null,null,null,null,null,null,"",null,null,null,null,null,null,null,null,null,null," "]
["",null,null,null,null,null,null,"",null,null,null,null,null,null,null,null,null,null," "]
["",null,null,null,null,null,null,"",null,null,null,null,null,null,null,null,null,null," "]
["",null,null,null,null,null,null,"",null,null,null,null,null,null,null,null,null,null,{"$f":"IF(LEN(B99)=0,\" \",IF(MID(B99,LEN(B99),1)=\"á\",\"Ž\",\"M\"))","v":" "}]
["",null,null,null,null,null,null,"",null,null,null,null,null,null,null,null,null,null," "]
["",null,null,null,null,null,null,"",null,null,null,null,null,null,null,null,null,null," "]
["",null,null,null,null,null,null,"",null,null,null,null,null,null,null,null,null,null," "]
["",null,null,null,null,null,null,"",null,null,null,null,null,null,null,null,null,null," "]
["",null,null,null,null,null,null,"",null,null,null,null,null,null,null,null,null,null," "]
["",null,null,null,null,null,null,"",null,null,null,null,null,null,null,null,null,null," "]
["",null,null,null,null,null,null,"",null,null,null,null,null,null,null,null,null,null," "]
["",null,null,null,null,null,null,"",null,null,null,null,null,null,null,null,null,null," "]
["",null,null,null,null,null,null,"",null,null,null,null,null,null,null,null,null,null," "]
["",null,null,null,null,null,null,"",null,null,null,null,null,null,null,null,null,null," "]
["",null,null,null,null,null,null,"",null,null,null,null,null,null,null,null,null,null," "]
["",null,null,null,null,null,null,"",null,null,null,null,null,null,null,null,null,null," "]
["",null,null,null,null,null,null,"",null,null,null,null,null,null,null,null,null,null," "]
["",null,null,null,null,null,null,"",null,null,null,null,null,null,null,null,null,null," "]
["",null,null,null,null,null,null,"",null,null,null,null,null,null,null,null,null,null," "]
["",null,null,null,null,null,null,"",null,null,null,null,null,null,null,null,null,null," "]
["",null,null,null,null,null,null,"",null,null,null,null,null,null,null,null,null,null," "]
["",null,null,null,null,null,null,"",null,null,null,null,null,null,null,null,null,null," "]
["",null,null,null,null,null,null,"",null,null,null,null,null,null,null,null,null,null," "]
["",null,null,null,null,null,null,"",null,null,null,null,null,null,null,null,null,null," "]
["",null,null,null,null,null,null,"",null,null,null,null,null,null,null,null,null,null," "]
["",null,null,null,null,null,null,"",null,null,null,null,null,null,null,null,null,null," "]
["",null,null,null,null,null,null,"",null,null,null,null,null,null,null,null,null,null," "]
["",null,null,null,null,null,null,"",null,null,null,null,null,null,null,null,null,null," "]
["",null,null,null,null,null,null,"",null,null,null,null,null,null,null,null,null,null," "]
["",null,null,null,null,null,null,"",null,null,null,null,null,null,null,null,null,null," "]
["",null,null,null,null,null,null,"",null,null,null,null,null,null,null,null,null,null," "]
["",null,null,null,null,null,null,"",null,null,null,null,null,null,null,null,null,null," "]
["",null,null,null,null,null,null,"",null,null,null,null,null,null,null,null,null,null," "]
["",null,null,null,null,null,null,"",null,null,null,null,null,null,null,null,null,null," "]
["",null,null,null,null,null,null,"",null,null,null,null,null,null,null,null,null,null," "]
["",null,null,null,null,null,null,{"$f":"IF(S131<>\"Ž\",IF($O$2-D131>39,IF($O$2-D131>49,IF($O$2-D131>59,IF($O$2-D131>69,IF($O$2-D131>90,\"\",\"E\"),\"D\"),\"C\"),\"B\"),\"A\"),IF(S131=\"Ž\",IF($O$2-D131>34,IF($O$2-D131>44,IF($O$2-D131>90,\"\",\"H\"),\"G\"),\"F\")))","v":""},null,null,null,null,null,null,null,null,null,null,{"$f":"IF(LEN(B131)=0,\" \",IF(MID(B131,LEN(B131),1)=\"á\",\"Ž\",\"M\"))","v":" "}]
["",null,null,null,null,null,null,"",null,null,null,null,null,null,null,null,null,null," "]
[{"$f":"IF(B133<>0,A132+1,\"\")","v":""},null,null,null,null,null,null,"",null,null,null,null,null,null,null,null,null,null," "]
["",null,null,null,null,null,null,"",null,null,null,null,null,null,null,null,null,null," "]
["",null,null,null,null,null,null,"",null,null,null,null,null,null,null,null,null,null," "]
["",null,null,null,null,null,null,"",null,null,null,null,null,null,null,null,null,null," "]
["",null,null,null,null,null,null,"",null,null,null,null,null,null,null,null,null,null," "]
["",null,null,null,null,null,null,"",null,null,null,null,null,null,null,null,null,null," "]
["",null,null,null,null,null,null,"",null,null,null,null,null,null,null,null,null,null," "]
["",null,null,null,null,null,null,"",null,null,null,null,null,null,null,null,null,null," "]
["",null,null,null,null,null,null,"",null,null,null,null,null,null,null,null,null,null," "]
["",null,null,null,null,null,null,"",null,null,null,null,null,null,null,null,null,null," "]
["",null,null,null,null,null,null,"",null,null,null,null,null,null,null,null,null,null," "]
["",null,null,null,null,null,null,"",null,null,null,null,null,null,null,null,null,null," "]
["",null,null,null,null,null,null,"",null,null,null,null,null,null,null,null,null,null," "]
["",null,null,null,null,null,null,"",null,null,null,null,null,null,null,null,null,null," "]
["",null,null,null,null,null,null,"",null,null,null,null,null,null,null,null,null,null," "]
["",null,null,null,null,null,null,"",null,null,null,null,null,null,null,null,null,null," "]
["",null,null,null,null,null,null,"",null,null,null,null,null,null,null,null,null,null," "]
["",null,null,null,null,null,null,"",null,null,null,null,null,null,null,null,null,null," "]
["",null,null,null,null,null,null,"",null,null,null,null,null,null,null,null,null,null," "]
["",null,null,null,null,null,null,"",null,null,null,null,null,null,null,null,null,null," "]

{"sheet":"Startovní listina","index":1,"n_rows":141,"n_cols":12,"rows_kept":141,"cut":false,"hidden":false,"merged":[[4,11,11,11],[0,0,0,6],[2,0,2,6],[1,0,1,6],[1,8,2,9]]}
[{"$f":"\"Startovní listina - Malý svratecký maraton \"&'Prezenční listina'!O2","v":"Startovní listina - Malý svratecký maraton 2019"}]
["2019-08-24",null,null,null,null,null,null,null,"Počet přihlášených v jednotlivých kategoriích"]
[{"$f":"'Prezenční listina'!O2-1953&\". ročník\"","v":"66. ročník"},null,null,null,null,null,null,null,null,null,null,"Celkem startujících"]
[null,"Startovní číslo","Příjmení","Jméno","Narození","Oddíl / Bydliště","Kategorie"]
[1,{"$f":"IF('Prezenční listina'!F47=0,\"\",'Prezenční listina'!F47)","v":1},{"$f":"IF('Prezenční listina'!F47=0,\"\",'Prezenční listina'!B47)","v":"Hanák"},{"$f":"IF('Prezenční listina'!F47=0,\"\",'Prezenční listina'!C47)","v":"Martin"},{"$f":"IF('Prezenční listina'!F47=0,\"\",'Prezenční listina'!D47)","v":1993},{"$f":"IF('Prezenční listina'!F47=0,\"\",'Prezenční listina'!E47)","v":"Ujčov"},{"$f":"IF('Prezenční listina'!F47=0,\"\",'Prezenční listina'!H47)","v":"A"},null,"A:",{"$f":"COUNTIF($G$5:$G$141,\"A\")","v":11},null,{"$f":"COUNT(B5:B141)","v":69}]
[{"$f":"IF(C6=\"\",\"\",A5+1)","v":2},{"$f":"IF('Prezenční listina'!F34=0,\"\",'Prezenční listina'!F34)","v":2},{"$f":"IF('Prezenční listina'!F34=0,\"\",'Prezenční listina'!B34)","v":"Psula"},{"$f":"IF('Prezenční listina'!F34=0,\"\",'Prezenční listina'!C34)","v":"Roman"},{"$f":"IF('Prezenční listina'!F34=0,\"\",'Prezenční listina'!D34)","v":1984},{"$f":"IF('Prezenční listina'!F34=0,\"\",'Prezenční listina'!E34)","v":"Ladermon Team (Olomouc)"},{"$f":"IF('Prezenční listina'!F34=0,\"\",'Prezenční listina'!H34)","v":"A"},null,"B:",{"$f":"COUNTIF($G$5:$G$141,\"B\")","v":23}]
[3,{"$f":"IF('Prezenční listina'!F40=0,\"\",'Prezenční listina'!F40)","v":3},{"$f":"IF('Prezenční listina'!F40=0,\"\",'Prezenční listina'!B40)","v":"Timmermansá"},{"$f":"IF('Prezenční listina'!F40=0,\"\",'Prezenční listina'!C40)","v":"Aniek"},{"$f":"IF('Prezenční listina'!F40=0,\"\",'Prezenční listina'!D40)","v":1985},{"$f":"IF('Prezenční listina'!F40=0,\"\",'Prezenční listina'!E40)","v":"Autocamp Na Kopci"},{"$f":"IF('Prezenční listina'!F40=0,\"\",'Prezenční listina'!H40)","v":"F"},null,"C:",{"$f":"COUNTIF($G$5:$G$141,\"C\")","v":15}]
[4,{"$f":"IF('Prezenční listina'!F49=0,\"\",'Prezenční listina'!F49)","v":4},{"$f":"IF('Prezenční listina'!F49=0,\"\",'Prezenční listina'!B49)","v":"Komárková"},{"$f":"IF('Prezenční listina'!F49=0,\"\",'Prezenční listina'!C49)","v":"Zdeňka"},{"$f":"IF('Prezenční listina'!F49=0,\"\",'Prezenční listina'!D49)","v":1974},{"$f":"IF('Prezenční listina'!F49=0,\"\",'Prezenční listina'!E49)","v":"SDH Bolešín"},{"$f":"IF('Prezenční listina'!F49=0,\"\",'Prezenční listina'!H49)","v":"H"},null,"D:",{"$f":"COUNTIF($G$5:$G$141,\"D\")","v":10}]
[5,{"$f":"IF('Prezenční listina'!F11=0,\"\",'Prezenční listina'!F11)","v":5},{"$f":"IF('Prezenční listina'!F11=0,\"\",'Prezenční listina'!B11)","v":"Eliáš"},{"$f":"IF('Prezenční listina'!F11=0,\"\",'Prezenční listina'!C11)","v":"Lukáš"},{"$f":"IF('Prezenční listina'!F11=0,\"\",'Prezenční listina'!D11)","v":1979},{"$f":"IF('Prezenční listina'!F11=0,\"\",'Prezenční listina'!E11)","v":"Ledová stěna Vír"},{"$f":"IF('Prezenční listina'!F11=0,\"\",'Prezenční listina'!H11)","v":"B"},null,"E:",{"$f":"COUNTIF($G$5:$G$141,\"E\")","v":3}]
[6,{"$f":"IF('Prezenční listina'!F50=0,\"\",'Prezenční listina'!F50)","v":6},{"$f":"IF('Prezenční listina'!F50=0,\"\",'Prezenční listina'!B50)","v":"Rychecký"},{"$f":"IF('Prezenční listina'!F50=0,\"\",'Prezenční listina'!C50)","v":"Tomáš"},{"$f":"IF('Prezenční listina'!F50=0,\"\",'Prezenční listina'!D50)","v":1966},{"$f":"IF('Prezenční listina'!F50=0,\"\",'Prezenční listina'!E50)","v":"HH Smíchov"},{"$f":"IF('Prezenční listina'!F50=0,\"\",'Prezenční listina'!H50)","v":"C"},null,"F:",{"$f":"COUNTIF($G$5:$G$141,\"F\")","v":1}]
[7,{"$f":"IF('Prezenční listina'!F51=0,\"\",'Prezenční listina'!F51)","v":7},{"$f":"IF('Prezenční listina'!F51=0,\"\",'Prezenční listina'!B51)","v":"Kalaš"},{"$f":"IF('Prezenční listina'!F51=0,\"\",'Prezenční listina'!C51)","v":"Rudolf"},{"$f":"IF('Prezenční listina'!F51=0,\"\",'Prezenční listina'!D51)","v":1971},{"$f":"IF('Prezenční listina'!F51=0,\"\",'Prezenční listina'!E51)","v":"Boskovice"},{"$f":"IF('Prezenční listina'!F51=0,\"\",'Prezenční listina'!H51)","v":"B"},null,"G:",{"$f":"COUNTIF($G$5:$G$141,\"G\")","v":5}]
[8,{"$f":"IF('Prezenční listina'!F52=0,\"\",'Prezenční listina'!F52)","v":8},{"$f":"IF('Prezenční listina'!F52=0,\"\",'Prezenční listina'!B52)","v":"Dostálová"},{"$f":"IF('Prezenční listina'!F52=0,\"\",'Prezenční listina'!C52)","v":"Vendula"},{"$f":"IF('Prezenční listina'!F52=0,\"\",'Prezenční listina'!D52)","v":1981},{"$f":"IF('Prezenční listina'!F52=0,\"\",'Prezenční listina'!E52)","v":"HALL 3000"},{"$f":"IF('Prezenční listina'!F52=0,\"\",'Prezenční listina'!H52)","v":"G"},null,"H:",{"$f":"COUNTIF($G$5:$G$141,\"H\")","v":1}]
[9,{"$f":"IF('Prezenční listina'!F53=0,\"\",'Prezenční listina'!F53)","v":9},{"$f":"IF('Prezenční listina'!F53=0,\"\",'Prezenční listina'!B53)","v":"Pivec"},{"$f":"IF('Prezenční listina'!F53=0,\"\",'Prezenční listina'!C53)","v":"Jan"},{"$f":"IF('Prezenční listina'!F53=0,\"\",'Prezenční listina'!D53)","v":1981},{"$f":"IF('Prezenční listina'!F53=0,\"\",'Prezenční listina'!E53)","v":"HALL 3000"},{"$f":"IF('Prezenční listina'!F53=0,\"\",'Prezenční listina'!H53)","v":"A"}]
[10,{"$f":"IF('Prezenční listina'!F54=0,\"\",'Prezenční listina'!F54)","v":10},{"$f":"IF('Prezenční listina'!F54=0,\"\",'Prezenční listina'!B54)","v":"Bečička"},{"$f":"IF('Prezenční listina'!F54=0,\"\",'Prezenční listina'!C54)","v":"Petr"},{"$f":"IF('Prezenční listina'!F54=0,\"\",'Prezenční listina'!D54)","v":1960},{"$f":"IF('Prezenční listina'!F54=0,\"\",'Prezenční listina'!E54)","v":"HALL 3000"},{"$f":"IF('Prezenční listina'!F54=0,\"\",'Prezenční listina'!H54)","v":"C"}]
[11,{"$f":"IF('Prezenční listina'!F55=0,\"\",'Prezenční listina'!F55)","v":11},{"$f":"IF('Prezenční listina'!F55=0,\"\",'Prezenční listina'!B55)","v":"Komblisá"},{"$f":"IF('Prezenční listina'!F55=0,\"\",'Prezenční listina'!C55)","v":"Michaela"},{"$f":"IF('Prezenční listina'!F55=0,\"\",'Prezenční listina'!D55)","v":1981},{"$f":"IF('Prezenční listina'!F55=0,\"\",'Prezenční listina'!E55)","v":"Izrael"},{"$f":"IF('Prezenční listina'!F55=0,\"\",'Prezenční listina'!H55)","v":"G"}]
[12,{"$f":"IF('Prezenční listina'!F15=0,\"\",'Prezenční listina'!F15)","v":12},{"$f":"IF('Prezenční listina'!F15=0,\"\",'Prezenční listina'!B15)","v":"Glier"},{"$f":"IF('Prezenční listina'!F15=0,\"\",'Prezenční listina'!C15)","v":"Miroslav"},{"$f":"IF('Prezenční listina'!F15=0,\"\",'Prezenční listina'!D15)","v":1949},{"$f":"IF('Prezenční listina'!F15=0,\"\",'Prezenční listina'!E15)","v":"Ústí nad Labem"},{"$f":"IF('Prezenční listina'!F15=0,\"\",'Prezenční listina'!H15)","v":"E"}]
[13,{"$f":"IF('Prezenční listina'!F13=0,\"\",'Prezenční listina'!F13)","v":13},{"$f":"IF('Prezenční listina'!F13=0,\"\",'Prezenční listina'!B13)","v":"Fousek"},{"$f":"IF('Prezenční listina'!F13=0,\"\",'Prezenční listina'!C13)","v":"Jan"},{"$f":"IF('Prezenční listina'!F13=0,\"\",'Prezenční listina'!D13)","v":1991},{"$f":"IF('Prezenční listina'!F13=0,\"\",'Prezenční listina'!E13)","v":"MKS Ostrava"},{"$f":"IF('Prezenční listina'!F13=0,\"\",'Prezenční listina'!H13)","v":"A"}]
[14,{"$f":"IF('Prezenční listina'!F44=0,\"\",'Prezenční listina'!F44)","v":14},{"$f":"IF('Prezenční listina'!F44=0,\"\",'Prezenční listina'!B44)","v":"Vytisk"},{"$f":"IF('Prezenční listina'!F44=0,\"\",'Prezenční listina'!C44)","v":"Alfons"},{"$f":"IF('Prezenční listina'!F44=0,\"\",'Prezenční listina'!D44)","v":1949},{"$f":"IF('Prezenční listina'!F44=0,\"\",'Prezenční listina'!E44)","v":"MKS Ostrava"},{"$f":"IF('Prezenční listina'!F44=0,\"\",'Prezenční listina'!H44)","v":"E"}]
[15,{"$f":"IF('Prezenční listina'!F9=0,\"\",'Prezenční listina'!F9)","v":15},{"$f":"IF('Prezenční listina'!F9=0,\"\",'Prezenční listina'!B9)","v":"Dvorský"},{"$f":"IF('Prezenční listina'!F9=0,\"\",'Prezenční listina'!C9)","v":"Ladislav"},{"$f":"IF('Prezenční listina'!F9=0,\"\",'Prezenční listina'!D9)","v":1965},{"$f":"IF('Prezenční listina'!F9=0,\"\",'Prezenční listina'!E9)","v":"MKS Ostrava"},{"$f":"IF('Prezenční listina'!F9=0,\"\",'Prezenční listina'!H9)","v":"C"}]
[16,{"$f":"IF('Prezenční listina'!F56=0,\"\",'Prezenční listina'!F56)","v":16},{"$f":"IF('Prezenční listina'!F56=0,\"\",'Prezenční listina'!B56)","v":"Berák"},{"$f":"IF('Prezenční listina'!F56=0,\"\",'Prezenční listina'!C56)","v":"Lukáš"},{"$f":"IF('Prezenční listina'!F56=0,\"\",'Prezenční listina'!D56)","v":1984},{"$f":"IF('Prezenční listina'!F56=0,\"\",'Prezenční listina'!E56)","v":"Chotěvice"},{"$f":"IF('Prezenční listina'!F56=0,\"\",'Prezenční listina'!H56)","v":"A"}]
[17,{"$f":"IF('Prezenční listina'!F41=0,\"\",'Prezenční listina'!F41)","v":17},{"$f":"IF('Prezenční listina'!F41=0,\"\",'Prezenční listina'!B41)","v":"Tůma"},{"$f":"IF('Prezenční listina'!F41=0,\"\",'Prezenční listina'!C41)","v":"Petr"},{"$f":"IF('Prezenční listina'!F41=0,\"\",'Prezenční listina'!D41)","v":1968},{"$f":"IF('Prezenční listina'!F41=0,\"\",'Prezenční listina'!E41)","v":"Slatinští šneci (Slatina)"},{"$f":"IF('Prezenční listina'!F41=0,\"\",'Prezenční listina'!H41)","v":"C"}]
[18,{"$f":"IF('Prezenční listina'!F57=0,\"\",'Prezenční listina'!F57)","v":18},{"$f":"IF('Prezenční listina'!F57=0,\"\",'Prezenční listina'!B57)","v":"Bouček"},{"$f":"IF('Prezenční listina'!F57=0,\"\",'Prezenční listina'!C57)","v":"Zdeněk"},{"$f":"IF('Prezenční listina'!F57=0,\"\",'Prezenční listina'!D57)","v":1956},{"$f":"IF('Prezenční listina'!F57=0,\"\",'Prezenční listina'!E57)","v":"Velké Meziříčí"},{"$f":"IF('Prezenční listina'!F57=0,\"\",'Prezenční listina'!H57)","v":"D"}]
[19,{"$f":"IF('Prezenční listina'!F58=0,\"\",'Prezenční listina'!F58)","v":20},{"$f":"IF('Prezenční listina'!F58=0,\"\",'Prezenční listina'!B58)","v":"Ježová"},{"$f":"IF('Prezenční listina'!F58=0,\"\",'Prezenční listina'!C58)","v":"Martina"},{"$f":"IF('Prezenční listina'!F58=0,\"\",'Prezenční listina'!D58)","v":1975},{"$f":"IF('Prezenční listina'!F58=0,\"\",'Prezenční listina'!E58)","v":"Brno"},{"$f":"IF('Prezenční listina'!F58=0,\"\",'Prezenční listina'!H58)","v":"G"}]
[20,{"$f":"IF('Prezenční listina'!F59=0,\"\",'Prezenční listina'!F59)","v":21},{"$f":"IF('Prezenční listina'!F59=0,\"\",'Prezenční listina'!B59)","v":"Podsedník"},{"$f":"IF('Prezenční listina'!F59=0,\"\",'Prezenční listina'!C59)","v":"Marek"},{"$f":"IF('Prezenční listina'!F59=0,\"\",'Prezenční listina'!D59)","v":1985},{"$f":"IF('Prezenční listina'!F59=0,\"\",'Prezenční listina'!E59)","v":"Brno"},{"$f":"IF('Prezenční listina'!F59=0,\"\",'Prezenční listina'!H59)","v":"A"}]
[21,{"$f":"IF('Prezenční listina'!F46=0,\"\",'Prezenční listina'!F46)","v":22},{"$f":"IF('Prezenční listina'!F46=0,\"\",'Prezenční listina'!B46)","v":"Zejda"},{"$f":"IF('Prezenční listina'!F46=0,\"\",'Prezenční listina'!C46)","v":"Ivo"},{"$f":"IF('Prezenční listina'!F46=0,\"\",'Prezenční listina'!D46)","v":1956},{"$f":"IF('Prezenční listina'!F46=0,\"\",'Prezenční listina'!E46)","v":"AC Moravská Slavia Brno"},{"$f":"IF('Prezenční listina'!F46=0,\"\",'Prezenční listina'!H46)","v":"D"}]
[22,{"$f":"IF('Prezenční listina'!F17=0,\"\",'Prezenční listina'!F17)","v":23},{"$f":"IF('Prezenční listina'!F17=0,\"\",'Prezenční listina'!B17)","v":"Holý"},{"$f":"IF('Prezenční listina'!F17=0,\"\",'Prezenční listina'!C17)","v":"Josef"},{"$f":"IF('Prezenční listina'!F17=0,\"\",'Prezenční listina'!D17)","v":1941},{"$f":"IF('Prezenční listina'!F17=0,\"\",'Prezenční listina'!E17)","v":"AC Moravská Slavia Brno"},{"$f":"IF('Prezenční listina'!F17=0,\"\",'Prezenční listina'!H17)","v":"E"}]
[23,{"$f":"IF('Prezenční listina'!F60=0,\"\",'Prezenční listina'!F60)","v":24},{"$f":"IF('Prezenční listina'!F60=0,\"\",'Prezenční listina'!B60)","v":"Koutník"},{"$f":"IF('Prezenční listina'!F60=0,\"\",'Prezenční listina'!C60)","v":"Lumír"},{"$f":"IF('Prezenční listina'!F60=0,\"\",'Prezenční listina'!D60)","v":1967},{"$f":"IF('Prezenční listina'!F60=0,\"\",'Prezenční listina'!E60)","v":"A.O. Spartak Vrchlabí"},{"$f":"IF('Prezenční listina'!F60=0,\"\",'Prezenční listina'!H60)","v":"C"}]
[24,{"$f":"IF('Prezenční listina'!F25=0,\"\",'Prezenční listina'!F25)","v":25},{"$f":"IF('Prezenční listina'!F25=0,\"\",'Prezenční listina'!B25)","v":"Kratochvíl"},{"$f":"IF('Prezenční listina'!F25=0,\"\",'Prezenční listina'!C25)","v":"Jaroslav"},{"$f":"IF('Prezenční listina'!F25=0,\"\",'Prezenční listina'!D25)","v":1977},{"$f":"IF('Prezenční listina'!F25=0,\"\",'Prezenční listina'!E25)","v":"SDH Hluboké"},{"$f":"IF('Prezenční listina'!F25=0,\"\",'Prezenční listina'!H25)","v":"B"}]
[25,{"$f":"IF('Prezenční listina'!F21=0,\"\",'Prezenční listina'!F21)","v":26},{"$f":"IF('Prezenční listina'!F21=0,\"\",'Prezenční listina'!B21)","v":"Koudelka"},{"$f":"IF('Prezenční listina'!F21=0,\"\",'Prezenční listina'!C21)","v":"Drahomír"},{"$f":"IF('Prezenční listina'!F21=0,\"\",'Prezenční listina'!D21)","v":1971},{"$f":"IF('Prezenční listina'!F21=0,\"\",'Prezenční listina'!E21)","v":"Meixner Consulting (Pětihosty)"},{"$f":"IF('Prezenční listina'!F21=0,\"\",'Prezenční listina'!H21)","v":"B"}]
[26,{"$f":"IF('Prezenční listina'!F61=0,\"\",'Prezenční listina'!F61)","v":27},{"$f":"IF('Prezenční listina'!F61=0,\"\",'Prezenční listina'!B61)","v":"Kubík"},{"$f":"IF('Prezenční listina'!F61=0,\"\",'Prezenční listina'!C61)","v":"Jaromír"},{"$f":"IF('Prezenční listina'!F61=0,\"\",'Prezenční listina'!D61)","v":1955},{"$f":"IF('Prezenční listina'!F61=0,\"\",'Prezenční listina'!E61)","v":"Blansko"},{"$f":"IF('Prezenční listina'!F61=0,\"\",'Prezenční listina'!H61)","v":"D"}]
[27,{"$f":"IF('Prezenční listina'!F12=0,\"\",'Prezenční listina'!F12)","v":28},{"$f":"IF('Prezenční listina'!F12=0,\"\",'Prezenční listina'!B12)","v":"Fikejs"},{"$f":"IF('Prezenční listina'!F12=0,\"\",'Prezenční listina'!C12)","v":"Vladimír"},{"$f":"IF('Prezenční listina'!F12=0,\"\",'Prezenční listina'!D12)","v":1957},{"$f":"IF('Prezenční listina'!F12=0,\"\",'Prezenční listina'!E12)","v":"3D Finess Race Team (Žamberk)"},{"$f":"IF('Prezenční listina'!F12=0,\"\",'Prezenční listina'!H12)","v":"D"}]
[28,{"$f":"IF('Prezenční listina'!F30=0,\"\",'Prezenční listina'!F30)","v":29},{"$f":"IF('Prezenční listina'!F30=0,\"\",'Prezenční listina'!B30)","v":"Novotný"},{"$f":"IF('Prezenční listina'!F30=0,\"\",'Prezenční listina'!C30)","v":"Jaroslav"},{"$f":"IF('Prezenční listina'!F30=0,\"\",'Prezenční listina'!D30)","v":1955},{"$f":"IF('Prezenční listina'!F30=0,\"\",'Prezenční listina'!E30)","v":"TEP Trutnov"},{"$f":"IF('Prezenční listina'!F30=0,\"\",'Prezenční listina'!H30)","v":"D"}]
[29,{"$f":"IF('Prezenční listina'!F62=0,\"\",'Prezenční listina'!F62)","v":30},{"$f":"IF('Prezenční listina'!F62=0,\"\",'Prezenční listina'!B62)","v":"Příhoda"},{"$f":"IF('Prezenční listina'!F62=0,\"\",'Prezenční listina'!C62)","v":"Jan"},{"$f":"IF('Prezenční listina'!F62=0,\"\",'Prezenční listina'!D62)","v":1983},{"$f":"IF('Prezenční listina'!F62=0,\"\",'Prezenční listina'!E62)","v":"Brno"},{"$f":"IF('Prezenční listina'!F62=0,\"\",'Prezenční listina'!H62)","v":"A"}]
[30,{"$f":"IF('Prezenční listina'!F3=0,\"\",'Prezenční listina'!F3)","v":31},{"$f":"IF('Prezenční listina'!F3=0,\"\",'Prezenční listina'!B3)","v":"Bělehrádek"},{"$f":"IF('Prezenční listina'!F3=0,\"\",'Prezenční listina'!C3)","v":"Pavel"},{"$f":"IF('Prezenční listina'!F3=0,\"\",'Prezenční listina'!D3)","v":1958},{"$f":"IF('Prezenční listina'!F3=0,\"\",'Prezenční listina'!E3)","v":"TJ Čolek (Velké Tresné)"},{"$f":"IF('Prezenční listina'!F3=0,\"\",'Prezenční listina'!H3)","v":"D"}]
[31,{"$f":"IF('Prezenční listina'!F63=0,\"\",'Prezenční listina'!F63)","v":32},{"$f":"IF('Prezenční listina'!F63=0,\"\",'Prezenční listina'!B63)","v":"Brázda"},{"$f":"IF('Prezenční listina'!F63=0,\"\",'Prezenční listina'!C63)","v":"Richard"},{"$f":"IF('Prezenční listina'!F63=0,\"\",'Prezenční listina'!D63)","v":1975},{"$f":"IF('Prezenční listina'!F63=0,\"\",'Prezenční listina'!E63)","v":"Český běžecký klub, Brno"},{"$f":"IF('Prezenční listina'!F63=0,\"\",'Prezenční listina'!H63)","v":"B"}]
[32,{"$f":"IF('Prezenční listina'!F24=0,\"\",'Prezenční listina'!F24)","v":33},{"$f":"IF('Prezenční listina'!F24=0,\"\",'Prezenční listina'!B24)","v":"Krátký"},{"$f":"IF('Prezenční listina'!F24=0,\"\",'Prezenční listina'!C24)","v":"Pavel"},{"$f":"IF('Prezenční listina'!F24=0,\"\",'Prezenční listina'!D24)","v":1974},{"$f":"IF('Prezenční listina'!F24=0,\"\",'Prezenční listina'!E24)","v":"TS Jan Kohut (Olomučany)"},{"$f":"IF('Prezenční listina'!F24=0,\"\",'Prezenční listina'!H24)","v":"B"}]
[33,{"$f":"IF('Prezenční listina'!F10=0,\"\",'Prezenční listina'!F10)","v":34},{"$f":"IF('Prezenční listina'!F10=0,\"\",'Prezenční listina'!B10)","v":"Dvořák"},{"$f":"IF('Prezenční listina'!F10=0,\"\",'Prezenční listina'!C10)","v":"Petr"},{"$f":"IF('Prezenční listina'!F10=0,\"\",'Prezenční listina'!D10)","v":1986},{"$f":"IF('Prezenční listina'!F10=0,\"\",'Prezenční listina'!E10)","v":"Brno"},{"$f":"IF('Prezenční listina'!F10=0,\"\",'Prezenční listina'!H10)","v":"A"}]
[34,{"$f":"IF('Prezenční listina'!F23=0,\"\",'Prezenční listina'!F23)","v":35},{"$f":"IF('Prezenční listina'!F23=0,\"\",'Prezenční listina'!B23)","v":"Krátký"},{"$f":"IF('Prezenční listina'!F23=0,\"\",'Prezenční listina'!C23)","v":"Josef"},{"$f":"IF('Prezenční listina'!F23=0,\"\",'Prezenční listina'!D23)","v":1965},{"$f":"IF('Prezenční listina'!F23=0,\"\",'Prezenční listina'!E23)","v":"Hvězda Pardubice"},{"$f":"IF('Prezenční listina'!F23=0,\"\",'Prezenční listina'!H23)","v":"C"}]
[{"$f":"IF(C39=\"\",\"\",A38+1)","v":35},{"$f":"IF('Prezenční listina'!F64=0,\"\",'Prezenční listina'!F64)","v":36},{"$f":"IF('Prezenční listina'!F64=0,\"\",'Prezenční listina'!B64)","v":"Dvořáček"},{"$f":"IF('Prezenční listina'!F64=0,\"\",'Prezenční listina'!C64)","v":"Jiří"},{"$f":"IF('Prezenční listina'!F64=0,\"\",'Prezenční listina'!D64)","v":1968},{"$f":"IF('Prezenční listina'!F64=0,\"\",'Prezenční listina'!E64)","v":"Petrovice"},{"$f":"IF('Prezenční listina'!F64=0,\"\",'Prezenční listina'!H64)","v":"C"}]
[{"$f":"IF(C40=\"\",\"\",A39+1)","v":36},{"$f":"IF('Prezenční listina'!F29=0,\"\",'Prezenční listina'!F29)","v":37},{"$f":"IF('Prezenční listina'!F29=0,\"\",'Prezenční listina'!B29)","v":"Mareš"},{"$f":"IF('Prezenční listina'!F29=0,\"\",'Prezenční listina'!C29)","v":"Bohumil"},{"$f":"IF('Prezenční listina'!F29=0,\"\",'Prezenční listina'!D29)","v":1951},{"$f":"IF('Prezenční listina'!F29=0,\"\",'Prezenční listina'!E29)","v":"Posilovna Průvan Brno"},{"$f":"IF('Prezenční listina'!F29=0,\"\",'Prezenční listina'!H29)","v":"D"}]
[37,{"$f":"IF('Prezenční listina'!F38=0,\"\",'Prezenční listina'!F38)","v":38},{"$f":"IF('Prezenční listina'!F38=0,\"\",'Prezenční listina'!B38)","v":"Svoboda"},{"$f":"IF('Prezenční listina'!F38=0,\"\",'Prezenční listina'!C38)","v":"Petr"},{"$f":"IF('Prezenční listina'!F38=0,\"\",'Prezenční listina'!D38)","v":1968},{"$f":"IF('Prezenční listina'!F38=0,\"\",'Prezenční listina'!E38)","v":"AC Moravská Slavia Brno"},{"$f":"IF('Prezenční listina'!F38=0,\"\",'Prezenční listina'!H38)","v":"C"}]
[38,{"$f":"IF('Prezenční listina'!F65=0,\"\",'Prezenční listina'!F65)","v":39},{"$f":"IF('Prezenční listina'!F65=0,\"\",'Prezenční listina'!B65)","v":"Faja"},{"$f":"IF('Prezenční listina'!F65=0,\"\",'Prezenční listina'!C65)","v":"Ondřej"},{"$f":"IF('Prezenční listina'!F65=0,\"\",'Prezenční listina'!D65)","v":1976},{"$f":"IF('Prezenční listina'!F65=0,\"\",'Prezenční listina'!E65)","v":"Brno"},{"$f":"IF('Prezenční listina'!F65=0,\"\",'Prezenční listina'!H65)","v":"B"}]
[39,{"$f":"IF('Prezenční listina'!F35=0,\"\",'Prezenční listina'!F35)","v":40},{"$f":"IF('Prezenční listina'!F35=0,\"\",'Prezenční listina'!B35)","v":"Řezníček"},{"$f":"IF('Prezenční listina'!F35=0,\"\",'Prezenční listina'!C35)","v":"Petr"},{"$f":"IF('Prezenční listina'!F35=0,\"\",'Prezenční listina'!D35)","v":1973},{"$f":"IF('Prezenční listina'!F35=0,\"\",'Prezenční listina'!E35)","v":"Polnička"},{"$f":"IF('Prezenční listina'!F35=0,\"\",'Prezenční listina'!H35)","v":"B"}]
[40,{"$f":"IF('Prezenční listina'!F32=0,\"\",'Prezenční listina'!F32)","v":41},{"$f":"IF('Prezenční listina'!F32=0,\"\",'Prezenční listina'!B32)","v":"Otta"},{"$f":"IF('Prezenční listina'!F32=0,\"\",'Prezenční listina'!C32)","v":"Roman"},{"$f":"IF('Prezenční listina'!F32=0,\"\",'Prezenční listina'!D32)","v":1961},{"$f":"IF('Prezenční listina'!F32=0,\"\",'Prezenční listina'!E32)","v":"Q Sport Vrchlabí"},{"$f":"IF('Prezenční listina'!F32=0,\"\",'Prezenční listina'!H32)","v":"C"}]
[41,{"$f":"IF('Prezenční listina'!F39=0,\"\",'Prezenční listina'!F39)","v":42},{"$f":"IF('Prezenční listina'!F39=0,\"\",'Prezenční listina'!B39)","v":"Šerák"},{"$f":"IF('Prezenční listina'!F39=0,\"\",'Prezenční listina'!C39)","v":"Martin"},{"$f":"IF('Prezenční listina'!F39=0,\"\",'Prezenční listina'!D39)","v":1978},{"$f":"IF('Prezenční listina'!F39=0,\"\",'Prezenční listina'!E39)","v":"Sokol Bílovice nad Svitavou"},{"$f":"IF('Prezenční listina'!F39=0,\"\",'Prezenční listina'!H39)","v":"B"}]
[42,{"$f":"IF('Prezenční listina'!F66=0,\"\",'Prezenční listina'!F66)","v":43},{"$f":"IF('Prezenční listina'!F66=0,\"\",'Prezenční listina'!B66)","v":"Exner"},{"$f":"IF('Prezenční listina'!F66=0,\"\",'Prezenční listina'!C66)","v":"Jakub"},{"$f":"IF('Prezenční listina'!F66=0,\"\",'Prezenční listina'!D66)","v":1983},{"$f":"IF('Prezenční listina'!F66=0,\"\",'Prezenční listina'!E66)","v":"Swoboda-pteam"},{"$f":"IF('Prezenční listina'!F66=0,\"\",'Prezenční listina'!H66)","v":"A"}]
[43,{"$f":"IF('Prezenční listina'!F48=0,\"\",'Prezenční listina'!F48)","v":44},{"$f":"IF('Prezenční listina'!F48=0,\"\",'Prezenční listina'!B48)","v":"Vintrlík"},{"$f":"IF('Prezenční listina'!F48=0,\"\",'Prezenční listina'!C48)","v":"Martin"},{"$f":"IF('Prezenční listina'!F48=0,\"\",'Prezenční listina'!D48)","v":1977},{"$f":"IF('Prezenční listina'!F48=0,\"\",'Prezenční listina'!E48)","v":"Triatlon Křepice"},{"$f":"IF('Prezenční listina'!F48=0,\"\",'Prezenční listina'!H48)","v":"B"}]
[44,{"$f":"IF('Prezenční listina'!F26=0,\"\",'Prezenční listina'!F26)","v":45},{"$f":"IF('Prezenční listina'!F26=0,\"\",'Prezenční listina'!B26)","v":"Kropáček"},{"$f":"IF('Prezenční listina'!F26=0,\"\",'Prezenční listina'!C26)","v":"Jaroslav"},{"$f":"IF('Prezenční listina'!F26=0,\"\",'Prezenční listina'!D26)","v":1970},{"$f":"IF('Prezenční listina'!F26=0,\"\",'Prezenční listina'!E26)","v":"Triatlon Křepice"},{"$f":"IF('Prezenční listina'!F26=0,\"\",'Prezenční listina'!H26)","v":"B"}]
[45,{"$f":"IF('Prezenční listina'!F4=0,\"\",'Prezenční listina'!F4)","v":46},{"$f":"IF('Prezenční listina'!F4=0,\"\",'Prezenční listina'!B4)","v":"Bracek"},{"$f":"IF('Prezenční listina'!F4=0,\"\",'Prezenční listina'!C4)","v":"Petr"},{"$f":"IF('Prezenční listina'!F4=0,\"\",'Prezenční listina'!D4)","v":1979},{"$f":"IF('Prezenční listina'!F4=0,\"\",'Prezenční listina'!E4)","v":"Kuřim"},{"$f":"IF('Prezenční listina'!F4=0,\"\",'Prezenční listina'!H4)","v":"B"}]
[46,{"$f":"IF('Prezenční listina'!F67=0,\"\",'Prezenční listina'!F67)","v":47},{"$f":"IF('Prezenční listina'!F67=0,\"\",'Prezenční listina'!B67)","v":"Plachý"},{"$f":"IF('Prezenční listina'!F67=0,\"\",'Prezenční listina'!C67)","v":"Martin"},{"$f":"IF('Prezenční listina'!F67=0,\"\",'Prezenční listina'!D67)","v":1965},{"$f":"IF('Prezenční listina'!F67=0,\"\",'Prezenční listina'!E67)","v":"MK Prostějov"},{"$f":"IF('Prezenční listina'!F67=0,\"\",'Prezenční listina'!H67)","v":"C"}]
[47,{"$f":"IF('Prezenční listina'!F42=0,\"\",'Prezenční listina'!F42)","v":48},{"$f":"IF('Prezenční listina'!F42=0,\"\",'Prezenční listina'!B42)","v":"Viščor"},{"$f":"IF('Prezenční listina'!F42=0,\"\",'Prezenční listina'!C42)","v":"Pavel"},{"$f":"IF('Prezenční listina'!F42=0,\"\",'Prezenční listina'!D42)","v":1974},{"$f":"IF('Prezenční listina'!F42=0,\"\",'Prezenční listina'!E42)","v":"Brno"},{"$f":"IF('Prezenční listina'!F42=0,\"\",'Prezenční listina'!H42)","v":"B"}]
[48,{"$f":"IF('Prezenční listina'!F22=0,\"\",'Prezenční listina'!F22)","v":49},{"$f":"IF('Prezenční listina'!F22=0,\"\",'Prezenční listina'!B22)","v":"Kovačič"},{"$f":"IF('Prezenční listina'!F22=0,\"\",'Prezenční listina'!C22)","v":"Sebastian"},{"$f":"IF('Prezenční listina'!F22=0,\"\",'Prezenční listina'!D22)","v":1978},{"$f":"IF('Prezenční listina'!F22=0,\"\",'Prezenční listina'!E22)","v":"Bílovice nad Svitavou"},{"$f":"IF('Prezenční listina'!F22=0,\"\",'Prezenční listina'!H22)","v":"B"}]
[49,{"$f":"IF('Prezenční listina'!F7=0,\"\",'Prezenční listina'!F7)","v":50},{"$f":"IF('Prezenční listina'!F7=0,\"\",'Prezenční listina'!B7)","v":"Čuhel"},{"$f":"IF('Prezenční listina'!F7=0,\"\",'Prezenční listina'!C7)","v":"Jiří"},{"$f":"IF('Prezenční listina'!F7=0,\"\",'Prezenční listina'!D7)","v":1958},{"$f":"IF('Prezenční listina'!F7=0,\"\",'Prezenční listina'!E7)","v":"Křtěnov"},{"$f":"IF('Prezenční listina'!F7=0,\"\",'Prezenční listina'!H7)","v":"D"}]
[50,{"$f":"IF('Prezenční listina'!F45=0,\"\",'Prezenční listina'!F45)","v":51},{"$f":"IF('Prezenční listina'!F45=0,\"\",'Prezenční listina'!B45)","v":"Weis"},{"$f":"IF('Prezenční listina'!F45=0,\"\",'Prezenční listina'!C45)","v":"Josef"},{"$f":"IF('Prezenční listina'!F45=0,\"\",'Prezenční listina'!D45)","v":1974},{"$f":"IF('Prezenční listina'!F45=0,\"\",'Prezenční listina'!E45)","v":"Elite Sport Boskovice"},{"$f":"IF('Prezenční listina'!F45=0,\"\",'Prezenční listina'!H45)","v":"B"}]
[51,{"$f":"IF('Prezenční listina'!F14=0,\"\",'Prezenční listina'!F14)","v":52},{"$f":"IF('Prezenční listina'!F14=0,\"\",'Prezenční listina'!B14)","v":"Glier"},{"$f":"IF('Prezenční listina'!F14=0,\"\",'Prezenční listina'!C14)","v":"Michal"},{"$f":"IF('Prezenční listina'!F14=0,\"\",'Prezenční listina'!D14)","v":1982},{"$f":"IF('Prezenční listina'!F14=0,\"\",'Prezenční listina'!E14)","v":"behejbrno.com"},{"$f":"IF('Prezenční listina'!F14=0,\"\",'Prezenční listina'!H14)","v":"A"}]
[52,{"$f":"IF('Prezenční listina'!F68=0,\"\",'Prezenční listina'!F68)","v":53},{"$f":"IF('Prezenční listina'!F68=0,\"\",'Prezenční listina'!B68)","v":"Orálek"},{"$f":"IF('Prezenční listina'!F68=0,\"\",'Prezenční listina'!C68)","v":"Daniel"},{"$f":"IF('Prezenční listina'!F68=0,\"\",'Prezenční listina'!D68)","v":1970},{"$f":"IF('Prezenční listina'!F68=0,\"\",'Prezenční listina'!E68)","v":"behejbrno.com"},{"$f":"IF('Prezenční listina'!F68=0,\"\",'Prezenční listina'!H68)","v":"B"}]
[53,{"$f":"IF('Prezenční listina'!F69=0,\"\",'Prezenční listina'!F69)","v":54},{"$f":"IF('Prezenční listina'!F69=0,\"\",'Prezenční listina'!B69)","v":"Sajdl"},{"$f":"IF('Prezenční listina'!F69=0,\"\",'Prezenční listina'!C69)","v":"Ondřej"},{"$f":"IF('Prezenční listina'!F69=0,\"\",'Prezenční listina'!D69)","v":1978},{"$f":"IF('Prezenční listina'!F69=0,\"\",'Prezenční listina'!E69)","v":"Brno"},{"$f":"IF('Prezenční listina'!F69=0,\"\",'Prezenční listina'!H69)","v":"B"}]
[54,{"$f":"IF('Prezenční listina'!F70=0,\"\",'Prezenční listina'!F70)","v":55},{"$f":"IF('Prezenční listina'!F70=0,\"\",'Prezenční listina'!B70)","v":"Šůstek"},{"$f":"IF('Prezenční listina'!F70=0,\"\",'Prezenční listina'!C70)","v":"Roman"},{"$f":"IF('Prezenční listina'!F70=0,\"\",'Prezenční listina'!D70)","v":1968},{"$f":"IF('Prezenční listina'!F70=0,\"\",'Prezenční listina'!E70)","v":"Brno"},{"$f":"IF('Prezenční listina'!F70=0,\"\",'Prezenční listina'!H70)","v":"C"}]
[55,{"$f":"IF('Prezenční listina'!F43=0,\"\",'Prezenční listina'!F43)","v":56},{"$f":"IF('Prezenční listina'!F43=0,\"\",'Prezenční listina'!B43)","v":"Vykoupil"},{"$f":"IF('Prezenční listina'!F43=0,\"\",'Prezenční listina'!C43)","v":"Miloslav"},{"$f":"IF('Prezenční listina'!F43=0,\"\",'Prezenční listina'!D43)","v":1972},{"$f":"IF('Prezenční listina'!F43=0,\"\",'Prezenční listina'!E43)","v":"Veverská Bitýška"},{"$f":"IF('Prezenční listina'!F43=0,\"\",'Prezenční listina'!H43)","v":"B"}]
[56,{"$f":"IF('Prezenční listina'!F27=0,\"\",'Prezenční listina'!F27)","v":57},{"$f":"IF('Prezenční listina'!F27=0,\"\",'Prezenční listina'!B27)","v":"Lorenčík"},{"$f":"IF('Prezenční listina'!F27=0,\"\",'Prezenční listina'!C27)","v":"Aleš"},{"$f":"IF('Prezenční listina'!F27=0,\"\",'Prezenční listina'!D27)","v":1973},{"$f":"IF('Prezenční listina'!F27=0,\"\",'Prezenční listina'!E27)","v":"Chrudim"},{"$f":"IF('Prezenční listina'!F27=0,\"\",'Prezenční listina'!H27)","v":"B"}]
[57,{"$f":"IF('Prezenční listina'!F71=0,\"\",'Prezenční listina'!F71)","v":58},{"$f":"IF('Prezenční listina'!F71=0,\"\",'Prezenční listina'!B71)","v":"Jurgová"},{"$f":"IF('Prezenční listina'!F71=0,\"\",'Prezenční listina'!C71)","v":"Martina"},{"$f":"IF('Prezenční listina'!F71=0,\"\",'Prezenční listina'!D71)","v":1979},{"$f":"IF('Prezenční listina'!F71=0,\"\",'Prezenční listina'!E71)","v":"Brno"},{"$f":"IF('Prezenční listina'!F71=0,\"\",'Prezenční listina'!H71)","v":"G"}]
[58,{"$f":"IF('Prezenční listina'!F72=0,\"\",'Prezenční listina'!F72)","v":59},{"$f":"IF('Prezenční listina'!F72=0,\"\",'Prezenční listina'!B72)","v":"Havlíček"},{"$f":"IF('Prezenční listina'!F72=0,\"\",'Prezenční listina'!C72)","v":"Ivo"},{"$f":"IF('Prezenční listina'!F72=0,\"\",'Prezenční listina'!D72)","v":1966},{"$f":"IF('Prezenční listina'!F72=0,\"\",'Prezenční listina'!E72)","v":"Lánov Krkonoše"},{"$f":"IF('Prezenční listina'!F72=0,\"\",'Prezenční listina'!H72)","v":"C"}]
[59,{"$f":"IF('Prezenční listina'!F73=0,\"\",'Prezenční listina'!F73)","v":60},{"$f":"IF('Prezenční listina'!F73=0,\"\",'Prezenční listina'!B73)","v":"Zedník"},{"$f":"IF('Prezenční listina'!F73=0,\"\",'Prezenční listina'!C73)","v":"Petr"},{"$f":"IF('Prezenční listina'!F73=0,\"\",'Prezenční listina'!D73)","v":1982},{"$f":"IF('Prezenční listina'!F73=0,\"\",'Prezenční listina'!E73)","v":"Dalečín"},{"$f":"IF('Prezenční listina'!F73=0,\"\",'Prezenční listina'!H73)","v":"A"}]
[60,{"$f":"IF('Prezenční listina'!F74=0,\"\",'Prezenční listina'!F74)","v":61},{"$f":"IF('Prezenční listina'!F74=0,\"\",'Prezenční listina'!B74)","v":"Munzarová"},{"$f":"IF('Prezenční listina'!F74=0,\"\",'Prezenční listina'!C74)","v":"Věra"},{"$f":"IF('Prezenční listina'!F74=0,\"\",'Prezenční listina'!D74)","v":1980},{"$f":"IF('Prezenční listina'!F74=0,\"\",'Prezenční listina'!E74)","v":"Dalečín"},{"$f":"IF('Prezenční listina'!F74=0,\"\",'Prezenční listina'!H74)","v":"G"}]
[61,{"$f":"IF('Prezenční listina'!F19=0,\"\",'Prezenční listina'!F19)","v":62},{"$f":"IF('Prezenční listina'!F19=0,\"\",'Prezenční listina'!B19)","v":"Jílek"},{"$f":"IF('Prezenční listina'!F19=0,\"\",'Prezenční listina'!C19)","v":"Jaroslav"},{"$f":"IF('Prezenční listina'!F19=0,\"\",'Prezenční listina'!D19)","v":1966},{"$f":"IF('Prezenční listina'!F19=0,\"\",'Prezenční listina'!E19)","v":"Bystřice nad Pernštejnem"},{"$f":"IF('Prezenční listina'!F19=0,\"\",'Prezenční listina'!H19)","v":"C"}]
[62,{"$f":"IF('Prezenční listina'!F75=0,\"\",'Prezenční listina'!F75)","v":63},{"$f":"IF('Prezenční listina'!F75=0,\"\",'Prezenční listina'!B75)","v":"Boháč"},{"$f":"IF('Prezenční listina'!F75=0,\"\",'Prezenční listina'!C75)","v":"Jiří"},{"$f":"IF('Prezenční listina'!F75=0,\"\",'Prezenční listina'!D75)","v":1954},{"$f":"IF('Prezenční listina'!F75=0,\"\",'Prezenční listina'!E75)","v":"behejbrno.com"},{"$f":"IF('Prezenční listina'!F75=0,\"\",'Prezenční listina'!H75)","v":"D"}]
[63,{"$f":"IF('Prezenční listina'!F76=0,\"\",'Prezenční listina'!F76)","v":64},{"$f":"IF('Prezenční listina'!F76=0,\"\",'Prezenční listina'!B76)","v":"Bezchleba"},{"$f":"IF('Prezenční listina'!F76=0,\"\",'Prezenční listina'!C76)","v":"Petr"},{"$f":"IF('Prezenční listina'!F76=0,\"\",'Prezenční listina'!D76)","v":1978},{"$f":"IF('Prezenční listina'!F76=0,\"\",'Prezenční listina'!E76)","v":"SK TRI CYKLOCHLUBNA"},{"$f":"IF('Prezenční listina'!F76=0,\"\",'Prezenční listina'!H76)","v":"B"}]
[64,{"$f":"IF('Prezenční listina'!F6=0,\"\",'Prezenční listina'!F6)","v":65},{"$f":"IF('Prezenční listina'!F6=0,\"\",'Prezenční listina'!B6)","v":"Čapka"},{"$f":"IF('Prezenční listina'!F6=0,\"\",'Prezenční listina'!C6)","v":"František"},{"$f":"IF('Prezenční listina'!F6=0,\"\",'Prezenční listina'!D6)","v":1968},{"$f":"IF('Prezenční listina'!F6=0,\"\",'Prezenční listina'!E6)","v":"Minerva Boskovice"},{"$f":"IF('Prezenční listina'!F6=0,\"\",'Prezenční listina'!H6)","v":"C"}]
[65,{"$f":"IF('Prezenční listina'!F77=0,\"\",'Prezenční listina'!F77)","v":66},{"$f":"IF('Prezenční listina'!F77=0,\"\",'Prezenční listina'!B77)","v":"Prokop"},{"$f":"IF('Prezenční listina'!F77=0,\"\",'Prezenční listina'!C77)","v":"Ondřej"},{"$f":"IF('Prezenční listina'!F77=0,\"\",'Prezenční listina'!D77)","v":1962},{"$f":"IF('Prezenční listina'!F77=0,\"\",'Prezenční listina'!E77)","v":"ČAU, Brno"},{"$f":"IF('Prezenční listina'!F77=0,\"\",'Prezenční listina'!H77)","v":"C"}]
[66,{"$f":"IF('Prezenční listina'!F8=0,\"\",'Prezenční listina'!F8)","v":67},{"$f":"IF('Prezenční listina'!F8=0,\"\",'Prezenční listina'!B8)","v":"Dušil"},{"$f":"IF('Prezenční listina'!F8=0,\"\",'Prezenční listina'!C8)","v":"Jarda"},{"$f":"IF('Prezenční listina'!F8=0,\"\",'Prezenční listina'!D8)","v":1970},{"$f":"IF('Prezenční listina'!F8=0,\"\",'Prezenční listina'!E8)","v":"Slaměnka (Brno)"},{"$f":"IF('Prezenční listina'!F8=0,\"\",'Prezenční listina'!H8)","v":"B"}]
[67,{"$f":"IF('Prezenční listina'!F36=0,\"\",'Prezenční listina'!F36)","v":68},{"$f":"IF('Prezenční listina'!F36=0,\"\",'Prezenční listina'!B36)","v":"Sedláček"},{"$f":"IF('Prezenční listina'!F36=0,\"\",'Prezenční listina'!C36)","v":"Svatopluk"},{"$f":"IF('Prezenční listina'!F36=0,\"\",'Prezenční listina'!D36)","v":1957},{"$f":"IF('Prezenční listina'!F36=0,\"\",'Prezenční listina'!E36)","v":"AC Moravská Slavia Brno"},{"$f":"IF('Prezenční listina'!F36=0,\"\",'Prezenční listina'!H36)","v":"D"}]
[68,{"$f":"IF('Prezenční listina'!F5=0,\"\",'Prezenční listina'!F5)","v":69},{"$f":"IF('Prezenční listina'!F5=0,\"\",'Prezenční listina'!B5)","v":"Crha"},{"$f":"IF('Prezenční listina'!F5=0,\"\",'Prezenční listina'!C5)","v":"Radek"},{"$f":"IF('Prezenční listina'!F5=0,\"\",'Prezenční listina'!D5)","v":1979},{"$f":"IF('Prezenční listina'!F5=0,\"\",'Prezenční listina'!E5)","v":"NON AUTOS Radek CRHA (Vidonín)"},{"$f":"IF('Prezenční listina'!F5=0,\"\",'Prezenční listina'!H5)","v":"B"}]
[69,{"$f":"IF('Prezenční listina'!F20=0,\"\",'Prezenční listina'!F20)","v":70},{"$f":"IF('Prezenční listina'!F20=0,\"\",'Prezenční listina'!B20)","v":"Konečný"},{"$f":"IF('Prezenční listina'!F20=0,\"\",'Prezenční listina'!C20)","v":"Libor"},{"$f":"IF('Prezenční listina'!F20=0,\"\",'Prezenční listina'!D20)","v":1971},{"$f":"IF('Prezenční listina'!F20=0,\"\",'Prezenční listina'!E20)","v":"Kuřim"},{"$f":"IF('Prezenční listina'!F20=0,\"\",'Prezenční listina'!H20)","v":"B"}]
[{"$f":"IF(C74=\"\",\"\",A73+1)","v":""},{"$f":"IF('Prezenční listina'!F16=0,\"\",'Prezenční listina'!F16)","v":""},{"$f":"IF('Prezenční listina'!F16=0,\"\",'Prezenční listina'!B16)","v":""},{"$f":"IF('Prezenční listina'!F16=0,\"\",'Prezenční listina'!C16)","v":""},{"$f":"IF('Prezenční listina'!F16=0,\"\",'Prezenční listina'!D16)","v":""},{"$f":"IF('Prezenční listina'!F16=0,\"\",'Prezenční listina'!E16)","v":""},{"$f":"IF('Prezenční listina'!F16=0,\"\",'Prezenční listina'!H16)","v":""}]
["",{"$f":"IF('Prezenční listina'!F18=0,\"\",'Prezenční listina'!F18)","v":""},{"$f":"IF('Prezenční listina'!F18=0,\"\",'Prezenční listina'!B18)","v":""},{"$f":"IF('Prezenční listina'!F18=0,\"\",'Prezenční listina'!C18)","v":""},{"$f":"IF('Prezenční listina'!F18=0,\"\",'Prezenční listina'!D18)","v":""},{"$f":"IF('Prezenční listina'!F18=0,\"\",'Prezenční listina'!E18)","v":""},{"$f":"IF('Prezenční listina'!F18=0,\"\",'Prezenční listina'!H18)","v":""}]
["",{"$f":"IF('Prezenční listina'!F28=0,\"\",'Prezenční listina'!F28)","v":""},{"$f":"IF('Prezenční listina'!F28=0,\"\",'Prezenční listina'!B28)","v":""},{"$f":"IF('Prezenční listina'!F28=0,\"\",'Prezenční listina'!C28)","v":""},{"$f":"IF('Prezenční listina'!F28=0,\"\",'Prezenční listina'!D28)","v":""},{"$f":"IF('Prezenční listina'!F28=0,\"\",'Prezenční listina'!E28)","v":""},{"$f":"IF('Prezenční listina'!F28=0,\"\",'Prezenční listina'!H28)","v":""}]
["",{"$f":"IF('Prezenční listina'!F31=0,\"\",'Prezenční listina'!F31)","v":""},{"$f":"IF('Prezenční listina'!F31=0,\"\",'Prezenční listina'!B31)","v":""},{"$f":"IF('Prezenční listina'!F31=0,\"\",'Prezenční listina'!C31)","v":""},{"$f":"IF('Prezenční listina'!F31=0,\"\",'Prezenční listina'!D31)","v":""},{"$f":"IF('Prezenční listina'!F31=0,\"\",'Prezenční listina'!E31)","v":""},{"$f":"IF('Prezenční listina'!F31=0,\"\",'Prezenční listina'!H31)","v":""}]
["",{"$f":"IF('Prezenční listina'!F33=0,\"\",'Prezenční listina'!F33)","v":""},{"$f":"IF('Prezenční listina'!F33=0,\"\",'Prezenční listina'!B33)","v":""},{"$f":"IF('Prezenční listina'!F33=0,\"\",'Prezenční listina'!C33)","v":""},{"$f":"IF('Prezenční listina'!F33=0,\"\",'Prezenční listina'!D33)","v":""},{"$f":"IF('Prezenční listina'!F33=0,\"\",'Prezenční listina'!E33)","v":""},{"$f":"IF('Prezenční listina'!F33=0,\"\",'Prezenční listina'!H33)","v":""}]
["",{"$f":"IF('Prezenční listina'!F37=0,\"\",'Prezenční listina'!F37)","v":""},{"$f":"IF('Prezenční listina'!F37=0,\"\",'Prezenční listina'!B37)","v":""},{"$f":"IF('Prezenční listina'!F37=0,\"\",'Prezenční listina'!C37)","v":""},{"$f":"IF('Prezenční listina'!F37=0,\"\",'Prezenční listina'!D37)","v":""},{"$f":"IF('Prezenční listina'!F37=0,\"\",'Prezenční listina'!E37)","v":""},{"$f":"IF('Prezenční listina'!F37=0,\"\",'Prezenční listina'!H37)","v":""}]
["",{"$f":"IF('Prezenční listina'!F78=0,\"\",'Prezenční listina'!F78)","v":""},{"$f":"IF('Prezenční listina'!F78=0,\"\",'Prezenční listina'!B78)","v":""},{"$f":"IF('Prezenční listina'!F78=0,\"\",'Prezenční listina'!C78)","v":""},{"$f":"IF('Prezenční listina'!F78=0,\"\",'Prezenční listina'!D78)","v":""},{"$f":"IF('Prezenční listina'!F78=0,\"\",'Prezenční listina'!E78)","v":""},{"$f":"IF('Prezenční listina'!F78=0,\"\",'Prezenční listina'!H78)","v":""}]
["",{"$f":"IF('Prezenční listina'!F79=0,\"\",'Prezenční listina'!F79)","v":""},{"$f":"IF('Prezenční listina'!F79=0,\"\",'Prezenční listina'!B79)","v":""},{"$f":"IF('Prezenční listina'!F79=0,\"\",'Prezenční listina'!C79)","v":""},{"$f":"IF('Prezenční listina'!F79=0,\"\",'Prezenční listina'!D79)","v":""},{"$f":"IF('Prezenční listina'!F79=0,\"\",'Prezenční listina'!E79)","v":""},{"$f":"IF('Prezenční listina'!F79=0,\"\",'Prezenční listina'!H79)","v":""}]
["",{"$f":"IF('Prezenční listina'!F80=0,\"\",'Prezenční listina'!F80)","v":""},{"$f":"IF('Prezenční listina'!F80=0,\"\",'Prezenční listina'!B80)","v":""},{"$f":"IF('Prezenční listina'!F80=0,\"\",'Prezenční listina'!C80)","v":""},{"$f":"IF('Prezenční listina'!F80=0,\"\",'Prezenční listina'!D80)","v":""},{"$f":"IF('Prezenční listina'!F80=0,\"\",'Prezenční listina'!E80)","v":""},{"$f":"IF('Prezenční listina'!F80=0,\"\",'Prezenční listina'!H80)","v":""}]
["",{"$f":"IF('Prezenční listina'!F81=0,\"\",'Prezenční listina'!F81)","v":""},{"$f":"IF('Prezenční listina'!F81=0,\"\",'Prezenční listina'!B81)","v":""},{"$f":"IF('Prezenční listina'!F81=0,\"\",'Prezenční listina'!C81)","v":""},{"$f":"IF('Prezenční listina'!F81=0,\"\",'Prezenční listina'!D81)","v":""},{"$f":"IF('Prezenční listina'!F81=0,\"\",'Prezenční listina'!E81)","v":""},{"$f":"IF('Prezenční listina'!F81=0,\"\",'Prezenční listina'!H81)","v":""}]
["",{"$f":"IF('Prezenční listina'!F82=0,\"\",'Prezenční listina'!F82)","v":""},{"$f":"IF('Prezenční listina'!F82=0,\"\",'Prezenční listina'!B82)","v":""},{"$f":"IF('Prezenční listina'!F82=0,\"\",'Prezenční listina'!C82)","v":""},{"$f":"IF('Prezenční listina'!F82=0,\"\",'Prezenční listina'!D82)","v":""},{"$f":"IF('Prezenční listina'!F82=0,\"\",'Prezenční listina'!E82)","v":""},{"$f":"IF('Prezenční listina'!F82=0,\"\",'Prezenční listina'!H82)","v":""}]
["",{"$f":"IF('Prezenční listina'!F83=0,\"\",'Prezenční listina'!F83)","v":""},{"$f":"IF('Prezenční listina'!F83=0,\"\",'Prezenční listina'!B83)","v":""},{"$f":"IF('Prezenční listina'!F83=0,\"\",'Prezenční listina'!C83)","v":""},{"$f":"IF('Prezenční listina'!F83=0,\"\",'Prezenční listina'!D83)","v":""},{"$f":"IF('Prezenční listina'!F83=0,\"\",'Prezenční listina'!E83)","v":""},{"$f":"IF('Prezenční listina'!F83=0,\"\",'Prezenční listina'!H83)","v":""}]
["",{"$f":"IF('Prezenční listina'!F84=0,\"\",'Prezenční listina'!F84)","v":""},{"$f":"IF('Prezenční listina'!F84=0,\"\",'Prezenční listina'!B84)","v":""},{"$f":"IF('Prezenční listina'!F84=0,\"\",'Prezenční listina'!C84)","v":""},{"$f":"IF('Prezenční listina'!F84=0,\"\",'Prezenční listina'!D84)","v":""},{"$f":"IF('Prezenční listina'!F84=0,\"\",'Prezenční listina'!E84)","v":""},{"$f":"IF('Prezenční listina'!F84=0,\"\",'Prezenční listina'!H84)","v":""}]
["",{"$f":"IF('Prezenční listina'!F85=0,\"\",'Prezenční listina'!F85)","v":""},{"$f":"IF('Prezenční listina'!F85=0,\"\",'Prezenční listina'!B85)","v":""},{"$f":"IF('Prezenční listina'!F85=0,\"\",'Prezenční listina'!C85)","v":""},{"$f":"IF('Prezenční listina'!F85=0,\"\",'Prezenční listina'!D85)","v":""},{"$f":"IF('Prezenční listina'!F85=0,\"\",'Prezenční listina'!E85)","v":""},{"$f":"IF('Prezenční listina'!F85=0,\"\",'Prezenční listina'!H85)","v":""}]
["",{"$f":"IF('Prezenční listina'!F86=0,\"\",'Prezenční listina'!F86)","v":""},{"$f":"IF('Prezenční listina'!F86=0,\"\",'Prezenční listina'!B86)","v":""},{"$f":"IF('Prezenční listina'!F86=0,\"\",'Prezenční listina'!C86)","v":""},{"$f":"IF('Prezenční listina'!F86=0,\"\",'Prezenční listina'!D86)","v":""},{"$f":"IF('Prezenční listina'!F86=0,\"\",'Prezenční listina'!E86)","v":""},{"$f":"IF('Prezenční listina'!F86=0,\"\",'Prezenční listina'!H86)","v":""}]
["",{"$f":"IF('Prezenční listina'!F87=0,\"\",'Prezenční listina'!F87)","v":""},{"$f":"IF('Prezenční listina'!F87=0,\"\",'Prezenční listina'!B87)","v":""},{"$f":"IF('Prezenční listina'!F87=0,\"\",'Prezenční listina'!C87)","v":""},{"$f":"IF('Prezenční listina'!F87=0,\"\",'Prezenční listina'!D87)","v":""},{"$f":"IF('Prezenční listina'!F87=0,\"\",'Prezenční listina'!E87)","v":""},{"$f":"IF('Prezenční listina'!F87=0,\"\",'Prezenční listina'!H87)","v":""}]
["",{"$f":"IF('Prezenční listina'!F88=0,\"\",'Prezenční listina'!F88)","v":""},{"$f":"IF('Prezenční listina'!F88=0,\"\",'Prezenční listina'!B88)","v":""},{"$f":"IF('Prezenční listina'!F88=0,\"\",'Prezenční listina'!C88)","v":""},{"$f":"IF('Prezenční listina'!F88=0,\"\",'Prezenční listina'!D88)","v":""},{"$f":"IF('Prezenční listina'!F88=0,\"\",'Prezenční listina'!E88)","v":""},{"$f":"IF('Prezenční listina'!F88=0,\"\",'Prezenční listina'!H88)","v":""}]
[{"$f":"IF(C91=\"\",\"\",A90+1)","v":""},{"$f":"IF('Prezenční listina'!F89=0,\"\",'Prezenční listina'!F89)","v":""},{"$f":"IF('Prezenční listina'!F89=0,\"\",'Prezenční listina'!B89)","v":""},{"$f":"IF('Prezenční listina'!F89=0,\"\",'Prezenční listina'!C89)","v":""},{"$f":"IF('Prezenční listina'!F89=0,\"\",'Prezenční listina'!D89)","v":""},{"$f":"IF('Prezenční listina'!F89=0,\"\",'Prezenční listina'!E89)","v":""},{"$f":"IF('Prezenční listina'!F89=0,\"\",'Prezenční listina'!H89)","v":""}]
["",{"$f":"IF('Prezenční listina'!F90=0,\"\",'Prezenční listina'!F90)","v":""},{"$f":"IF('Prezenční listina'!F90=0,\"\",'Prezenční listina'!B90)","v":""},{"$f":"IF('Prezenční listina'!F90=0,\"\",'Prezenční listina'!C90)","v":""},{"$f":"IF('Prezenční listina'!F90=0,\"\",'Prezenční listina'!D90)","v":""},{"$f":"IF('Prezenční listina'!F90=0,\"\",'Prezenční listina'!E90)","v":""},{"$f":"IF('Prezenční listina'!F90=0,\"\",'Prezenční listina'!H90)","v":""}]
["",{"$f":"IF('Prezenční listina'!F91=0,\"\",'Prezenční listina'!F91)","v":""},{"$f":"IF('Prezenční listina'!F91=0,\"\",'Prezenční listina'!B91)","v":""},{"$f":"IF('Prezenční listina'!F91=0,\"\",'Prezenční listina'!C91)","v":""},{"$f":"IF('Prezenční listina'!F91=0,\"\",'Prezenční listina'!D91)","v":""},{"$f":"IF('Prezenční listina'!F91=0,\"\",'Prezenční listina'!E91)","v":""},{"$f":"IF('Prezenční listina'!F91=0,\"\",'Prezenční listina'!H91)","v":""}]
["",{"$f":"IF('Prezenční listina'!F92=0,\"\",'Prezenční listina'!F92)","v":""},{"$f":"IF('Prezenční listina'!F92=0,\"\",'Prezenční listina'!B92)","v":""},{"$f":"IF('Prezenční listina'!F92=0,\"\",'Prezenční listina'!C92)","v":""},{"$f":"IF('Prezenční listina'!F92=0,\"\",'Prezenční listina'!D92)","v":""},{"$f":"IF('Prezenční listina'!F92=0,\"\",'Prezenční listina'!E92)","v":""},{"$f":"IF('Prezenční listina'!F92=0,\"\",'Prezenční listina'!H92)","v":""}]
["",{"$f":"IF('Prezenční listina'!F93=0,\"\",'Prezenční listina'!F93)","v":""},{"$f":"IF('Prezenční listina'!F93=0,\"\",'Prezenční listina'!B93)","v":""},{"$f":"IF('Prezenční listina'!F93=0,\"\",'Prezenční listina'!C93)","v":""},{"$f":"IF('Prezenční listina'!F93=0,\"\",'Prezenční listina'!D93)","v":""},{"$f":"IF('Prezenční listina'!F93=0,\"\",'Prezenční listina'!E93)","v":""},{"$f":"IF('Prezenční listina'!F93=0,\"\",'Prezenční listina'!H93)","v":""}]
["",{"$f":"IF('Prezenční listina'!F94=0,\"\",'Prezenční listina'!F94)","v":""},{"$f":"IF('Prezenční listina'!F94=0,\"\",'Prezenční listina'!B94)","v":""},{"$f":"IF('Prezenční listina'!F94=0,\"\",'Prezenční listina'!C94)","v":""},{"$f":"IF('Prezenční listina'!F94=0,\"\",'Prezenční listina'!D94)","v":""},{"$f":"IF('Prezenční listina'!F94=0,\"\",'Prezenční listina'!E94)","v":""},{"$f":"IF('Prezenční listina'!F94=0,\"\",'Prezenční listina'!H94)","v":""}]
["",{"$f":"IF('Prezenční listina'!F95=0,\"\",'Prezenční listina'!F95)","v":""},{"$f":"IF('Prezenční listina'!F95=0,\"\",'Prezenční listina'!B95)","v":""},{"$f":"IF('Prezenční listina'!F95=0,\"\",'Prezenční listina'!C95)","v":""},{"$f":"IF('Prezenční listina'!F95=0,\"\",'Prezenční listina'!D95)","v":""},{"$f":"IF('Prezenční listina'!F95=0,\"\",'Prezenční listina'!E95)","v":""},{"$f":"IF('Prezenční listina'!F95=0,\"\",'Prezenční listina'!H95)","v":""}]
["",{"$f":"IF('Prezenční listina'!F96=0,\"\",'Prezenční listina'!F96)","v":""},{"$f":"IF('Prezenční listina'!F96=0,\"\",'Prezenční listina'!B96)","v":""},{"$f":"IF('Prezenční listina'!F96=0,\"\",'Prezenční listina'!C96)","v":""},{"$f":"IF('Prezenční listina'!F96=0,\"\",'Prezenční listina'!D96)","v":""},{"$f":"IF('Prezenční listina'!F96=0,\"\",'Prezenční listina'!E96)","v":""},{"$f":"IF('Prezenční listina'!F96=0,\"\",'Prezenční listina'!H96)","v":""}]
["",{"$f":"IF('Prezenční listina'!F97=0,\"\",'Prezenční listina'!F97)","v":""},{"$f":"IF('Prezenční listina'!F97=0,\"\",'Prezenční listina'!B97)","v":""},{"$f":"IF('Prezenční listina'!F97=0,\"\",'Prezenční listina'!C97)","v":""},{"$f":"IF('Prezenční listina'!F97=0,\"\",'Prezenční listina'!D97)","v":""},{"$f":"IF('Prezenční listina'!F97=0,\"\",'Prezenční listina'!E97)","v":""},{"$f":"IF('Prezenční listina'!F97=0,\"\",'Prezenční listina'!H97)","v":""}]
["",{"$f":"IF('Prezenční listina'!F98=0,\"\",'Prezenční listina'!F98)","v":""},{"$f":"IF('Prezenční listina'!F98=0,\"\",'Prezenční listina'!B98)","v":""},{"$f":"IF('Prezenční listina'!F98=0,\"\",'Prezenční listina'!C98)","v":""},{"$f":"IF('Prezenční listina'!F98=0,\"\",'Prezenční listina'!D98)","v":""},{"$f":"IF('Prezenční listina'!F98=0,\"\",'Prezenční listina'!E98)","v":""},{"$f":"IF('Prezenční listina'!F98=0,\"\",'Prezenční listina'!H98)","v":""}]
["",{"$f":"IF('Prezenční listina'!F99=0,\"\",'Prezenční listina'!F99)","v":""},{"$f":"IF('Prezenční listina'!F99=0,\"\",'Prezenční listina'!B99)","v":""},{"$f":"IF('Prezenční listina'!F99=0,\"\",'Prezenční listina'!C99)","v":""},{"$f":"IF('Prezenční listina'!F99=0,\"\",'Prezenční listina'!D99)","v":""},{"$f":"IF('Prezenční listina'!F99=0,\"\",'Prezenční listina'!E99)","v":""},{"$f":"IF('Prezenční listina'!F99=0,\"\",'Prezenční listina'!H99)","v":""}]
["",{"$f":"IF('Prezenční listina'!F100=0,\"\",'Prezenční listina'!F100)","v":""},{"$f":"IF('Prezenční listina'!F100=0,\"\",'Prezenční listina'!B100)","v":""},{"$f":"IF('Prezenční listina'!F100=0,\"\",'Prezenční listina'!C100)","v":""},{"$f":"IF('Prezenční listina'!F100=0,\"\",'Prezenční listina'!D100)","v":""},{"$f":"IF('Prezenční listina'!F100=0,\"\",'Prezenční listina'!E100)","v":""},{"$f":"IF('Prezenční listina'!F100=0,\"\",'Prezenční listina'!H100)","v":""}]
["",{"$f":"IF('Prezenční listina'!F101=0,\"\",'Prezenční listina'!F101)","v":""},{"$f":"IF('Prezenční listina'!F101=0,\"\",'Prezenční listina'!B101)","v":""},{"$f":"IF('Prezenční listina'!F101=0,\"\",'Prezenční listina'!C101)","v":""},{"$f":"IF('Prezenční listina'!F101=0,\"\",'Prezenční listina'!D101)","v":""},{"$f":"IF('Prezenční listina'!F101=0,\"\",'Prezenční listina'!E101)","v":""},{"$f":"IF('Prezenční listina'!F101=0,\"\",'Prezenční listina'!H101)","v":""}]
["",{"$f":"IF('Prezenční listina'!F102=0,\"\",'Prezenční listina'!F102)","v":""},{"$f":"IF('Prezenční listina'!F102=0,\"\",'Prezenční listina'!B102)","v":""},{"$f":"IF('Prezenční listina'!F102=0,\"\",'Prezenční listina'!C102)","v":""},{"$f":"IF('Prezenční listina'!F102=0,\"\",'Prezenční listina'!D102)","v":""},{"$f":"IF('Prezenční listina'!F102=0,\"\",'Prezenční listina'!E102)","v":""},{"$f":"IF('Prezenční listina'!F102=0,\"\",'Prezenční listina'!H102)","v":""}]
["",{"$f":"IF('Prezenční listina'!F103=0,\"\",'Prezenční listina'!F103)","v":""},{"$f":"IF('Prezenční listina'!F103=0,\"\",'Prezenční listina'!B103)","v":""},{"$f":"IF('Prezenční listina'!F103=0,\"\",'Prezenční listina'!C103)","v":""},{"$f":"IF('Prezenční listina'!F103=0,\"\",'Prezenční listina'!D103)","v":""},{"$f":"IF('Prezenční listina'!F103=0,\"\",'Prezenční listina'!E103)","v":""},{"$f":"IF('Prezenční listina'!F103=0,\"\",'Prezenční listina'!H103)","v":""}]
["",{"$f":"IF('Prezenční listina'!F104=0,\"\",'Prezenční listina'!F104)","v":""},{"$f":"IF('Prezenční listina'!F104=0,\"\",'Prezenční listina'!B104)","v":""},{"$f":"IF('Prezenční listina'!F104=0,\"\",'Prezenční listina'!C104)","v":""},{"$f":"IF('Prezenční listina'!F104=0,\"\",'Prezenční listina'!D104)","v":""},{"$f":"IF('Prezenční listina'!F104=0,\"\",'Prezenční listina'!E104)","v":""},{"$f":"IF('Prezenční listina'!F104=0,\"\",'Prezenční listina'!H104)","v":""}]
["",{"$f":"IF('Prezenční listina'!F105=0,\"\",'Prezenční listina'!F105)","v":""},{"$f":"IF('Prezenční listina'!F105=0,\"\",'Prezenční listina'!B105)","v":""},{"$f":"IF('Prezenční listina'!F105=0,\"\",'Prezenční listina'!C105)","v":""},{"$f":"IF('Prezenční listina'!F105=0,\"\",'Prezenční listina'!D105)","v":""},{"$f":"IF('Prezenční listina'!F105=0,\"\",'Prezenční listina'!E105)","v":""},{"$f":"IF('Prezenční listina'!F105=0,\"\",'Prezenční listina'!H105)","v":""}]
["",{"$f":"IF('Prezenční listina'!F106=0,\"\",'Prezenční listina'!F106)","v":""},{"$f":"IF('Prezenční listina'!F106=0,\"\",'Prezenční listina'!B106)","v":""},{"$f":"IF('Prezenční listina'!F106=0,\"\",'Prezenční listina'!C106)","v":""},{"$f":"IF('Prezenční listina'!F106=0,\"\",'Prezenční listina'!D106)","v":""},{"$f":"IF('Prezenční listina'!F106=0,\"\",'Prezenční listina'!E106)","v":""},{"$f":"IF('Prezenční listina'!F106=0,\"\",'Prezenční listina'!H106)","v":""}]
["",{"$f":"IF('Prezenční listina'!F107=0,\"\",'Prezenční listina'!F107)","v":""},{"$f":"IF('Prezenční listina'!F107=0,\"\",'Prezenční listina'!B107)","v":""},{"$f":"IF('Prezenční listina'!F107=0,\"\",'Prezenční listina'!C107)","v":""},{"$f":"IF('Prezenční listina'!F107=0,\"\",'Prezenční listina'!D107)","v":""},{"$f":"IF('Prezenční listina'!F107=0,\"\",'Prezenční listina'!E107)","v":""},{"$f":"IF('Prezenční listina'!F107=0,\"\",'Prezenční listina'!H107)","v":""}]
["",{"$f":"IF('Prezenční listina'!F108=0,\"\",'Prezenční listina'!F108)","v":""},{"$f":"IF('Prezenční listina'!F108=0,\"\",'Prezenční listina'!B108)","v":""},{"$f":"IF('Prezenční listina'!F108=0,\"\",'Prezenční listina'!C108)","v":""},{"$f":"IF('Prezenční listina'!F108=0,\"\",'Prezenční listina'!D108)","v":""},{"$f":"IF('Prezenční listina'!F108=0,\"\",'Prezenční listina'!E108)","v":""},{"$f":"IF('Prezenční listina'!F108=0,\"\",'Prezenční listina'!H108)","v":""}]
["",{"$f":"IF('Prezenční listina'!F109=0,\"\",'Prezenční listina'!F109)","v":""},{"$f":"IF('Prezenční listina'!F109=0,\"\",'Prezenční listina'!B109)","v":""},{"$f":"IF('Prezenční listina'!F109=0,\"\",'Prezenční listina'!C109)","v":""},{"$f":"IF('Prezenční listina'!F109=0,\"\",'Prezenční listina'!D109)","v":""},{"$f":"IF('Prezenční listina'!F109=0,\"\",'Prezenční listina'!E109)","v":""},{"$f":"IF('Prezenční listina'!F109=0,\"\",'Prezenční listina'!H109)","v":""}]
["",{"$f":"IF('Prezenční listina'!F110=0,\"\",'Prezenční listina'!F110)","v":""},{"$f":"IF('Prezenční listina'!F110=0,\"\",'Prezenční listina'!B110)","v":""},{"$f":"IF('Prezenční listina'!F110=0,\"\",'Prezenční listina'!C110)","v":""},{"$f":"IF('Prezenční listina'!F110=0,\"\",'Prezenční listina'!D110)","v":""},{"$f":"IF('Prezenční listina'!F110=0,\"\",'Prezenční listina'!E110)","v":""},{"$f":"IF('Prezenční listina'!F110=0,\"\",'Prezenční listina'!H110)","v":""}]
["",{"$f":"IF('Prezenční listina'!F111=0,\"\",'Prezenční listina'!F111)","v":""},{"$f":"IF('Prezenční listina'!F111=0,\"\",'Prezenční listina'!B111)","v":""},{"$f":"IF('Prezenční listina'!F111=0,\"\",'Prezenční listina'!C111)","v":""},{"$f":"IF('Prezenční listina'!F111=0,\"\",'Prezenční listina'!D111)","v":""},{"$f":"IF('Prezenční listina'!F111=0,\"\",'Prezenční listina'!E111)","v":""},{"$f":"IF('Prezenční listina'!F111=0,\"\",'Prezenční listina'!H111)","v":""}]
["",{"$f":"IF('Prezenční listina'!F112=0,\"\",'Prezenční listina'!F112)","v":""},{"$f":"IF('Prezenční listina'!F112=0,\"\",'Prezenční listina'!B112)","v":""},{"$f":"IF('Prezenční listina'!F112=0,\"\",'Prezenční listina'!C112)","v":""},{"$f":"IF('Prezenční listina'!F112=0,\"\",'Prezenční listina'!D112)","v":""},{"$f":"IF('Prezenční listina'!F112=0,\"\",'Prezenční listina'!E112)","v":""},{"$f":"IF('Prezenční listina'!F112=0,\"\",'Prezenční listina'!H112)","v":""}]
["",{"$f":"IF('Prezenční listina'!F113=0,\"\",'Prezenční listina'!F113)","v":""},{"$f":"IF('Prezenční listina'!F113=0,\"\",'Prezenční listina'!B113)","v":""},{"$f":"IF('Prezenční listina'!F113=0,\"\",'Prezenční listina'!C113)","v":""},{"$f":"IF('Prezenční listina'!F113=0,\"\",'Prezenční listina'!D113)","v":""},{"$f":"IF('Prezenční listina'!F113=0,\"\",'Prezenční listina'!E113)","v":""},{"$f":"IF('Prezenční listina'!F113=0,\"\",'Prezenční listina'!H113)","v":""}]
["",{"$f":"IF('Prezenční listina'!F114=0,\"\",'Prezenční listina'!F114)","v":""},{"$f":"IF('Prezenční listina'!F114=0,\"\",'Prezenční listina'!B114)","v":""},{"$f":"IF('Prezenční listina'!F114=0,\"\",'Prezenční listina'!C114)","v":""},{"$f":"IF('Prezenční listina'!F114=0,\"\",'Prezenční listina'!D114)","v":""},{"$f":"IF('Prezenční listina'!F114=0,\"\",'Prezenční listina'!E114)","v":""},{"$f":"IF('Prezenční listina'!F114=0,\"\",'Prezenční listina'!H114)","v":""}]
["",{"$f":"IF('Prezenční listina'!F115=0,\"\",'Prezenční listina'!F115)","v":""},{"$f":"IF('Prezenční listina'!F115=0,\"\",'Prezenční listina'!B115)","v":""},{"$f":"IF('Prezenční listina'!F115=0,\"\",'Prezenční listina'!C115)","v":""},{"$f":"IF('Prezenční listina'!F115=0,\"\",'Prezenční listina'!D115)","v":""},{"$f":"IF('Prezenční listina'!F115=0,\"\",'Prezenční listina'!E115)","v":""},{"$f":"IF('Prezenční listina'!F115=0,\"\",'Prezenční listina'!H115)","v":""}]
["",{"$f":"IF('Prezenční listina'!F116=0,\"\",'Prezenční listina'!F116)","v":""},{"$f":"IF('Prezenční listina'!F116=0,\"\",'Prezenční listina'!B116)","v":""},{"$f":"IF('Prezenční listina'!F116=0,\"\",'Prezenční listina'!C116)","v":""},{"$f":"IF('Prezenční listina'!F116=0,\"\",'Prezenční listina'!D116)","v":""},{"$f":"IF('Prezenční listina'!F116=0,\"\",'Prezenční listina'!E116)","v":""},{"$f":"IF('Prezenční listina'!F116=0,\"\",'Prezenční listina'!H116)","v":""}]
["",{"$f":"IF('Prezenční listina'!F117=0,\"\",'Prezenční listina'!F117)","v":""},{"$f":"IF('Prezenční listina'!F117=0,\"\",'Prezenční listina'!B117)","v":""},{"$f":"IF('Prezenční listina'!F117=0,\"\",'Prezenční listina'!C117)","v":""},{"$f":"IF('Prezenční listina'!F117=0,\"\",'Prezenční listina'!D117)","v":""},{"$f":"IF('Prezenční listina'!F117=0,\"\",'Prezenční listina'!E117)","v":""},{"$f":"IF('Prezenční listina'!F117=0,\"\",'Prezenční listina'!H117)","v":""}]
["",{"$f":"IF('Prezenční listina'!F118=0,\"\",'Prezenční listina'!F118)","v":""},{"$f":"IF('Prezenční listina'!F118=0,\"\",'Prezenční listina'!B118)","v":""},{"$f":"IF('Prezenční listina'!F118=0,\"\",'Prezenční listina'!C118)","v":""},{"$f":"IF('Prezenční listina'!F118=0,\"\",'Prezenční listina'!D118)","v":""},{"$f":"IF('Prezenční listina'!F118=0,\"\",'Prezenční listina'!E118)","v":""},{"$f":"IF('Prezenční listina'!F118=0,\"\",'Prezenční listina'!H118)","v":""}]
["",{"$f":"IF('Prezenční listina'!F119=0,\"\",'Prezenční listina'!F119)","v":""},{"$f":"IF('Prezenční listina'!F119=0,\"\",'Prezenční listina'!B119)","v":""},{"$f":"IF('Prezenční listina'!F119=0,\"\",'Prezenční listina'!C119)","v":""},{"$f":"IF('Prezenční listina'!F119=0,\"\",'Prezenční listina'!D119)","v":""},{"$f":"IF('Prezenční listina'!F119=0,\"\",'Prezenční listina'!E119)","v":""},{"$f":"IF('Prezenční listina'!F119=0,\"\",'Prezenční listina'!H119)","v":""}]
["",{"$f":"IF('Prezenční listina'!F120=0,\"\",'Prezenční listina'!F120)","v":""},{"$f":"IF('Prezenční listina'!F120=0,\"\",'Prezenční listina'!B120)","v":""},{"$f":"IF('Prezenční listina'!F120=0,\"\",'Prezenční listina'!C120)","v":""},{"$f":"IF('Prezenční listina'!F120=0,\"\",'Prezenční listina'!D120)","v":""},{"$f":"IF('Prezenční listina'!F120=0,\"\",'Prezenční listina'!E120)","v":""},{"$f":"IF('Prezenční listina'!F120=0,\"\",'Prezenční listina'!H120)","v":""}]
["",{"$f":"IF('Prezenční listina'!F121=0,\"\",'Prezenční listina'!F121)","v":""},{"$f":"IF('Prezenční listina'!F121=0,\"\",'Prezenční listina'!B121)","v":""},{"$f":"IF('Prezenční listina'!F121=0,\"\",'Prezenční listina'!C121)","v":""},{"$f":"IF('Prezenční listina'!F121=0,\"\",'Prezenční listina'!D121)","v":""},{"$f":"IF('Prezenční listina'!F121=0,\"\",'Prezenční listina'!E121)","v":""},{"$f":"IF('Prezenční listina'!F121=0,\"\",'Prezenční listina'!H121)","v":""}]
["",{"$f":"IF('Prezenční listina'!F122=0,\"\",'Prezenční listina'!F122)","v":""},{"$f":"IF('Prezenční listina'!F122=0,\"\",'Prezenční listina'!B122)","v":""},{"$f":"IF('Prezenční listina'!F122=0,\"\",'Prezenční listina'!C122)","v":""},{"$f":"IF('Prezenční listina'!F122=0,\"\",'Prezenční listina'!D122)","v":""},{"$f":"IF('Prezenční listina'!F122=0,\"\",'Prezenční listina'!E122)","v":""},{"$f":"IF('Prezenční listina'!F122=0,\"\",'Prezenční listina'!H122)","v":""}]
["",{"$f":"IF('Prezenční listina'!F123=0,\"\",'Prezenční listina'!F123)","v":""},{"$f":"IF('Prezenční listina'!F123=0,\"\",'Prezenční listina'!B123)","v":""},{"$f":"IF('Prezenční listina'!F123=0,\"\",'Prezenční listina'!C123)","v":""},{"$f":"IF('Prezenční listina'!F123=0,\"\",'Prezenční listina'!D123)","v":""},{"$f":"IF('Prezenční listina'!F123=0,\"\",'Prezenční listina'!E123)","v":""},{"$f":"IF('Prezenční listina'!F123=0,\"\",'Prezenční listina'!H123)","v":""}]
["",{"$f":"IF('Prezenční listina'!F124=0,\"\",'Prezenční listina'!F124)","v":""},{"$f":"IF('Prezenční listina'!F124=0,\"\",'Prezenční listina'!B124)","v":""},{"$f":"IF('Prezenční listina'!F124=0,\"\",'Prezenční listina'!C124)","v":""},{"$f":"IF('Prezenční listina'!F124=0,\"\",'Prezenční listina'!D124)","v":""},{"$f":"IF('Prezenční listina'!F124=0,\"\",'Prezenční listina'!E124)","v":""},{"$f":"IF('Prezenční listina'!F124=0,\"\",'Prezenční listina'!H124)","v":""}]
["",{"$f":"IF('Prezenční listina'!F125=0,\"\",'Prezenční listina'!F125)","v":""},{"$f":"IF('Prezenční listina'!F125=0,\"\",'Prezenční listina'!B125)","v":""},{"$f":"IF('Prezenční listina'!F125=0,\"\",'Prezenční listina'!C125)","v":""},{"$f":"IF('Prezenční listina'!F125=0,\"\",'Prezenční listina'!D125)","v":""},{"$f":"IF('Prezenční listina'!F125=0,\"\",'Prezenční listina'!E125)","v":""},{"$f":"IF('Prezenční listina'!F125=0,\"\",'Prezenční listina'!H125)","v":""}]
["",{"$f":"IF('Prezenční listina'!F126=0,\"\",'Prezenční listina'!F126)","v":""},{"$f":"IF('Prezenční listina'!F126=0,\"\",'Prezenční listina'!B126)","v":""},{"$f":"IF('Prezenční listina'!F126=0,\"\",'Prezenční listina'!C126)","v":""},{"$f":"IF('Prezenční listina'!F126=0,\"\",'Prezenční listina'!D126)","v":""},{"$f":"IF('Prezenční listina'!F126=0,\"\",'Prezenční listina'!E126)","v":""},{"$f":"IF('Prezenční listina'!F126=0,\"\",'Prezenční listina'!H126)","v":""}]
["",{"$f":"IF('Prezenční listina'!F127=0,\"\",'Prezenční listina'!F127)","v":""},{"$f":"IF('Prezenční listina'!F127=0,\"\",'Prezenční listina'!B127)","v":""},{"$f":"IF('Prezenční listina'!F127=0,\"\",'Prezenční listina'!C127)","v":""},{"$f":"IF('Prezenční listina'!F127=0,\"\",'Prezenční listina'!D127)","v":""},{"$f":"IF('Prezenční listina'!F127=0,\"\",'Prezenční listina'!E127)","v":""},{"$f":"IF('Prezenční listina'!F127=0,\"\",'Prezenční listina'!H127)","v":""}]
["",{"$f":"IF('Prezenční listina'!F128=0,\"\",'Prezenční listina'!F128)","v":""},{"$f":"IF('Prezenční listina'!F128=0,\"\",'Prezenční listina'!B128)","v":""},{"$f":"IF('Prezenční listina'!F128=0,\"\",'Prezenční listina'!C128)","v":""},{"$f":"IF('Prezenční listina'!F128=0,\"\",'Prezenční listina'!D128)","v":""},{"$f":"IF('Prezenční listina'!F128=0,\"\",'Prezenční listina'!E128)","v":""},{"$f":"IF('Prezenční listina'!F128=0,\"\",'Prezenční listina'!H128)","v":""}]
["",{"$f":"IF('Prezenční listina'!F129=0,\"\",'Prezenční listina'!F129)","v":""},{"$f":"IF('Prezenční listina'!F129=0,\"\",'Prezenční listina'!B129)","v":""},{"$f":"IF('Prezenční listina'!F129=0,\"\",'Prezenční listina'!C129)","v":""},{"$f":"IF('Prezenční listina'!F129=0,\"\",'Prezenční listina'!D129)","v":""},{"$f":"IF('Prezenční listina'!F129=0,\"\",'Prezenční listina'!E129)","v":""},{"$f":"IF('Prezenční listina'!F129=0,\"\",'Prezenční listina'!H129)","v":""}]
["",{"$f":"IF('Prezenční listina'!F130=0,\"\",'Prezenční listina'!F130)","v":""},{"$f":"IF('Prezenční listina'!F130=0,\"\",'Prezenční listina'!B130)","v":""},{"$f":"IF('Prezenční listina'!F130=0,\"\",'Prezenční listina'!C130)","v":""},{"$f":"IF('Prezenční listina'!F130=0,\"\",'Prezenční listina'!D130)","v":""},{"$f":"IF('Prezenční listina'!F130=0,\"\",'Prezenční listina'!E130)","v":""},{"$f":"IF('Prezenční listina'!F130=0,\"\",'Prezenční listina'!H130)","v":""}]
["",{"$f":"IF('Prezenční listina'!F131=0,\"\",'Prezenční listina'!F131)","v":""},{"$f":"IF('Prezenční listina'!F131=0,\"\",'Prezenční listina'!B131)","v":""},{"$f":"IF('Prezenční listina'!F131=0,\"\",'Prezenční listina'!C131)","v":""},{"$f":"IF('Prezenční listina'!F131=0,\"\",'Prezenční listina'!D131)","v":""},{"$f":"IF('Prezenční listina'!F131=0,\"\",'Prezenční listina'!E131)","v":""},{"$f":"IF('Prezenční listina'!F131=0,\"\",'Prezenční listina'!H131)","v":""}]
["",{"$f":"IF('Prezenční listina'!F132=0,\"\",'Prezenční listina'!F132)","v":""},{"$f":"IF('Prezenční listina'!F132=0,\"\",'Prezenční listina'!B132)","v":""},{"$f":"IF('Prezenční listina'!F132=0,\"\",'Prezenční listina'!C132)","v":""},{"$f":"IF('Prezenční listina'!F132=0,\"\",'Prezenční listina'!D132)","v":""},{"$f":"IF('Prezenční listina'!F132=0,\"\",'Prezenční listina'!E132)","v":""},{"$f":"IF('Prezenční listina'!F132=0,\"\",'Prezenční listina'!H132)","v":""}]
["",{"$f":"IF('Prezenční listina'!F133=0,\"\",'Prezenční listina'!F133)","v":""},{"$f":"IF('Prezenční listina'!F133=0,\"\",'Prezenční listina'!B133)","v":""},{"$f":"IF('Prezenční listina'!F133=0,\"\",'Prezenční listina'!C133)","v":""},{"$f":"IF('Prezenční listina'!F133=0,\"\",'Prezenční listina'!D133)","v":""},{"$f":"IF('Prezenční listina'!F133=0,\"\",'Prezenční listina'!E133)","v":""},{"$f":"IF('Prezenční listina'!F133=0,\"\",'Prezenční listina'!H133)","v":""}]
["",{"$f":"IF('Prezenční listina'!F134=0,\"\",'Prezenční listina'!F134)","v":""},{"$f":"IF('Prezenční listina'!F134=0,\"\",'Prezenční listina'!B134)","v":""},{"$f":"IF('Prezenční listina'!F134=0,\"\",'Prezenční listina'!C134)","v":""},{"$f":"IF('Prezenční listina'!F134=0,\"\",'Prezenční listina'!D134)","v":""},{"$f":"IF('Prezenční listina'!F134=0,\"\",'Prezenční listina'!E134)","v":""},{"$f":"IF('Prezenční listina'!F134=0,\"\",'Prezenční listina'!H134)","v":""}]
["",{"$f":"IF('Prezenční listina'!F135=0,\"\",'Prezenční listina'!F135)","v":""},{"$f":"IF('Prezenční listina'!F135=0,\"\",'Prezenční listina'!B135)","v":""},{"$f":"IF('Prezenční listina'!F135=0,\"\",'Prezenční listina'!C135)","v":""},{"$f":"IF('Prezenční listina'!F135=0,\"\",'Prezenční listina'!D135)","v":""},{"$f":"IF('Prezenční listina'!F135=0,\"\",'Prezenční listina'!E135)","v":""},{"$f":"IF('Prezenční listina'!F135=0,\"\",'Prezenční listina'!H135)","v":""}]
["",{"$f":"IF('Prezenční listina'!F136=0,\"\",'Prezenční listina'!F136)","v":""},{"$f":"IF('Prezenční listina'!F136=0,\"\",'Prezenční listina'!B136)","v":""},{"$f":"IF('Prezenční listina'!F136=0,\"\",'Prezenční listina'!C136)","v":""},{"$f":"IF('Prezenční listina'!F136=0,\"\",'Prezenční listina'!D136)","v":""},{"$f":"IF('Prezenční listina'!F136=0,\"\",'Prezenční listina'!E136)","v":""},{"$f":"IF('Prezenční listina'!F136=0,\"\",'Prezenční listina'!H136)","v":""}]
["",{"$f":"IF('Prezenční listina'!F137=0,\"\",'Prezenční listina'!F137)","v":""},{"$f":"IF('Prezenční listina'!F137=0,\"\",'Prezenční listina'!B137)","v":""},{"$f":"IF('Prezenční listina'!F137=0,\"\",'Prezenční listina'!C137)","v":""},{"$f":"IF('Prezenční listina'!F137=0,\"\",'Prezenční listina'!D137)","v":""},{"$f":"IF('Prezenční listina'!F137=0,\"\",'Prezenční listina'!E137)","v":""},{"$f":"IF('Prezenční listina'!F137=0,\"\",'Prezenční listina'!H137)","v":""}]
["",{"$f":"IF('Prezenční listina'!F138=0,\"\",'Prezenční listina'!F138)","v":""},{"$f":"IF('Prezenční listina'!F138=0,\"\",'Prezenční listina'!B138)","v":""},{"$f":"IF('Prezenční listina'!F138=0,\"\",'Prezenční listina'!C138)","v":""},{"$f":"IF('Prezenční listina'!F138=0,\"\",'Prezenční listina'!D138)","v":""},{"$f":"IF('Prezenční listina'!F138=0,\"\",'Prezenční listina'!E138)","v":""},{"$f":"IF('Prezenční listina'!F138=0,\"\",'Prezenční listina'!H138)","v":""}]
["",{"$f":"IF('Prezenční listina'!F139=0,\"\",'Prezenční listina'!F139)","v":""},{"$f":"IF('Prezenční listina'!F139=0,\"\",'Prezenční listina'!B139)","v":""},{"$f":"IF('Prezenční listina'!F139=0,\"\",'Prezenční listina'!C139)","v":""},{"$f":"IF('Prezenční listina'!F139=0,\"\",'Prezenční listina'!D139)","v":""},{"$f":"IF('Prezenční listina'!F139=0,\"\",'Prezenční listina'!E139)","v":""},{"$f":"IF('Prezenční listina'!F139=0,\"\",'Prezenční listina'!H139)","v":""}]

{"sheet":"Výsledková listina","index":2,"n_rows":104,"n_cols":11,"rows_kept":104,"cut":false,"hidden":false,"merged":[[0,0,0,8],[2,0,2,8],[1,0,1,8],[1,10,12,14]]}
[{"$f":"\"Výsledková listina - Malý svratecký maraton \"&'Prezenční listina'!O2","v":"Výsledková listina - Malý svratecký maraton 2019"}]
["2019-08-24",null,null,null,null,null,null,null,null,null,"\nPoté, co jsou dopsány časy VŠECH běžců, stisknout tlačítko 1.řazení \n\n\nVe sloupci B (Pořadí v kategorii) vytvořit posloupnou číselnou řadu pro každou kategorii a poté stisknout tlačítko 2.řazení\n\n\n                      !!! POZOR!!!\n\n               Použití tlačítek je nevratný krok!"]
[{"$f":"'Prezenční listina'!O2-1953&\". ročník\"","v":"66. ročník"}]
["Celkové pořadí","Pořadí v kategorii","Kategorie","Startovní číslo","Příjmení","Jméno","Narození","Oddíl / Bydliště","Čas"]
[1,1,{"$f":"'Startovní listina'!G46","v":"A"},{"$f":"'Startovní listina'!B46","v":43},{"$f":"'Startovní listina'!C46","v":"Exner"},{"$f":"'Startovní listina'!D46","v":"Jakub"},{"$f":"'Startovní listina'!E46","v":1983},{"$f":"'Startovní listina'!F46","v":"Swoboda-pteam"},"02:01:49"]
[1,1,{"$f":"'Startovní listina'!G56","v":"B"},{"$f":"'Startovní listina'!B56","v":53},{"$f":"'Startovní listina'!C56","v":"Orálek"},{"$f":"'Startovní listina'!D56","v":"Daniel"},{"$f":"'Startovní listina'!E56","v":1970},{"$f":"'Startovní listina'!F56","v":"behejbrno.com"},"02:09:13"]
[1,2,{"$f":"'Startovní listina'!G47","v":"B"},{"$f":"'Startovní listina'!B47","v":44},{"$f":"'Startovní listina'!C47","v":"Vintrlík"},{"$f":"'Startovní listina'!D47","v":"Martin"},{"$f":"'Startovní listina'!E47","v":1977},{"$f":"'Startovní listina'!F47","v":"Triatlon Křepice"},"02:14:56"]
[1,3,{"$f":"'Startovní listina'!G35","v":"B"},{"$f":"'Startovní listina'!B35","v":32},{"$f":"'Startovní listina'!C35","v":"Brázda"},{"$f":"'Startovní listina'!D35","v":"Richard"},{"$f":"'Startovní listina'!E35","v":1975},{"$f":"'Startovní listina'!F35","v":"Český běžecký klub, Brno"},"02:20:19"]
[1,4,{"$f":"'Startovní listina'!G73","v":"B"},{"$f":"'Startovní listina'!B73","v":70},{"$f":"'Startovní listina'!C73","v":"Konečný"},{"$f":"'Startovní listina'!D73","v":"Libor"},{"$f":"'Startovní listina'!E73","v":1971},{"$f":"'Startovní listina'!F73","v":"Kuřim"},"02:22:26"]
[1,2,{"$f":"'Startovní listina'!G33","v":"A"},{"$f":"'Startovní listina'!B33","v":30},{"$f":"'Startovní listina'!C33","v":"Příhoda"},{"$f":"'Startovní listina'!D33","v":"Jan"},{"$f":"'Startovní listina'!E33","v":1983},{"$f":"'Startovní listina'!F33","v":"Brno"},"02:23:20"]
[1,5,{"$f":"'Startovní listina'!G51","v":"B"},{"$f":"'Startovní listina'!B51","v":48},{"$f":"'Startovní listina'!C51","v":"Viščor"},{"$f":"'Startovní listina'!D51","v":"Pavel"},{"$f":"'Startovní listina'!E51","v":1974},{"$f":"'Startovní listina'!F51","v":"Brno"},"02:26:24"]
[1,6,{"$f":"'Startovní listina'!G45","v":"B"},{"$f":"'Startovní listina'!B45","v":42},{"$f":"'Startovní listina'!C45","v":"Šerák"},{"$f":"'Startovní listina'!D45","v":"Martin"},{"$f":"'Startovní listina'!E45","v":1978},{"$f":"'Startovní listina'!F45","v":"Sokol Bílovice nad Svitavou"},"02:28:34"]
[1,3,{"$f":"'Startovní listina'!G55","v":"A"},{"$f":"'Startovní listina'!B55","v":52},{"$f":"'Startovní listina'!C55","v":"Glier"},{"$f":"'Startovní listina'!D55","v":"Michal"},{"$f":"'Startovní listina'!E55","v":1982},{"$f":"'Startovní listina'!F55","v":"behejbrno.com"},"02:30:35"]
[1,4,{"$f":"'Startovní listina'!G17","v":"A"},{"$f":"'Startovní listina'!B17","v":13},{"$f":"'Startovní listina'!C17","v":"Fousek"},{"$f":"'Startovní listina'!D17","v":"Jan"},{"$f":"'Startovní listina'!E17","v":1991},{"$f":"'Startovní listina'!F17","v":"MKS Ostrava"},"02:31:06"]
[1,1,{"$f":"'Startovní listina'!G53","v":"D"},{"$f":"'Startovní listina'!B53","v":50},{"$f":"'Startovní listina'!C53","v":"Čuhel"},{"$f":"'Startovní listina'!D53","v":"Jiří"},{"$f":"'Startovní listina'!E53","v":1958},{"$f":"'Startovní listina'!F53","v":"Křtěnov"},"02:31:55"]
[1,7,{"$f":"'Startovní listina'!G48","v":"B"},{"$f":"'Startovní listina'!B48","v":45},{"$f":"'Startovní listina'!C48","v":"Kropáček"},{"$f":"'Startovní listina'!D48","v":"Jaroslav"},{"$f":"'Startovní listina'!E48","v":1970},{"$f":"'Startovní listina'!F48","v":"Triatlon Křepice"},"02:35:47"]
[1,1,{"$f":"'Startovní listina'!G41","v":"C"},{"$f":"'Startovní listina'!B41","v":38},{"$f":"'Startovní listina'!C41","v":"Svoboda"},{"$f":"'Startovní listina'!D41","v":"Petr"},{"$f":"'Startovní listina'!E41","v":1968},{"$f":"'Startovní listina'!F41","v":"AC Moravská Slavia Brno"},"02:38:18"]
[1,2,{"$f":"'Startovní listina'!G27","v":"C"},{"$f":"'Startovní listina'!B27","v":24},{"$f":"'Startovní listina'!C27","v":"Koutník"},{"$f":"'Startovní listina'!D27","v":"Lumír"},{"$f":"'Startovní listina'!E27","v":1967},{"$f":"'Startovní listina'!F27","v":"A.O. Spartak Vrchlabí"},"02:38:36"]
[1,8,{"$f":"'Startovní listina'!G70","v":"B"},{"$f":"'Startovní listina'!B70","v":67},{"$f":"'Startovní listina'!C70","v":"Dušil"},{"$f":"'Startovní listina'!D70","v":"Jarda"},{"$f":"'Startovní listina'!E70","v":1970},{"$f":"'Startovní listina'!F70","v":"Slaměnka (Brno)"},"02:39:48"]
[1,9,{"$f":"'Startovní listina'!G29","v":"B"},{"$f":"'Startovní listina'!B29","v":26},{"$f":"'Startovní listina'!C29","v":"Koudelka"},{"$f":"'Startovní listina'!D29","v":"Drahomír"},{"$f":"'Startovní listina'!E29","v":1971},{"$f":"'Startovní listina'!F29","v":"Meixner Consulting (Pětihosty)"},"02:40:32"]
[1,3,{"$f":"'Startovní listina'!G65","v":"C"},{"$f":"'Startovní listina'!B65","v":62},{"$f":"'Startovní listina'!C65","v":"Jílek"},{"$f":"'Startovní listina'!D65","v":"Jaroslav"},{"$f":"'Startovní listina'!E65","v":1966},{"$f":"'Startovní listina'!F65","v":"Bystřice nad Pernštejnem"},"02:40:41"]
[1,2,{"$f":"'Startovní listina'!G34","v":"D"},{"$f":"'Startovní listina'!B34","v":31},{"$f":"'Startovní listina'!C34","v":"Bělehrádek"},{"$f":"'Startovní listina'!D34","v":"Pavel"},{"$f":"'Startovní listina'!E34","v":1958},{"$f":"'Startovní listina'!F34","v":"TJ Čolek (Velké Tresné)"},"02:41:29"]
[1,10,{"$f":"'Startovní listina'!G28","v":"B"},{"$f":"'Startovní listina'!B28","v":25},{"$f":"'Startovní listina'!C28","v":"Kratochvíl"},{"$f":"'Startovní listina'!D28","v":"Jaroslav"},{"$f":"'Startovní listina'!E28","v":1977},{"$f":"'Startovní listina'!F28","v":"SDH Hluboké"},"02:41:37"]
[1,1,{"$f":"'Startovní listina'!G8","v":"H"},{"$f":"'Startovní listina'!B8","v":4},{"$f":"'Startovní listina'!C8","v":"Komárková"},{"$f":"'Startovní listina'!D8","v":"Zdeňka"},{"$f":"'Startovní listina'!E8","v":1974},{"$f":"'Startovní listina'!F8","v":"SDH Bolešín"},"02:42:32"]
[1,4,{"$f":"'Startovní listina'!G62","v":"C"},{"$f":"'Startovní listina'!B62","v":59},{"$f":"'Startovní listina'!C62","v":"Havlíček"},{"$f":"'Startovní listina'!D62","v":"Ivo"},{"$f":"'Startovní listina'!E62","v":1966},{"$f":"'Startovní listina'!F62","v":"Lánov Krkonoše"},"02:44:12"]
[1,11,{"$f":"'Startovní listina'!G59","v":"B"},{"$f":"'Startovní listina'!B59","v":56},{"$f":"'Startovní listina'!C59","v":"Vykoupil"},{"$f":"'Startovní listina'!D59","v":"Miloslav"},{"$f":"'Startovní listina'!E59","v":1972},{"$f":"'Startovní listina'!F59","v":"Veverská Bitýška"},"02:47:04"]
[1,5,{"$f":"'Startovní listina'!G44","v":"C"},{"$f":"'Startovní listina'!B44","v":41},{"$f":"'Startovní listina'!C44","v":"Otta"},{"$f":"'Startovní listina'!D44","v":"Roman"},{"$f":"'Startovní listina'!E44","v":1961},{"$f":"'Startovní listina'!F44","v":"Q Sport Vrchlabí"},"02:54:31"]
[1,3,{"$f":"'Startovní listina'!G31","v":"D"},{"$f":"'Startovní listina'!B31","v":28},{"$f":"'Startovní listina'!C31","v":"Fikejs"},{"$f":"'Startovní listina'!D31","v":"Vladimír"},{"$f":"'Startovní listina'!E31","v":1957},{"$f":"'Startovní listina'!F31","v":"3D Finess Race Team (Žamberk)"},"02:55:53"]
[1,12,{"$f":"'Startovní listina'!G43","v":"B"},{"$f":"'Startovní listina'!B43","v":40},{"$f":"'Startovní listina'!C43","v":"Řezníček"},{"$f":"'Startovní listina'!D43","v":"Petr"},{"$f":"'Startovní listina'!E43","v":1973},{"$f":"'Startovní listina'!F43","v":"Polnička"},"02:56:53"]
[1,13,{"$f":"'Startovní listina'!G36","v":"B"},{"$f":"'Startovní listina'!B36","v":33},{"$f":"'Startovní listina'!C36","v":"Krátký"},{"$f":"'Startovní listina'!D36","v":"Pavel"},{"$f":"'Startovní listina'!E36","v":1974},{"$f":"'Startovní listina'!F36","v":"TS Jan Kohut (Olomučany)"},"02:58:33"]
[1,6,{"$f":"'Startovní listina'!G39","v":"C"},{"$f":"'Startovní listina'!B39","v":36},{"$f":"'Startovní listina'!C39","v":"Dvořáček"},{"$f":"'Startovní listina'!D39","v":"Jiří"},{"$f":"'Startovní listina'!E39","v":1968},{"$f":"'Startovní listina'!F39","v":"Petrovice"},"03:01:47"]
[1,7,{"$f":"'Startovní listina'!G19","v":"C"},{"$f":"'Startovní listina'!B19","v":15},{"$f":"'Startovní listina'!C19","v":"Dvorský"},{"$f":"'Startovní listina'!D19","v":"Ladislav"},{"$f":"'Startovní listina'!E19","v":1965},{"$f":"'Startovní listina'!F19","v":"MKS Ostrava"},"03:02:05"]
[1,1,{"$f":"'Startovní listina'!G18","v":"E"},{"$f":"'Startovní listina'!B18","v":14},{"$f":"'Startovní listina'!C18","v":"Vytisk"},{"$f":"'Startovní listina'!D18","v":"Alfons"},{"$f":"'Startovní listina'!E18","v":1949},{"$f":"'Startovní listina'!F18","v":"MKS Ostrava"},"03:04:40"]
[1,5,{"$f":"'Startovní listina'!G20","v":"A"},{"$f":"'Startovní listina'!B20","v":16},{"$f":"'Startovní listina'!C20","v":"Berák"},{"$f":"'Startovní listina'!D20","v":"Lukáš"},{"$f":"'Startovní listina'!E20","v":1984},{"$f":"'Startovní listina'!F20","v":"Chotěvice"},"03:05:27"]
[1,14,{"$f":"'Startovní listina'!G54","v":"B"},{"$f":"'Startovní listina'!B54","v":51},{"$f":"'Startovní listina'!C54","v":"Weis"},{"$f":"'Startovní listina'!D54","v":"Josef"},{"$f":"'Startovní listina'!E54","v":1974},{"$f":"'Startovní listina'!F54","v":"Elite Sport Boskovice"},"03:05:47"]
[1,6,{"$f":"'Startovní listina'!G6","v":"A"},{"$f":"'Startovní listina'!B6","v":2},{"$f":"'Startovní listina'!C6","v":"Psula"},{"$f":"'Startovní listina'!D6","v":"Roman"},{"$f":"'Startovní listina'!E6","v":1984},{"$f":"'Startovní listina'!F6","v":"Ladermon Team (Olomouc)"},"03:09:12"]
[1,1,{"$f":"'Startovní listina'!G7","v":"F"},{"$f":"'Startovní listina'!B7","v":3},{"$f":"'Startovní listina'!C7","v":"Timmermansá"},{"$f":"'Startovní listina'!D7","v":"Aniek"},{"$f":"'Startovní listina'!E7","v":1985},{"$f":"'Startovní listina'!F7","v":"Autocamp Na Kopci"},"03:10:02"]
[1,8,{"$f":"'Startovní listina'!G10","v":"C"},{"$f":"'Startovní listina'!B10","v":6},{"$f":"'Startovní listina'!C10","v":"Rychecký"},{"$f":"'Startovní listina'!D10","v":"Tomáš"},{"$f":"'Startovní listina'!E10","v":1966},{"$f":"'Startovní listina'!F10","v":"HH Smíchov"},"03:10:06"]
[1,15,{"$f":"'Startovní listina'!G11","v":"B"},{"$f":"'Startovní listina'!B11","v":7},{"$f":"'Startovní listina'!C11","v":"Kalaš"},{"$f":"'Startovní listina'!D11","v":"Rudolf"},{"$f":"'Startovní listina'!E11","v":1971},{"$f":"'Startovní listina'!F11","v":"Boskovice"},"03:11:11"]
[1,16,{"$f":"'Startovní listina'!G57","v":"B"},{"$f":"'Startovní listina'!B57","v":54},{"$f":"'Startovní listina'!C57","v":"Sajdl"},{"$f":"'Startovní listina'!D57","v":"Ondřej"},{"$f":"'Startovní listina'!E57","v":1978},{"$f":"'Startovní listina'!F57","v":"Brno"},"03:12:16"]
[1,4,{"$f":"'Startovní listina'!G71","v":"D"},{"$f":"'Startovní listina'!B71","v":68},{"$f":"'Startovní listina'!C71","v":"Sedláček"},{"$f":"'Startovní listina'!D71","v":"Svatopluk"},{"$f":"'Startovní listina'!E71","v":1957},{"$f":"'Startovní listina'!F71","v":"AC Moravská Slavia Brno"},"03:12:40"]
[1,17,{"$f":"'Startovní listina'!G52","v":"B"},{"$f":"'Startovní listina'!B52","v":49},{"$f":"'Startovní listina'!C52","v":"Kovačič"},{"$f":"'Startovní listina'!D52","v":"Sebastian"},{"$f":"'Startovní listina'!E52","v":1978},{"$f":"'Startovní listina'!F52","v":"Bílovice nad Svitavou"},"03:12:50"]
[1,18,{"$f":"'Startovní listina'!G67","v":"B"},{"$f":"'Startovní listina'!B67","v":64},{"$f":"'Startovní listina'!C67","v":"Bezchleba"},{"$f":"'Startovní listina'!D67","v":"Petr"},{"$f":"'Startovní listina'!E67","v":1978},{"$f":"'Startovní listina'!F67","v":"SK TRI CYKLOCHLUBNA"},"03:13:11"]
[1,9,{"$f":"'Startovní listina'!G69","v":"C"},{"$f":"'Startovní listina'!B69","v":66},{"$f":"'Startovní listina'!C69","v":"Prokop"},{"$f":"'Startovní listina'!D69","v":"Ondřej"},{"$f":"'Startovní listina'!E69","v":1962},{"$f":"'Startovní listina'!F69","v":"ČAU, Brno"},"03:15:05"]
[1,19,{"$f":"'Startovní listina'!G60","v":"B"},{"$f":"'Startovní listina'!B60","v":57},{"$f":"'Startovní listina'!C60","v":"Lorenčík"},{"$f":"'Startovní listina'!D60","v":"Aleš"},{"$f":"'Startovní listina'!E60","v":1973},{"$f":"'Startovní listina'!F60","v":"Chrudim"},"03:15:49"]
[1,10,{"$f":"'Startovní listina'!G58","v":"C"},{"$f":"'Startovní listina'!B58","v":55},{"$f":"'Startovní listina'!C58","v":"Šůstek"},{"$f":"'Startovní listina'!D58","v":"Roman"},{"$f":"'Startovní listina'!E58","v":1968},{"$f":"'Startovní listina'!F58","v":"Brno"},"03:16:18"]
[1,11,{"$f":"'Startovní listina'!G68","v":"C"},{"$f":"'Startovní listina'!B68","v":65},{"$f":"'Startovní listina'!C68","v":"Čapka"},{"$f":"'Startovní listina'!D68","v":"František"},{"$f":"'Startovní listina'!E68","v":1968},{"$f":"'Startovní listina'!F68","v":"Minerva Boskovice"},"03:18:12"]
[1,1,{"$f":"'Startovní listina'!G61","v":"G"},{"$f":"'Startovní listina'!B61","v":58},{"$f":"'Startovní listina'!C61","v":"Jurgová"},{"$f":"'Startovní listina'!D61","v":"Martina"},{"$f":"'Startovní listina'!E61","v":1979},{"$f":"'Startovní listina'!F61","v":"Brno"},"03:18:32"]
[1,20,{"$f":"'Startovní listina'!G49","v":"B"},{"$f":"'Startovní listina'!B49","v":46},{"$f":"'Startovní listina'!C49","v":"Bracek"},{"$f":"'Startovní listina'!D49","v":"Petr"},{"$f":"'Startovní listina'!E49","v":1979},{"$f":"'Startovní listina'!F49","v":"Kuřim"},"03:19:13"]
[1,21,{"$f":"'Startovní listina'!G9","v":"B"},{"$f":"'Startovní listina'!B9","v":5},{"$f":"'Startovní listina'!C9","v":"Eliáš"},{"$f":"'Startovní listina'!D9","v":"Lukáš"},{"$f":"'Startovní listina'!E9","v":1979},{"$f":"'Startovní listina'!F9","v":"Ledová stěna Vír"},"03:23:40"]
[1,5,{"$f":"'Startovní listina'!G30","v":"D"},{"$f":"'Startovní listina'!B30","v":27},{"$f":"'Startovní listina'!C30","v":"Kubík"},{"$f":"'Startovní listina'!D30","v":"Jaromír"},{"$f":"'Startovní listina'!E30","v":1955},{"$f":"'Startovní listina'!F30","v":"Blansko"},"03:29:29"]
[1,7,{"$f":"'Startovní listina'!G13","v":"A"},{"$f":"'Startovní listina'!B13","v":9},{"$f":"'Startovní listina'!C13","v":"Pivec"},{"$f":"'Startovní listina'!D13","v":"Jan"},{"$f":"'Startovní listina'!E13","v":1981},{"$f":"'Startovní listina'!F13","v":"HALL 3000"},"03:31:09"]
[1,12,{"$f":"'Startovní listina'!G50","v":"C"},{"$f":"'Startovní listina'!B50","v":47},{"$f":"'Startovní listina'!C50","v":"Plachý"},{"$f":"'Startovní listina'!D50","v":"Martin"},{"$f":"'Startovní listina'!E50","v":1965},{"$f":"'Startovní listina'!F50","v":"MK Prostějov"},"03:33:23"]
[1,6,{"$f":"'Startovní listina'!G66","v":"D"},{"$f":"'Startovní listina'!B66","v":63},{"$f":"'Startovní listina'!C66","v":"Boháč"},{"$f":"'Startovní listina'!D66","v":"Jiří"},{"$f":"'Startovní listina'!E66","v":1954},{"$f":"'Startovní listina'!F66","v":"behejbrno.com"},"03:39:41"]
[1,13,{"$f":"'Startovní listina'!G14","v":"C"},{"$f":"'Startovní listina'!B14","v":10},{"$f":"'Startovní listina'!C14","v":"Bečička"},{"$f":"'Startovní listina'!D14","v":"Petr"},{"$f":"'Startovní listina'!E14","v":1960},{"$f":"'Startovní listina'!F14","v":"HALL 3000"},"03:42:06"]
[1,8,{"$f":"'Startovní listina'!G37","v":"A"},{"$f":"'Startovní listina'!B37","v":34},{"$f":"'Startovní listina'!C37","v":"Dvořák"},{"$f":"'Startovní listina'!D37","v":"Petr"},{"$f":"'Startovní listina'!E37","v":1986},{"$f":"'Startovní listina'!F37","v":"Brno"},"03:42:45"]
[1,9,{"$f":"'Startovní listina'!G24","v":"A"},{"$f":"'Startovní listina'!B24","v":21},{"$f":"'Startovní listina'!C24","v":"Podsedník"},{"$f":"'Startovní listina'!D24","v":"Marek"},{"$f":"'Startovní listina'!E24","v":1985},{"$f":"'Startovní listina'!F24","v":"Brno"},"03:44:07"]
[1,2,{"$f":"'Startovní listina'!G23","v":"G"},{"$f":"'Startovní listina'!B23","v":20},{"$f":"'Startovní listina'!C23","v":"Ježová"},{"$f":"'Startovní listina'!D23","v":"Martina"},{"$f":"'Startovní listina'!E23","v":1975},{"$f":"'Startovní listina'!F23","v":"Brno"},"03:45:47"]
[1,22,{"$f":"'Startovní listina'!G42","v":"B"},{"$f":"'Startovní listina'!B42","v":39},{"$f":"'Startovní listina'!C42","v":"Faja"},{"$f":"'Startovní listina'!D42","v":"Ondřej"},{"$f":"'Startovní listina'!E42","v":1976},{"$f":"'Startovní listina'!F42","v":"Brno"},"03:46:41"]
[1,3,{"$f":"'Startovní listina'!G64","v":"G"},{"$f":"'Startovní listina'!B64","v":61},{"$f":"'Startovní listina'!C64","v":"Munzarová"},{"$f":"'Startovní listina'!D64","v":"Věra"},{"$f":"'Startovní listina'!E64","v":1980},{"$f":"'Startovní listina'!F64","v":"Dalečín"},"03:47:40"]
[1,10,{"$f":"'Startovní listina'!G63","v":"A"},{"$f":"'Startovní listina'!B63","v":60},{"$f":"'Startovní listina'!C63","v":"Zedník"},{"$f":"'Startovní listina'!D63","v":"Petr"},{"$f":"'Startovní listina'!E63","v":1982},{"$f":"'Startovní listina'!F63","v":"Dalečín"},"03:47:42"]
[1,2,{"$f":"'Startovní listina'!G16","v":"E"},{"$f":"'Startovní listina'!B16","v":12},{"$f":"'Startovní listina'!C16","v":"Glier"},{"$f":"'Startovní listina'!D16","v":"Miroslav"},{"$f":"'Startovní listina'!E16","v":1949},{"$f":"'Startovní listina'!F16","v":"Ústí nad Labem"},"03:49:16"]
[1,7,{"$f":"'Startovní listina'!G22","v":"D"},{"$f":"'Startovní listina'!B22","v":18},{"$f":"'Startovní listina'!C22","v":"Bouček"},{"$f":"'Startovní listina'!D22","v":"Zdeněk"},{"$f":"'Startovní listina'!E22","v":1956},{"$f":"'Startovní listina'!F22","v":"Velké Meziříčí"},"03:50:30"]
[1,4,{"$f":"'Startovní listina'!G12","v":"G"},{"$f":"'Startovní listina'!B12","v":8},{"$f":"'Startovní listina'!C12","v":"Dostálová"},{"$f":"'Startovní listina'!D12","v":"Vendula"},{"$f":"'Startovní listina'!E12","v":1981},{"$f":"'Startovní listina'!F12","v":"HALL 3000"},"03:52:07"]
[1,23,{"$f":"'Startovní listina'!G72","v":"B"},{"$f":"'Startovní listina'!B72","v":69},{"$f":"'Startovní listina'!C72","v":"Crha"},{"$f":"'Startovní listina'!D72","v":"Radek"},{"$f":"'Startovní listina'!E72","v":1979},{"$f":"'Startovní listina'!F72","v":"NON AUTOS Radek CRHA (Vidonín)"},"04:03:55"]
[1,14,{"$f":"'Startovní listina'!G21","v":"C"},{"$f":"'Startovní listina'!B21","v":17},{"$f":"'Startovní listina'!C21","v":"Tůma"},{"$f":"'Startovní listina'!D21","v":"Petr"},{"$f":"'Startovní listina'!E21","v":1968},{"$f":"'Startovní listina'!F21","v":"Slatinští šneci (Slatina)"},"04:06:46"]
[1,3,{"$f":"'Startovní listina'!G26","v":"E"},{"$f":"'Startovní listina'!B26","v":23},{"$f":"'Startovní listina'!C26","v":"Holý"},{"$f":"'Startovní listina'!D26","v":"Josef"},{"$f":"'Startovní listina'!E26","v":1941},{"$f":"'Startovní listina'!F26","v":"AC Moravská Slavia Brno"},"04:22:22"]
[1,8,{"$f":"'Startovní listina'!G25","v":"D"},{"$f":"'Startovní listina'!B25","v":22},{"$f":"'Startovní listina'!C25","v":"Zejda"},{"$f":"'Startovní listina'!D25","v":"Ivo"},{"$f":"'Startovní listina'!E25","v":1956},{"$f":"'Startovní listina'!F25","v":"AC Moravská Slavia Brno"},"04:28:48"]
[1,15,{"$f":"'Startovní listina'!G38","v":"C"},{"$f":"'Startovní listina'!B38","v":35},{"$f":"'Startovní listina'!C38","v":"Krátký"},{"$f":"'Startovní listina'!D38","v":"Josef"},{"$f":"'Startovní listina'!E38","v":1965},{"$f":"'Startovní listina'!F38","v":"Hvězda Pardubice"},"04:29:51"]
[1,11,{"$f":"'Startovní listina'!G5","v":"A"},{"$f":"'Startovní listina'!B5","v":1},{"$f":"'Startovní listina'!C5","v":"Hanák"},{"$f":"'Startovní listina'!D5","v":"Martin"},{"$f":"'Startovní listina'!E5","v":1993},{"$f":"'Startovní listina'!F5","v":"Ujčov"},"DNF"]
[1,9,{"$f":"'Startovní listina'!G32","v":"D"},{"$f":"'Startovní listina'!B32","v":29},{"$f":"'Startovní listina'!C32","v":"Novotný"},{"$f":"'Startovní listina'!D32","v":"Jaroslav"},{"$f":"'Startovní listina'!E32","v":1955},{"$f":"'Startovní listina'!F32","v":"TEP Trutnov"},"DNF"]
[1,10,{"$f":"'Startovní listina'!G40","v":"D"},{"$f":"'Startovní listina'!B40","v":37},{"$f":"'Startovní listina'!C40","v":"Mareš"},{"$f":"'Startovní listina'!D40","v":"Bohumil"},{"$f":"'Startovní listina'!E40","v":1951},{"$f":"'Startovní listina'!F40","v":"Posilovna Průvan Brno"},"DNF"]
[1,5,{"$f":"'Startovní listina'!G15","v":"G"},{"$f":"'Startovní listina'!B15","v":11},{"$f":"'Startovní listina'!C15","v":"Komblisá"},{"$f":"'Startovní listina'!D15","v":"Michaela"},{"$f":"'Startovní listina'!E15","v":1981},{"$f":"'Startovní listina'!F15","v":"Izrael"},"DNF"]
[1,null,{"$f":"'Startovní listina'!G74","v":""},{"$f":"'Startovní listina'!B74","v":""},{"$f":"'Startovní listina'!C74","v":""},{"$f":"'Startovní listina'!D74","v":""},{"$f":"'Startovní listina'!E74","v":""},{"$f":"'Startovní listina'!F74","v":""}]
[1,null,{"$f":"'Startovní listina'!G75","v":""},{"$f":"'Startovní listina'!B75","v":""},{"$f":"'Startovní listina'!C75","v":""},{"$f":"'Startovní listina'!D75","v":""},{"$f":"'Startovní listina'!E75","v":""},{"$f":"'Startovní listina'!F75","v":""}]
[1,null,{"$f":"'Startovní listina'!G76","v":""},{"$f":"'Startovní listina'!B76","v":""},{"$f":"'Startovní listina'!C76","v":""},{"$f":"'Startovní listina'!D76","v":""},{"$f":"'Startovní listina'!E76","v":""},{"$f":"'Startovní listina'!F76","v":""}]
[1,null,{"$f":"'Startovní listina'!G77","v":""},{"$f":"'Startovní listina'!B77","v":""},{"$f":"'Startovní listina'!C77","v":""},{"$f":"'Startovní listina'!D77","v":""},{"$f":"'Startovní listina'!E77","v":""},{"$f":"'Startovní listina'!F77","v":""}]
[1,null,{"$f":"'Startovní listina'!G78","v":""},{"$f":"'Startovní listina'!B78","v":""},{"$f":"'Startovní listina'!C78","v":""},{"$f":"'Startovní listina'!D78","v":""},{"$f":"'Startovní listina'!E78","v":""},{"$f":"'Startovní listina'!F78","v":""}]
[1,null,{"$f":"'Startovní listina'!G79","v":""},{"$f":"'Startovní listina'!B79","v":""},{"$f":"'Startovní listina'!C79","v":""},{"$f":"'Startovní listina'!D79","v":""},{"$f":"'Startovní listina'!E79","v":""},{"$f":"'Startovní listina'!F79","v":""}]
[1,null,{"$f":"'Startovní listina'!G80","v":""},{"$f":"'Startovní listina'!B80","v":""},{"$f":"'Startovní listina'!C80","v":""},{"$f":"'Startovní listina'!D80","v":""},{"$f":"'Startovní listina'!E80","v":""},{"$f":"'Startovní listina'!F80","v":""}]
[1,null,{"$f":"'Startovní listina'!G81","v":""},{"$f":"'Startovní listina'!B81","v":""},{"$f":"'Startovní listina'!C81","v":""},{"$f":"'Startovní listina'!D81","v":""},{"$f":"'Startovní listina'!E81","v":""},{"$f":"'Startovní listina'!F81","v":""}]
[1,null,{"$f":"'Startovní listina'!G82","v":""},{"$f":"'Startovní listina'!B82","v":""},{"$f":"'Startovní listina'!C82","v":""},{"$f":"'Startovní listina'!D82","v":""},{"$f":"'Startovní listina'!E82","v":""},{"$f":"'Startovní listina'!F82","v":""}]
[1,null,{"$f":"'Startovní listina'!G83","v":""},{"$f":"'Startovní listina'!B83","v":""},{"$f":"'Startovní listina'!C83","v":""},{"$f":"'Startovní listina'!D83","v":""},{"$f":"'Startovní listina'!E83","v":""},{"$f":"'Startovní listina'!F83","v":""}]
[1,null,{"$f":"'Startovní listina'!G84","v":""},{"$f":"'Startovní listina'!B84","v":""},{"$f":"'Startovní listina'!C84","v":""},{"$f":"'Startovní listina'!D84","v":""},{"$f":"'Startovní listina'!E84","v":""},{"$f":"'Startovní listina'!F84","v":""}]
[1,null,{"$f":"'Startovní listina'!G85","v":""},{"$f":"'Startovní listina'!B85","v":""},{"$f":"'Startovní listina'!C85","v":""},{"$f":"'Startovní listina'!D85","v":""},{"$f":"'Startovní listina'!E85","v":""},{"$f":"'Startovní listina'!F85","v":""}]
[1,null,{"$f":"'Startovní listina'!G86","v":""},{"$f":"'Startovní listina'!B86","v":""},{"$f":"'Startovní listina'!C86","v":""},{"$f":"'Startovní listina'!D86","v":""},{"$f":"'Startovní listina'!E86","v":""},{"$f":"'Startovní listina'!F86","v":""}]
[1,null,{"$f":"'Startovní listina'!G87","v":""},{"$f":"'Startovní listina'!B87","v":""},{"$f":"'Startovní listina'!C87","v":""},{"$f":"'Startovní listina'!D87","v":""},{"$f":"'Startovní listina'!E87","v":""},{"$f":"'Startovní listina'!F87","v":""}]
[1,null,{"$f":"'Startovní listina'!G88","v":""},{"$f":"'Startovní listina'!B88","v":""},{"$f":"'Startovní listina'!C88","v":""},{"$f":"'Startovní listina'!D88","v":""},{"$f":"'Startovní listina'!E88","v":""},{"$f":"'Startovní listina'!F88","v":""}]
[1,null,{"$f":"'Startovní listina'!G89","v":""},{"$f":"'Startovní listina'!B89","v":""},{"$f":"'Startovní listina'!C89","v":""},{"$f":"'Startovní listina'!D89","v":""},{"$f":"'Startovní listina'!E89","v":""},{"$f":"'Startovní listina'!F89","v":""}]
[1,null,{"$f":"'Startovní listina'!G90","v":""},{"$f":"'Startovní listina'!B90","v":""},{"$f":"'Startovní listina'!C90","v":""},{"$f":"'Startovní listina'!D90","v":""},{"$f":"'Startovní listina'!E90","v":""},{"$f":"'Startovní listina'!F90","v":""}]
[1,null,{"$f":"'Startovní listina'!G91","v":""},{"$f":"'Startovní listina'!B91","v":""},{"$f":"'Startovní listina'!C91","v":""},{"$f":"'Startovní listina'!D91","v":""},{"$f":"'Startovní listina'!E91","v":""},{"$f":"'Startovní listina'!F91","v":""}]
[1,null,{"$f":"'Startovní listina'!G92","v":""},{"$f":"'Startovní listina'!B92","v":""},{"$f":"'Startovní listina'!C92","v":""},{"$f":"'Startovní listina'!D92","v":""},{"$f":"'Startovní listina'!E92","v":""},{"$f":"'Startovní listina'!F92","v":""}]
[1,null,{"$f":"'Startovní listina'!G93","v":""},{"$f":"'Startovní listina'!B93","v":""},{"$f":"'Startovní listina'!C93","v":""},{"$f":"'Startovní listina'!D93","v":""},{"$f":"'Startovní listina'!E93","v":""},{"$f":"'Startovní listina'!F93","v":""}]
[1,null,{"$f":"'Startovní listina'!G94","v":""},{"$f":"'Startovní listina'!B94","v":""},{"$f":"'Startovní listina'!C94","v":""},{"$f":"'Startovní listina'!D94","v":""},{"$f":"'Startovní listina'!E94","v":""},{"$f":"'Startovní listina'!F94","v":""}]
[1,null,{"$f":"'Startovní listina'!G95","v":""},{"$f":"'Startovní listina'!B95","v":""},{"$f":"'Startovní listina'!C95","v":""},{"$f":"'Startovní listina'!D95","v":""},{"$f":"'Startovní listina'!E95","v":""},{"$f":"'Startovní listina'!F95","v":""}]
[1,null,{"$f":"'Startovní listina'!G96","v":""},{"$f":"'Startovní listina'!B96","v":""},{"$f":"'Startovní listina'!C96","v":""},{"$f":"'Startovní listina'!D96","v":""},{"$f":"'Startovní listina'!E96","v":""},{"$f":"'Startovní listina'!F96","v":""}]
[1,null,{"$f":"'Startovní listina'!G97","v":""},{"$f":"'Startovní listina'!B97","v":""},{"$f":"'Startovní listina'!C97","v":""},{"$f":"'Startovní listina'!D97","v":""},{"$f":"'Startovní listina'!E97","v":""},{"$f":"'Startovní listina'!F97","v":""}]
[1,null,{"$f":"'Startovní listina'!G98","v":""},{"$f":"'Startovní listina'!B98","v":""},{"$f":"'Startovní listina'!C98","v":""},{"$f":"'Startovní listina'!D98","v":""},{"$f":"'Startovní listina'!E98","v":""},{"$f":"'Startovní listina'!F98","v":""}]
[1,null,{"$f":"'Startovní listina'!G99","v":""},{"$f":"'Startovní listina'!B99","v":""},{"$f":"'Startovní listina'!C99","v":""},{"$f":"'Startovní listina'!D99","v":""},{"$f":"'Startovní listina'!E99","v":""},{"$f":"'Startovní listina'!F99","v":""}]
[1,null,{"$f":"'Startovní listina'!G100","v":""},{"$f":"'Startovní listina'!B100","v":""},{"$f":"'Startovní listina'!C100","v":""},{"$f":"'Startovní listina'!D100","v":""},{"$f":"'Startovní listina'!E100","v":""},{"$f":"'Startovní listina'!F100","v":""}]
[1,null,{"$f":"'Startovní listina'!G101","v":""},{"$f":"'Startovní listina'!B101","v":""},{"$f":"'Startovní listina'!C101","v":""},{"$f":"'Startovní listina'!D101","v":""},{"$f":"'Startovní listina'!E101","v":""},{"$f":"'Startovní listina'!F101","v":""}]
[1,null,{"$f":"'Startovní listina'!G102","v":""},{"$f":"'Startovní listina'!B102","v":""},{"$f":"'Startovní listina'!C102","v":""},{"$f":"'Startovní listina'!D102","v":""},{"$f":"'Startovní listina'!E102","v":""},{"$f":"'Startovní listina'!F102","v":""}]
[1,null,{"$f":"'Startovní listina'!G103","v":""},{"$f":"'Startovní listina'!B103","v":""},{"$f":"'Startovní listina'!C103","v":""},{"$f":"'Startovní listina'!D103","v":""},{"$f":"'Startovní listina'!E103","v":""},{"$f":"'Startovní listina'!F103","v":""}]
[1,null,{"$f":"'Startovní listina'!G104","v":""},{"$f":"'Startovní listina'!B104","v":""},{"$f":"'Startovní listina'!C104","v":""},{"$f":"'Startovní listina'!D104","v":""},{"$f":"'Startovní listina'!E104","v":""},{"$f":"'Startovní listina'!F104","v":""}]

{"sheet":"Družstva","index":3,"n_rows":21,"n_cols":11,"rows_kept":21,"cut":false,"hidden":false,"merged":[[3,8,4,8],[11,8,12,8],[0,1,0,8],[1,1,1,8],[13,8,14,8],[3,1,4,1],[11,1,12,1],[5,1,6,1],[7,1,8,1],[9,1,10,1],[5,6,6,6],[13,1,14,1],[3,6,4,6],[13,6,14,6],[7,6,8,6],[9,6,10,6],[11,6,12,6],[5,8,6,8],[7,8,8,8],[9,8,10,8],[15,1,16,1],[15,6,16,6],[15,8,16,8],[17,1,18,1],[17,6,18,6],[17,8,18,8],[19,1,20,1],[19,6,20,6],[19,8,20,8]]}
[null,{"$f":"\"Výsledková listina - Malý svratecký maratón \"&'Prezenční listina'!O2&\" - družstva\"","v":"Výsledková listina - Malý svratecký maratón 2019 - družstva"}]
[null,{"$f":"'Prezenční listina'!O2-1953&\". ročník\"","v":"66. ročník"}]
[null,"Pořadí","Startovní číslo","Příjmení","Jméno","Narození","Oddíl / Bydliště","Čas","Výsledný čas"]
[null,"1.",44,{"$f":"IF(ISERROR(VLOOKUP(C4,'Startovní listina'!$B$5:$F$141,2)),\"\",VLOOKUP(C4,'Startovní listina'!$B$5:$F$141,2))","v":"Vintrlík"},{"$f":"IF(ISERROR(VLOOKUP(C4,'Startovní listina'!$B$5:$F$141,3)),\"\",VLOOKUP(C4,'Startovní listina'!$B$5:$F$141,3))","v":"Martin"},{"$f":"IF(ISERROR(VLOOKUP(C4,'Startovní listina'!$B$5:$F$141,4)),\"\",VLOOKUP(C4,'Startovní listina'!$B$5:$F$141,4))","v":1977},{"$f":"IF(K4=K5,K4,\"RŮZNÉ ODDÍLY !!!\")","v":"Triatlon Křepice"},"02:14:56",{"$f":"H4+H5","v":"04:50:43"},null,{"$f":"IF(ISERROR(VLOOKUP(C4,'Startovní listina'!$B$5:$F$141,5)),\"\",VLOOKUP(C4,'Startovní listina'!$B$5:$F$141,5))","v":"Triatlon Křepice"}]
[null,null,45,{"$f":"IF(ISERROR(VLOOKUP(C5,'Startovní listina'!$B$5:$F$141,2)),\"\",VLOOKUP(C5,'Startovní listina'!$B$5:$F$141,2))","v":"Kropáček"},{"$f":"IF(ISERROR(VLOOKUP(C5,'Startovní listina'!$B$5:$F$141,3)),\"\",VLOOKUP(C5,'Startovní listina'!$B$5:$F$141,3))","v":"Jaroslav"},{"$f":"IF(ISERROR(VLOOKUP(C5,'Startovní listina'!$B$5:$F$141,4)),\"\",VLOOKUP(C5,'Startovní listina'!$B$5:$F$141,4))","v":1970},null,"02:35:47",null,null,{"$f":"IF(ISERROR(VLOOKUP(C5,'Startovní listina'!$B$5:$F$141,5)),\"\",VLOOKUP(C5,'Startovní listina'!$B$5:$F$141,5))","v":"Triatlon Křepice"}]
[null,"2.",52,{"$f":"IF(ISERROR(VLOOKUP(C6,'Startovní listina'!$B$5:$F$141,2)),\"\",VLOOKUP(C6,'Startovní listina'!$B$5:$F$141,2))","v":"Glier"},{"$f":"IF(ISERROR(VLOOKUP(C6,'Startovní listina'!$B$5:$F$141,3)),\"\",VLOOKUP(C6,'Startovní listina'!$B$5:$F$141,3))","v":"Michal"},{"$f":"IF(ISERROR(VLOOKUP(C6,'Startovní listina'!$B$5:$F$141,4)),\"\",VLOOKUP(C6,'Startovní listina'!$B$5:$F$141,4))","v":1982},{"$f":"IF(K6=K7,K6,\"RŮZNÉ ODDÍLY !!!\")","v":"behejbrno.com"},"02:30:35",{"$f":"H6+H7","v":"04:39:48"},null,{"$f":"IF(ISERROR(VLOOKUP(C6,'Startovní listina'!$B$5:$F$141,5)),\"\",VLOOKUP(C6,'Startovní listina'!$B$5:$F$141,5))","v":"behejbrno.com"}]
[null,null,53,{"$f":"IF(ISERROR(VLOOKUP(C7,'Startovní listina'!$B$5:$F$141,2)),\"\",VLOOKUP(C7,'Startovní listina'!$B$5:$F$141,2))","v":"Orálek"},{"$f":"IF(ISERROR(VLOOKUP(C7,'Startovní listina'!$B$5:$F$141,3)),\"\",VLOOKUP(C7,'Startovní listina'!$B$5:$F$141,3))","v":"Daniel"},{"$f":"IF(ISERROR(VLOOKUP(C7,'Startovní listina'!$B$5:$F$141,4)),\"\",VLOOKUP(C7,'Startovní listina'!$B$5:$F$141,4))","v":1970},null,"02:09:13",null,null,{"$f":"IF(ISERROR(VLOOKUP(C7,'Startovní listina'!$B$5:$F$141,5)),\"\",VLOOKUP(C7,'Startovní listina'!$B$5:$F$141,5))","v":"behejbrno.com"}]
[null,"3.",null,{"$f":"IF(ISERROR(VLOOKUP(C8,'Startovní listina'!$B$5:$F$141,2)),\"\",VLOOKUP(C8,'Startovní listina'!$B$5:$F$141,2))","v":""},{"$f":"IF(ISERROR(VLOOKUP(C8,'Startovní listina'!$B$5:$F$141,3)),\"\",VLOOKUP(C8,'Startovní listina'!$B$5:$F$141,3))","v":""},{"$f":"IF(ISERROR(VLOOKUP(C8,'Startovní listina'!$B$5:$F$141,4)),\"\",VLOOKUP(C8,'Startovní listina'!$B$5:$F$141,4))","v":""},{"$f":"IF(K8=K9,K8,\"RŮZNÉ ODDÍLY !!!\")","v":""},null,{"$f":"H8+H9","v":"00:00:00"},null,{"$f":"IF(ISERROR(VLOOKUP(C8,'Startovní listina'!$B$5:$F$141,5)),\"\",VLOOKUP(C8,'Startovní listina'!$B$5:$F$141,5))","v":""}]
[null,null,null,{"$f":"IF(ISERROR(VLOOKUP(C9,'Startovní listina'!$B$5:$F$141,2)),\"\",VLOOKUP(C9,'Startovní listina'!$B$5:$F$141,2))","v":""},{"$f":"IF(ISERROR(VLOOKUP(C9,'Startovní listina'!$B$5:$F$141,3)),\"\",VLOOKUP(C9,'Startovní listina'!$B$5:$F$141,3))","v":""},{"$f":"IF(ISERROR(VLOOKUP(C9,'Startovní listina'!$B$5:$F$141,4)),\"\",VLOOKUP(C9,'Startovní listina'!$B$5:$F$141,4))","v":""},null,null,null,null,{"$f":"IF(ISERROR(VLOOKUP(C9,'Startovní listina'!$B$5:$F$141,5)),\"\",VLOOKUP(C9,'Startovní listina'!$B$5:$F$141,5))","v":""}]
[null,"4.",null,{"$f":"IF(ISERROR(VLOOKUP(C10,'Startovní listina'!$B$5:$F$141,2)),\"\",VLOOKUP(C10,'Startovní listina'!$B$5:$F$141,2))","v":""},{"$f":"IF(ISERROR(VLOOKUP(C10,'Startovní listina'!$B$5:$F$141,3)),\"\",VLOOKUP(C10,'Startovní listina'!$B$5:$F$141,3))","v":""},{"$f":"IF(ISERROR(VLOOKUP(C10,'Startovní listina'!$B$5:$F$141,4)),\"\",VLOOKUP(C10,'Startovní listina'!$B$5:$F$141,4))","v":""},{"$f":"IF(K10=K11,K10,\"RŮZNÉ ODDÍLY !!!\")","v":""},null,{"$f":"H10+H11","v":"00:00:00"},null,{"$f":"IF(ISERROR(VLOOKUP(C10,'Startovní listina'!$B$5:$F$141,5)),\"\",VLOOKUP(C10,'Startovní listina'!$B$5:$F$141,5))","v":""}]
[null,null,null,{"$f":"IF(ISERROR(VLOOKUP(C11,'Startovní listina'!$B$5:$F$141,2)),\"\",VLOOKUP(C11,'Startovní listina'!$B$5:$F$141,2))","v":""},{"$f":"IF(ISERROR(VLOOKUP(C11,'Startovní listina'!$B$5:$F$141,3)),\"\",VLOOKUP(C11,'Startovní listina'!$B$5:$F$141,3))","v":""},{"$f":"IF(ISERROR(VLOOKUP(C11,'Startovní listina'!$B$5:$F$141,4)),\"\",VLOOKUP(C11,'Startovní listina'!$B$5:$F$141,4))","v":""},null,null,null,null,{"$f":"IF(ISERROR(VLOOKUP(C11,'Startovní listina'!$B$5:$F$141,5)),\"\",VLOOKUP(C11,'Startovní listina'!$B$5:$F$141,5))","v":""}]
[null,"5.",null,{"$f":"IF(ISERROR(VLOOKUP(C12,'Startovní listina'!$B$5:$F$141,2)),\"\",VLOOKUP(C12,'Startovní listina'!$B$5:$F$141,2))","v":""},{"$f":"IF(ISERROR(VLOOKUP(C12,'Startovní listina'!$B$5:$F$141,3)),\"\",VLOOKUP(C12,'Startovní listina'!$B$5:$F$141,3))","v":""},{"$f":"IF(ISERROR(VLOOKUP(C12,'Startovní listina'!$B$5:$F$141,4)),\"\",VLOOKUP(C12,'Startovní listina'!$B$5:$F$141,4))","v":""},{"$f":"IF(K12=K13,K12,\"RŮZNÉ ODDÍLY !!!\")","v":""},null,{"$f":"H12+H13","v":"00:00:00"},null,{"$f":"IF(ISERROR(VLOOKUP(C12,'Startovní listina'!$B$5:$F$141,5)),\"\",VLOOKUP(C12,'Startovní listina'!$B$5:$F$141,5))","v":""}]
[null,null,null,{"$f":"IF(ISERROR(VLOOKUP(C13,'Startovní listina'!$B$5:$F$141,2)),\"\",VLOOKUP(C13,'Startovní listina'!$B$5:$F$141,2))","v":""},{"$f":"IF(ISERROR(VLOOKUP(C13,'Startovní listina'!$B$5:$F$141,3)),\"\",VLOOKUP(C13,'Startovní listina'!$B$5:$F$141,3))","v":""},{"$f":"IF(ISERROR(VLOOKUP(C13,'Startovní listina'!$B$5:$F$141,4)),\"\",VLOOKUP(C13,'Startovní listina'!$B$5:$F$141,4))","v":""},null,null,null,null,{"$f":"IF(ISERROR(VLOOKUP(C13,'Startovní listina'!$B$5:$F$141,5)),\"\",VLOOKUP(C13,'Startovní listina'!$B$5:$F$141,5))","v":""}]
[null,"6.",null,{"$f":"IF(ISERROR(VLOOKUP(C14,'Startovní listina'!$B$5:$F$141,2)),\"\",VLOOKUP(C14,'Startovní listina'!$B$5:$F$141,2))","v":""},{"$f":"IF(ISERROR(VLOOKUP(C14,'Startovní listina'!$B$5:$F$141,3)),\"\",VLOOKUP(C14,'Startovní listina'!$B$5:$F$141,3))","v":""},{"$f":"IF(ISERROR(VLOOKUP(C14,'Startovní listina'!$B$5:$F$141,4)),\"\",VLOOKUP(C14,'Startovní listina'!$B$5:$F$141,4))","v":""},{"$f":"IF(K14=K15,K14,\"RŮZNÉ ODDÍLY !!!\")","v":""},null,{"$f":"H14+H15","v":"00:00:00"},null,{"$f":"IF(ISERROR(VLOOKUP(C14,'Startovní listina'!$B$5:$F$141,5)),\"\",VLOOKUP(C14,'Startovní listina'!$B$5:$F$141,5))","v":""}]
[null,null,null,{"$f":"IF(ISERROR(VLOOKUP(C15,'Startovní listina'!$B$5:$F$141,2)),\"\",VLOOKUP(C15,'Startovní listina'!$B$5:$F$141,2))","v":""},{"$f":"IF(ISERROR(VLOOKUP(C15,'Startovní listina'!$B$5:$F$141,3)),\"\",VLOOKUP(C15,'Startovní listina'!$B$5:$F$141,3))","v":""},{"$f":"IF(ISERROR(VLOOKUP(C15,'Startovní listina'!$B$5:$F$141,4)),\"\",VLOOKUP(C15,'Startovní listina'!$B$5:$F$141,4))","v":""},null,null,null,null,{"$f":"IF(ISERROR(VLOOKUP(C15,'Startovní listina'!$B$5:$F$141,5)),\"\",VLOOKUP(C15,'Startovní listina'!$B$5:$F$141,5))","v":""}]
[null,"7.",null,{"$f":"IF(ISERROR(VLOOKUP(C16,'Startovní listina'!$B$5:$F$141,2)),\"\",VLOOKUP(C16,'Startovní listina'!$B$5:$F$141,2))","v":""},{"$f":"IF(ISERROR(VLOOKUP(C16,'Startovní listina'!$B$5:$F$141,3)),\"\",VLOOKUP(C16,'Startovní listina'!$B$5:$F$141,3))","v":""},{"$f":"IF(ISERROR(VLOOKUP(C16,'Startovní listina'!$B$5:$F$141,4)),\"\",VLOOKUP(C16,'Startovní listina'!$B$5:$F$141,4))","v":""},{"$f":"IF(K16=K17,K16,\"RŮZNÉ ODDÍLY !!!\")","v":""},null,{"$f":"H16+H17","v":"00:00:00"},null,{"$f":"IF(ISERROR(VLOOKUP(C16,'Startovní listina'!$B$5:$F$141,5)),\"\",VLOOKUP(C16,'Startovní listina'!$B$5:$F$141,5))","v":""}]
[null,null,null,{"$f":"IF(ISERROR(VLOOKUP(C17,'Startovní listina'!$B$5:$F$141,2)),\"\",VLOOKUP(C17,'Startovní listina'!$B$5:$F$141,2))","v":""},{"$f":"IF(ISERROR(VLOOKUP(C17,'Startovní listina'!$B$5:$F$141,3)),\"\",VLOOKUP(C17,'Startovní listina'!$B$5:$F$141,3))","v":""},{"$f":"IF(ISERROR(VLOOKUP(C17,'Startovní listina'!$B$5:$F$141,4)),\"\",VLOOKUP(C17,'Startovní listina'!$B$5:$F$141,4))","v":""},null,null,null,null,{"$f":"IF(ISERROR(VLOOKUP(C17,'Startovní listina'!$B$5:$F$141,5)),\"\",VLOOKUP(C17,'Startovní listina'!$B$5:$F$141,5))","v":""}]
[null,"8.",null,null,{"$f":"IF(ISERROR(VLOOKUP(C18,'Startovní listina'!$B$5:$F$141,3)),\"\",VLOOKUP(C18,'Startovní listina'!$B$5:$F$141,3))","v":""},null,null,null,{"$f":"H18+H19","v":"00:00:00"},null,{"$f":"IF(ISERROR(VLOOKUP(C18,'Startovní listina'!$B$5:$F$141,5)),\"\",VLOOKUP(C18,'Startovní listina'!$B$5:$F$141,5))","v":""}]
[null,null,null,null,{"$f":"IF(ISERROR(VLOOKUP(C19,'Startovní listina'!$B$5:$F$141,3)),\"\",VLOOKUP(C19,'Startovní listina'!$B$5:$F$141,3))","v":""},null,null,null,null,null,{"$f":"IF(ISERROR(VLOOKUP(C19,'Startovní listina'!$B$5:$F$141,5)),\"\",VLOOKUP(C19,'Startovní listina'!$B$5:$F$141,5))","v":""}]
[null,"9.",null,null,{"$f":"IF(ISERROR(VLOOKUP(C20,'Startovní listina'!$B$5:$F$141,3)),\"\",VLOOKUP(C20,'Startovní listina'!$B$5:$F$141,3))","v":""},null,null,null,{"$f":"H20+H21","v":"00:00:00"},null,{"$f":"IF(ISERROR(VLOOKUP(C20,'Startovní listina'!$B$5:$F$141,5)),\"\",VLOOKUP(C20,'Startovní listina'!$B$5:$F$141,5))","v":""}]
[null,null,null,null,{"$f":"IF(ISERROR(VLOOKUP(C21,'Startovní listina'!$B$5:$F$141,3)),\"\",VLOOKUP(C21,'Startovní listina'!$B$5:$F$141,3))","v":""},null,null,null,null,null,{"$f":"IF(ISERROR(VLOOKUP(C21,'Startovní listina'!$B$5:$F$141,5)),\"\",VLOOKUP(C21,'Startovní listina'!$B$5:$F$141,5))","v":""}]

{"sheet":"Běh Vírem","index":4,"n_rows":49,"n_cols":12,"rows_kept":49,"cut":false,"hidden":false,"merged":[[0,0,0,7],[1,0,1,7]]}
[{"$f":"\"Běh Vírem \"&'Prezenční listina'!O2","v":"Běh Vírem 2019"},null,null,null,null,null,null,null,null,"ročník 2001 a mladší"]
[{"$f":"'Prezenční listina'!O2-1966&\".ročník\"","v":"53.ročník"}]
[null,"Příjmení","Jméno","Narození","Oddíl / Bydliště","Startovní číslo","Čas","Pohlaví"]
[1,"Lorenčík","Kryštof",2004,"Atletika Chrudim",10,"00:12:26",{"$f":"IF(LEN(B4)=0,\" \",IF(MID(B4,LEN(B4),1)=\"á\",\"Ž\",\"M\"))","v":"M"}]
[{"$f":"IF(B4<>0,A4+1,\"\")","v":2},"Jílek","František",2004,"Velké Tresné",9,"00:12:53",{"$f":"IF(LEN(B5)=0,\" \",IF(MID(B5,LEN(B5),1)=\"á\",\"Ž\",\"M\"))","v":"M"}]
[{"$f":"IF(B5<>0,A5+1,\"\")","v":3},"Jílek","Benedikt",2006,"Velké Tresné",22,"00:13:02",{"$f":"IF(LEN(B6)=0,\" \",IF(MID(B6,LEN(B6),1)=\"á\",\"Ž\",\"M\"))","v":"M"}]
[4,"Kratochvíl","Tomáš",2008,"Moravany u Brna",40,"00:13:10",{"$f":"IF(LEN(B7)=0,\" \",IF(MID(B7,LEN(B7),1)=\"á\",\"Ž\",\"M\"))","v":"M"}]
[5,"Zeman","Martin",2008,"Moravská Slavia Brno",33,"00:13:13",{"$f":"IF(LEN(B8)=0,\" \",IF(MID(B8,LEN(B8),1)=\"á\",\"Ž\",\"M\"))","v":"M"}]
[6,"Štourač","Tomáš",2003,"Vír",6,"00:14:07",{"$f":"IF(LEN(B9)=0,\" \",IF(MID(B9,LEN(B9),1)=\"á\",\"Ž\",\"M\"))","v":"M"}]
[7,"Kincová","Kateřina",2003,"Štěpánov nad Svratkou",14,"00:15:22",{"$f":"IF(LEN(B10)=0,\" \",IF(MID(B10,LEN(B10),1)=\"á\",\"Ž\",\"M\"))","v":"Ž"}]
[8,"Kubíková","Vanesa",2009,"Vír",58,"00:16:23",{"$f":"IF(LEN(B11)=0,\" \",IF(MID(B11,LEN(B11),1)=\"á\",\"Ž\",\"M\"))","v":"Ž"},null,null,null,";"]
[9,"Resová","Martina",2003,"Vír",3,"00:18:27",{"$f":"IF(LEN(B12)=0,\" \",IF(MID(B12,LEN(B12),1)=\"á\",\"Ž\",\"M\"))","v":"Ž"}]
[10,"Klujová","Valentýna",2007,"Vír",4,"00:18:28",{"$f":"IF(LEN(B13)=0,\" \",IF(MID(B13,LEN(B13),1)=\"á\",\"Ž\",\"M\"))","v":"Ž"}]
[11,null,null,null,null,null,null,{"$f":"IF(LEN(B14)=0,\" \",IF(MID(B14,LEN(B14),1)=\"á\",\"Ž\",\"M\"))","v":" "}]
["",null,null,null,null,null,null,{"$f":"IF(LEN(B15)=0,\" \",IF(MID(B15,LEN(B15),1)=\"á\",\"Ž\",\"M\"))","v":" "}]
["",null,null,null,null,null,null,{"$f":"IF(LEN(B16)=0,\" \",IF(MID(B16,LEN(B16),1)=\"á\",\"Ž\",\"M\"))","v":" "}]
["",null,null,null,null,null,null,{"$f":"IF(LEN(B17)=0,\" \",IF(MID(B17,LEN(B17),1)=\"á\",\"Ž\",\"M\"))","v":" "}]
["",null,null,null,null,null,null,{"$f":"IF(LEN(B18)=0,\" \",IF(MID(B18,LEN(B18),1)=\"á\",\"Ž\",\"M\"))","v":" "}]
["",null,null,null,null,null,null,{"$f":"IF(LEN(B19)=0,\" \",IF(MID(B19,LEN(B19),1)=\"á\",\"Ž\",\"M\"))","v":" "}]
["",null,null,null,null,null,null,{"$f":"IF(LEN(B20)=0,\" \",IF(MID(B20,LEN(B20),1)=\"á\",\"Ž\",\"M\"))","v":" "}]
["",null,null,null,null,null,null,{"$f":"IF(LEN(B21)=0,\" \",IF(MID(B21,LEN(B21),1)=\"á\",\"Ž\",\"M\"))","v":" "}]
["",null,null,null,null,null,null,{"$f":"IF(LEN(B22)=0,\" \",IF(MID(B22,LEN(B22),1)=\"á\",\"Ž\",\"M\"))","v":" "}]
["",null,null,null,null,null,null,{"$f":"IF(LEN(B23)=0,\" \",IF(MID(B23,LEN(B23),1)=\"á\",\"Ž\",\"M\"))","v":" "}]
["",null,null,null,null,null,null,{"$f":"IF(LEN(B24)=0,\" \",IF(MID(B24,LEN(B24),1)=\"á\",\"Ž\",\"M\"))","v":" "}]
["",null,null,null,null,null,null,{"$f":"IF(LEN(B25)=0,\" \",IF(MID(B25,LEN(B25),1)=\"á\",\"Ž\",\"M\"))","v":" "}]
["",null,null,null,null,null,null,{"$f":"IF(LEN(B26)=0,\" \",IF(MID(B26,LEN(B26),1)=\"á\",\"Ž\",\"M\"))","v":" "}]
["",null,null,null,null,null,null,{"$f":"IF(LEN(B27)=0,\" \",IF(MID(B27,LEN(B27),1)=\"á\",\"Ž\",\"M\"))","v":" "}]
["",null,null,null,null,null,null,{"$f":"IF(LEN(B28)=0,\" \",IF(MID(B28,LEN(B28),1)=\"á\",\"Ž\",\"M\"))","v":" "}]
["",null,null,null,null,null,null,{"$f":"IF(LEN(B29)=0,\" \",IF(MID(B29,LEN(B29),1)=\"á\",\"Ž\",\"M\"))","v":" "}]
["",null,null,null,null,null,null,{"$f":"IF(LEN(B30)=0,\" \",IF(MID(B30,LEN(B30),1)=\"á\",\"Ž\",\"M\"))","v":" "}]
["",null,null,null,null,null,null,{"$f":"IF(LEN(B31)=0,\" \",IF(MID(B31,LEN(B31),1)=\"á\",\"Ž\",\"M\"))","v":" "}]
["",null,null,null,null,null,null,{"$f":"IF(LEN(B32)=0,\" \",IF(MID(B32,LEN(B32),1)=\"á\",\"Ž\",\"M\"))","v":" "}]
["",null,null,null,null,null,null,{"$f":"IF(LEN(B33)=0,\" \",IF(MID(B33,LEN(B33),1)=\"á\",\"Ž\",\"M\"))","v":" "}]
["",null,null,null,null,null,null,{"$f":"IF(LEN(B34)=0,\" \",IF(MID(B34,LEN(B34),1)=\"á\",\"Ž\",\"M\"))","v":" "}]
["",null,null,null,null,null,null,{"$f":"IF(LEN(B35)=0,\" \",IF(MID(B35,LEN(B35),1)=\"á\",\"Ž\",\"M\"))","v":" "}]
["",null,null,null,null,null,null,{"$f":"IF(LEN(B36)=0,\" \",IF(MID(B36,LEN(B36),1)=\"á\",\"Ž\",\"M\"))","v":" "}]
["",null,null,null,null,null,null,{"$f":"IF(LEN(B37)=0,\" \",IF(MID(B37,LEN(B37),1)=\"á\",\"Ž\",\"M\"))","v":" "}]
["",null,null,null,null,null,null,{"$f":"IF(LEN(B38)=0,\" \",IF(MID(B38,LEN(B38),1)=\"á\",\"Ž\",\"M\"))","v":" "}]
["",null,null,null,null,null,null,{"$f":"IF(LEN(B39)=0,\" \",IF(MID(B39,LEN(B39),1)=\"á\",\"Ž\",\"M\"))","v":" "}]
["",null,null,null,null,null,null,{"$f":"IF(LEN(B40)=0,\" \",IF(MID(B40,LEN(B40),1)=\"á\",\"Ž\",\"M\"))","v":" "}]
["",null,null,null,null,null,null,{"$f":"IF(LEN(B41)=0,\" \",IF(MID(B41,LEN(B41),1)=\"á\",\"Ž\",\"M\"))","v":" "}]
["",null,null,null,null,null,null,{"$f":"IF(LEN(B42)=0,\" \",IF(MID(B42,LEN(B42),1)=\"á\",\"Ž\",\"M\"))","v":" "}]
["",null,null,null,null,null,null,{"$f":"IF(LEN(B43)=0,\" \",IF(MID(B43,LEN(B43),1)=\"á\",\"Ž\",\"M\"))","v":" "}]
["",null,null,null,null,null,null,{"$f":"IF(LEN(B44)=0,\" \",IF(MID(B44,LEN(B44),1)=\"á\",\"Ž\",\"M\"))","v":" "}]
["",null,null,null,null,null,null,{"$f":"IF(LEN(B45)=0,\" \",IF(MID(B45,LEN(B45),1)=\"á\",\"Ž\",\"M\"))","v":" "}]
["",null,null,null,null,null,null,{"$f":"IF(LEN(B46)=0,\" \",IF(MID(B46,LEN(B46),1)=\"á\",\"Ž\",\"M\"))","v":" "}]
["",null,null,null,null,null,null,{"$f":"IF(LEN(B47)=0,\" \",IF(MID(B47,LEN(B47),1)=\"á\",\"Ž\",\"M\"))","v":" "}]
["",null,null,null,null,null,null,{"$f":"IF(LEN(B48)=0,\" \",IF(MID(B48,LEN(B48),1)=\"á\",\"Ž\",\"M\"))","v":" "}]
["",null,null,null,null,null,null,{"$f":"IF(LEN(B49)=0,\" \",IF(MID(B49,LEN(B49),1)=\"á\",\"Ž\",\"M\"))","v":" "}]

{"sheet":"mezičasy","index":5,"n_rows":30,"n_cols":8,"rows_kept":30,"cut":false,"hidden":false,"merged":[[0,0,0,1],[0,2,0,3],[0,4,0,5],[0,6,0,7]]}
["5. km",null,"10. km",null,"16. km",null,"25. km"]
["číslo","čas","číslo","čas","číslo","čas","číslo","čas"]
[null,":      :",null,":      :",null,":      :",null,":      :"]
[null,":      :",null,":      :",null,":      :",null,":      :"]
[null,":      :",null,":      :",null,":      :",null,":      :"]
[null,":      :",null,":      :",null,":      :",null,":      :"]
[null,":      :",null,":      :",null,":      :",null,":      :"]
[null,":      :",null,":      :",null,":      :",null,":      :"]
[null,":      :",null,":      :",null,":      :",null,":      :"]
[null,":      :",null,":      :",null,":      :",null,":      :"]
[null,":      :",null,":      :",null,":      :",null,":      :"]
[null,":      :",null,":      :",null,":      :",null,":      :"]
[null,":      :",null,":      :",null,":      :",null,":      :"]
[null,":      :",null,":      :",null,":      :",null,":      :"]
[null,":      :",null,":      :",null,":      :",null,":      :"]
[null,":      :",null,":      :",null,":      :",null,":      :"]
[null,":      :",null,":      :",null,":      :",null,":      :"]
[null,":      :",null,":      :",null,":      :",null,":      :"]
[null,":      :",null,":      :",null,":      :",null,":      :"]
[null,":      :",null,":      :",null,":      :",null,":      :"]
[null,":      :",null,":      :",null,":      :",null,":      :"]
[null,":      :",null,":      :",null,":      :",null,":      :"]
[null,":      :",null,":      :",null,":      :",null,":      :"]
[null,":      :",null,":      :",null,":      :",null,":      :"]
[null,":      :",null,":      :",null,":      :",null,":      :"]
[null,":      :",null,":      :",null,":      :",null,":      :"]
[null,":      :",null,":      :",null,":      :",null,":      :"]
[null,":      :",null,":      :",null,":      :",null,":      :"]
[null,":      :",null,":      :",null,":      :",null,":      :"]
[null,":      :",null,":      :",null,":      :",null,":      :"]

{"sheet":"Výsledková listina (3)","index":6,"n_rows":104,"n_cols":11,"rows_kept":104,"cut":false,"hidden":false,"merged":[[0,0,0,8],[1,0,1,8],[1,10,12,14],[2,0,2,8]]}
[{"$f":"\"Výsledková listina - Malý svratecký maraton \"&'Prezenční listina'!O2","v":"Výsledková listina - Malý svratecký maraton 2019"}]
["2019-08-24",null,null,null,null,null,null,null,null,null,"\nPoté, co jsou dopsány časy VŠECH běžců, stisknout tlačítko 1.řazení \n\n\nVe sloupci B (Pořadí v kategorii) vytvořit posloupnou číselnou řadu pro každou kategorii a poté stisknout tlačítko 2.řazení\n\n\n                      !!! POZOR!!!\n\n               Použití tlačítek je nevratný krok!"]
[{"$f":"'Prezenční listina'!O2-1953&\". ročník\"","v":"66. ročník"}]
["Celkové pořadí","Pořadí v kategorii","Kategorie","Startovní číslo","Příjmení","Jméno","Narození","Oddíl / Bydliště","Čas"]
[1,null,{"$f":"'Startovní listina'!G5","v":"A"},{"$f":"'Startovní listina'!B5","v":1},{"$f":"'Startovní listina'!C5","v":"Hanák"},{"$f":"'Startovní listina'!D5","v":"Martin"},{"$f":"'Startovní listina'!E5","v":1993},{"$f":"'Startovní listina'!F5","v":"Ujčov"},"DNF"]
[1,null,{"$f":"'Startovní listina'!G6","v":"A"},{"$f":"'Startovní listina'!B6","v":2},{"$f":"'Startovní listina'!C6","v":"Psula"},{"$f":"'Startovní listina'!D6","v":"Roman"},{"$f":"'Startovní listina'!E6","v":1984},{"$f":"'Startovní listina'!F6","v":"Ladermon Team (Olomouc)"},"03:09:12"]
[1,null,{"$f":"'Startovní listina'!G7","v":"F"},{"$f":"'Startovní listina'!B7","v":3},{"$f":"'Startovní listina'!C7","v":"Timmermansá"},{"$f":"'Startovní listina'!D7","v":"Aniek"},{"$f":"'Startovní listina'!E7","v":1985},{"$f":"'Startovní listina'!F7","v":"Autocamp Na Kopci"},"03:10:02"]
[1,null,{"$f":"'Startovní listina'!G8","v":"H"},{"$f":"'Startovní listina'!B8","v":4},{"$f":"'Startovní listina'!C8","v":"Komárková"},{"$f":"'Startovní listina'!D8","v":"Zdeňka"},{"$f":"'Startovní listina'!E8","v":1974},{"$f":"'Startovní listina'!F8","v":"SDH Bolešín"},"02:42:32"]
[1,null,{"$f":"'Startovní listina'!G9","v":"B"},{"$f":"'Startovní listina'!B9","v":5},{"$f":"'Startovní listina'!C9","v":"Eliáš"},{"$f":"'Startovní listina'!D9","v":"Lukáš"},{"$f":"'Startovní listina'!E9","v":1979},{"$f":"'Startovní listina'!F9","v":"Ledová stěna Vír"},"03:23:40"]
[1,null,{"$f":"'Startovní listina'!G10","v":"C"},{"$f":"'Startovní listina'!B10","v":6},{"$f":"'Startovní listina'!C10","v":"Rychecký"},{"$f":"'Startovní listina'!D10","v":"Tomáš"},{"$f":"'Startovní listina'!E10","v":1966},{"$f":"'Startovní listina'!F10","v":"HH Smíchov"},"03:10:06"]
[1,null,{"$f":"'Startovní listina'!G11","v":"B"},{"$f":"'Startovní listina'!B11","v":7},{"$f":"'Startovní listina'!C11","v":"Kalaš"},{"$f":"'Startovní listina'!D11","v":"Rudolf"},{"$f":"'Startovní listina'!E11","v":1971},{"$f":"'Startovní listina'!F11","v":"Boskovice"},"03:11:11"]
[1,null,{"$f":"'Startovní listina'!G12","v":"G"},{"$f":"'Startovní listina'!B12","v":8},{"$f":"'Startovní listina'!C12","v":"Dostálová"},{"$f":"'Startovní listina'!D12","v":"Vendula"},{"$f":"'Startovní listina'!E12","v":1981},{"$f":"'Startovní listina'!F12","v":"HALL 3000"},"03:52:07"]
[1,null,{"$f":"'Startovní listina'!G13","v":"A"},{"$f":"'Startovní listina'!B13","v":9},{"$f":"'Startovní listina'!C13","v":"Pivec"},{"$f":"'Startovní listina'!D13","v":"Jan"},{"$f":"'Startovní listina'!E13","v":1981},{"$f":"'Startovní listina'!F13","v":"HALL 3000"},"03:31:09"]
[1,null,{"$f":"'Startovní listina'!G14","v":"C"},{"$f":"'Startovní listina'!B14","v":10},{"$f":"'Startovní listina'!C14","v":"Bečička"},{"$f":"'Startovní listina'!D14","v":"Petr"},{"$f":"'Startovní listina'!E14","v":1960},{"$f":"'Startovní listina'!F14","v":"HALL 3000"},"03:42:06"]
[1,null,{"$f":"'Startovní listina'!G15","v":"G"},{"$f":"'Startovní listina'!B15","v":11},{"$f":"'Startovní listina'!C15","v":"Komblisá"},{"$f":"'Startovní listina'!D15","v":"Michaela"},{"$f":"'Startovní listina'!E15","v":1981},{"$f":"'Startovní listina'!F15","v":"Izrael"},"DNF"]
[1,null,{"$f":"'Startovní listina'!G16","v":"E"},{"$f":"'Startovní listina'!B16","v":12},{"$f":"'Startovní listina'!C16","v":"Glier"},{"$f":"'Startovní listina'!D16","v":"Miroslav"},{"$f":"'Startovní listina'!E16","v":1949},{"$f":"'Startovní listina'!F16","v":"Ústí nad Labem"},"03:49:16"]
[1,null,{"$f":"'Startovní listina'!G17","v":"A"},{"$f":"'Startovní listina'!B17","v":13},{"$f":"'Startovní listina'!C17","v":"Fousek"},{"$f":"'Startovní listina'!D17","v":"Jan"},{"$f":"'Startovní listina'!E17","v":1991},{"$f":"'Startovní listina'!F17","v":"MKS Ostrava"},"02:31:06"]
[1,null,{"$f":"'Startovní listina'!G18","v":"E"},{"$f":"'Startovní listina'!B18","v":14},{"$f":"'Startovní listina'!C18","v":"Vytisk"},{"$f":"'Startovní listina'!D18","v":"Alfons"},{"$f":"'Startovní listina'!E18","v":1949},{"$f":"'Startovní listina'!F18","v":"MKS Ostrava"},"03:04:40"]
[1,null,{"$f":"'Startovní listina'!G19","v":"C"},{"$f":"'Startovní listina'!B19","v":15},{"$f":"'Startovní listina'!C19","v":"Dvorský"},{"$f":"'Startovní listina'!D19","v":"Ladislav"},{"$f":"'Startovní listina'!E19","v":1965},{"$f":"'Startovní listina'!F19","v":"MKS Ostrava"},"03:02:05"]
[1,null,{"$f":"'Startovní listina'!G20","v":"A"},{"$f":"'Startovní listina'!B20","v":16},{"$f":"'Startovní listina'!C20","v":"Berák"},{"$f":"'Startovní listina'!D20","v":"Lukáš"},{"$f":"'Startovní listina'!E20","v":1984},{"$f":"'Startovní listina'!F20","v":"Chotěvice"},"03:05:27"]
[1,null,{"$f":"'Startovní listina'!G21","v":"C"},{"$f":"'Startovní listina'!B21","v":17},{"$f":"'Startovní listina'!C21","v":"Tůma"},{"$f":"'Startovní listina'!D21","v":"Petr"},{"$f":"'Startovní listina'!E21","v":1968},{"$f":"'Startovní listina'!F21","v":"Slatinští šneci (Slatina)"},"04:06:46"]
[1,null,{"$f":"'Startovní listina'!G22","v":"D"},{"$f":"'Startovní listina'!B22","v":18},{"$f":"'Startovní listina'!C22","v":"Bouček"},{"$f":"'Startovní listina'!D22","v":"Zdeněk"},{"$f":"'Startovní listina'!E22","v":1956},{"$f":"'Startovní listina'!F22","v":"Velké Meziříčí"},"03:50:30"]
[1,null,{"$f":"'Startovní listina'!G23","v":"G"},{"$f":"'Startovní listina'!B23","v":20},{"$f":"'Startovní listina'!C23","v":"Ježová"},{"$f":"'Startovní listina'!D23","v":"Martina"},{"$f":"'Startovní listina'!E23","v":1975},{"$f":"'Startovní listina'!F23","v":"Brno"},"03:45:47"]
[1,null,{"$f":"'Startovní listina'!G24","v":"A"},{"$f":"'Startovní listina'!B24","v":21},{"$f":"'Startovní listina'!C24","v":"Podsedník"},{"$f":"'Startovní listina'!D24","v":"Marek"},{"$f":"'Startovní listina'!E24","v":1985},{"$f":"'Startovní listina'!F24","v":"Brno"},"03:44:07"]
[1,null,{"$f":"'Startovní listina'!G25","v":"D"},{"$f":"'Startovní listina'!B25","v":22},{"$f":"'Startovní listina'!C25","v":"Zejda"},{"$f":"'Startovní listina'!D25","v":"Ivo"},{"$f":"'Startovní listina'!E25","v":1956},{"$f":"'Startovní listina'!F25","v":"AC Moravská Slavia Brno"},"04:28:48"]
[1,null,{"$f":"'Startovní listina'!G26","v":"E"},{"$f":"'Startovní listina'!B26","v":23},{"$f":"'Startovní listina'!C26","v":"Holý"},{"$f":"'Startovní listina'!D26","v":"Josef"},{"$f":"'Startovní listina'!E26","v":1941},{"$f":"'Startovní listina'!F26","v":"AC Moravská Slavia Brno"},"04:22:22"]
[1,null,{"$f":"'Startovní listina'!G27","v":"C"},{"$f":"'Startovní listina'!B27","v":24},{"$f":"'Startovní listina'!C27","v":"Koutník"},{"$f":"'Startovní listina'!D27","v":"Lumír"},{"$f":"'Startovní listina'!E27","v":1967},{"$f":"'Startovní listina'!F27","v":"A.O. Spartak Vrchlabí"},"02:38:36"]
[1,null,{"$f":"'Startovní listina'!G28","v":"B"},{"$f":"'Startovní listina'!B28","v":25},{"$f":"'Startovní listina'!C28","v":"Kratochvíl"},{"$f":"'Startovní listina'!D28","v":"Jaroslav"},{"$f":"'Startovní listina'!E28","v":1977},{"$f":"'Startovní listina'!F28","v":"SDH Hluboké"},"02:41:37"]
[1,null,{"$f":"'Startovní listina'!G29","v":"B"},{"$f":"'Startovní listina'!B29","v":26},{"$f":"'Startovní listina'!C29","v":"Koudelka"},{"$f":"'Startovní listina'!D29","v":"Drahomír"},{"$f":"'Startovní listina'!E29","v":1971},{"$f":"'Startovní listina'!F29","v":"Meixner Consulting (Pětihosty)"},"02:40:32"]
[1,null,{"$f":"'Startovní listina'!G30","v":"D"},{"$f":"'Startovní listina'!B30","v":27},{"$f":"'Startovní listina'!C30","v":"Kubík"},{"$f":"'Startovní listina'!D30","v":"Jaromír"},{"$f":"'Startovní listina'!E30","v":1955},{"$f":"'Startovní listina'!F30","v":"Blansko"},"03:29:29"]
[1,null,{"$f":"'Startovní listina'!G31","v":"D"},{"$f":"'Startovní listina'!B31","v":28},{"$f":"'Startovní listina'!C31","v":"Fikejs"},{"$f":"'Startovní listina'!D31","v":"Vladimír"},{"$f":"'Startovní listina'!E31","v":1957},{"$f":"'Startovní listina'!F31","v":"3D Finess Race Team (Žamberk)"},"02:55:53"]
[1,null,{"$f":"'Startovní listina'!G32","v":"D"},{"$f":"'Startovní listina'!B32","v":29},{"$f":"'Startovní listina'!C32","v":"Novotný"},{"$f":"'Startovní listina'!D32","v":"Jaroslav"},{"$f":"'Startovní listina'!E32","v":1955},{"$f":"'Startovní listina'!F32","v":"TEP Trutnov"},"DNF"]
[1,null,{"$f":"'Startovní listina'!G33","v":"A"},{"$f":"'Startovní listina'!B33","v":30},{"$f":"'Startovní listina'!C33","v":"Příhoda"},{"$f":"'Startovní listina'!D33","v":"Jan"},{"$f":"'Startovní listina'!E33","v":1983},{"$f":"'Startovní listina'!F33","v":"Brno"},"02:23:20"]
[1,null,{"$f":"'Startovní listina'!G34","v":"D"},{"$f":"'Startovní listina'!B34","v":31},{"$f":"'Startovní listina'!C34","v":"Bělehrádek"},{"$f":"'Startovní listina'!D34","v":"Pavel"},{"$f":"'Startovní listina'!E34","v":1958},{"$f":"'Startovní listina'!F34","v":"TJ Čolek (Velké Tresné)"},"02:41:29"]
[1,null,{"$f":"'Startovní listina'!G35","v":"B"},{"$f":"'Startovní listina'!B35","v":32},{"$f":"'Startovní listina'!C35","v":"Brázda"},{"$f":"'Startovní listina'!D35","v":"Richard"},{"$f":"'Startovní listina'!E35","v":1975},{"$f":"'Startovní listina'!F35","v":"Český běžecký klub, Brno"},"02:20:19"]
[1,null,{"$f":"'Startovní listina'!G36","v":"B"},{"$f":"'Startovní listina'!B36","v":33},{"$f":"'Startovní listina'!C36","v":"Krátký"},{"$f":"'Startovní listina'!D36","v":"Pavel"},{"$f":"'Startovní listina'!E36","v":1974},{"$f":"'Startovní listina'!F36","v":"TS Jan Kohut (Olomučany)"},"02:58:33"]
[1,null,{"$f":"'Startovní listina'!G37","v":"A"},{"$f":"'Startovní listina'!B37","v":34},{"$f":"'Startovní listina'!C37","v":"Dvořák"},{"$f":"'Startovní listina'!D37","v":"Petr"},{"$f":"'Startovní listina'!E37","v":1986},{"$f":"'Startovní listina'!F37","v":"Brno"},"03:42:45"]
[1,null,{"$f":"'Startovní listina'!G38","v":"C"},{"$f":"'Startovní listina'!B38","v":35},{"$f":"'Startovní listina'!C38","v":"Krátký"},{"$f":"'Startovní listina'!D38","v":"Josef"},{"$f":"'Startovní listina'!E38","v":1965},{"$f":"'Startovní listina'!F38","v":"Hvězda Pardubice"},"04:29:51"]
[1,null,{"$f":"'Startovní listina'!G39","v":"C"},{"$f":"'Startovní listina'!B39","v":36},{"$f":"'Startovní listina'!C39","v":"Dvořáček"},{"$f":"'Startovní listina'!D39","v":"Jiří"},{"$f":"'Startovní listina'!E39","v":1968},{"$f":"'Startovní listina'!F39","v":"Petrovice"},"03:01:47"]
[1,null,{"$f":"'Startovní listina'!G40","v":"D"},{"$f":"'Startovní listina'!B40","v":37},{"$f":"'Startovní listina'!C40","v":"Mareš"},{"$f":"'Startovní listina'!D40","v":"Bohumil"},{"$f":"'Startovní listina'!E40","v":1951},{"$f":"'Startovní listina'!F40","v":"Posilovna Průvan Brno"},"DNF"]
[1,null,{"$f":"'Startovní listina'!G41","v":"C"},{"$f":"'Startovní listina'!B41","v":38},{"$f":"'Startovní listina'!C41","v":"Svoboda"},{"$f":"'Startovní listina'!D41","v":"Petr"},{"$f":"'Startovní listina'!E41","v":1968},{"$f":"'Startovní listina'!F41","v":"AC Moravská Slavia Brno"},"02:38:18"]
[1,null,{"$f":"'Startovní listina'!G42","v":"B"},{"$f":"'Startovní listina'!B42","v":39},{"$f":"'Startovní listina'!C42","v":"Faja"},{"$f":"'Startovní listina'!D42","v":"Ondřej"},{"$f":"'Startovní listina'!E42","v":1976},{"$f":"'Startovní listina'!F42","v":"Brno"},"03:46:41"]
[1,null,{"$f":"'Startovní listina'!G43","v":"B"},{"$f":"'Startovní listina'!B43","v":40},{"$f":"'Startovní listina'!C43","v":"Řezníček"},{"$f":"'Startovní listina'!D43","v":"Petr"},{"$f":"'Startovní listina'!E43","v":1973},{"$f":"'Startovní listina'!F43","v":"Polnička"},"02:56:53"]
[1,null,{"$f":"'Startovní listina'!G44","v":"C"},{"$f":"'Startovní listina'!B44","v":41},{"$f":"'Startovní listina'!C44","v":"Otta"},{"$f":"'Startovní listina'!D44","v":"Roman"},{"$f":"'Startovní listina'!E44","v":1961},{"$f":"'Startovní listina'!F44","v":"Q Sport Vrchlabí"},"02:54:31"]
[1,null,{"$f":"'Startovní listina'!G45","v":"B"},{"$f":"'Startovní listina'!B45","v":42},{"$f":"'Startovní listina'!C45","v":"Šerák"},{"$f":"'Startovní listina'!D45","v":"Martin"},{"$f":"'Startovní listina'!E45","v":1978},{"$f":"'Startovní listina'!F45","v":"Sokol Bílovice nad Svitavou"},"02:28:34"]
[1,null,{"$f":"'Startovní listina'!G46","v":"A"},{"$f":"'Startovní listina'!B46","v":43},{"$f":"'Startovní listina'!C46","v":"Exner"},{"$f":"'Startovní listina'!D46","v":"Jakub"},{"$f":"'Startovní listina'!E46","v":1983},{"$f":"'Startovní listina'!F46","v":"Swoboda-pteam"},"02:01:49"]
[1,null,{"$f":"'Startovní listina'!G47","v":"B"},{"$f":"'Startovní listina'!B47","v":44},{"$f":"'Startovní listina'!C47","v":"Vintrlík"},{"$f":"'Startovní listina'!D47","v":"Martin"},{"$f":"'Startovní listina'!E47","v":1977},{"$f":"'Startovní listina'!F47","v":"Triatlon Křepice"},"02:14:56"]
[1,null,{"$f":"'Startovní listina'!G48","v":"B"},{"$f":"'Startovní listina'!B48","v":45},{"$f":"'Startovní listina'!C48","v":"Kropáček"},{"$f":"'Startovní listina'!D48","v":"Jaroslav"},{"$f":"'Startovní listina'!E48","v":1970},{"$f":"'Startovní listina'!F48","v":"Triatlon Křepice"},"02:35:47"]
[1,null,{"$f":"'Startovní listina'!G49","v":"B"},{"$f":"'Startovní listina'!B49","v":46},{"$f":"'Startovní listina'!C49","v":"Bracek"},{"$f":"'Startovní listina'!D49","v":"Petr"},{"$f":"'Startovní listina'!E49","v":1979},{"$f":"'Startovní listina'!F49","v":"Kuřim"},"03:19:13"]
[1,null,{"$f":"'Startovní listina'!G50","v":"C"},{"$f":"'Startovní listina'!B50","v":47},{"$f":"'Startovní listina'!C50","v":"Plachý"},{"$f":"'Startovní listina'!D50","v":"Martin"},{"$f":"'Startovní listina'!E50","v":1965},{"$f":"'Startovní listina'!F50","v":"MK Prostějov"},"03:33:23"]
[1,null,{"$f":"'Startovní listina'!G51","v":"B"},{"$f":"'Startovní listina'!B51","v":48},{"$f":"'Startovní listina'!C51","v":"Viščor"},{"$f":"'Startovní listina'!D51","v":"Pavel"},{"$f":"'Startovní listina'!E51","v":1974},{"$f":"'Startovní listina'!F51","v":"Brno"},"02:26:24"]
[1,null,{"$f":"'Startovní listina'!G52","v":"B"},{"$f":"'Startovní listina'!B52","v":49},{"$f":"'Startovní listina'!C52","v":"Kovačič"},{"$f":"'Startovní listina'!D52","v":"Sebastian"},{"$f":"'Startovní listina'!E52","v":1978},{"$f":"'Startovní listina'!F52","v":"Bílovice nad Svitavou"},"03:12:50"]
[1,null,{"$f":"'Startovní listina'!G53","v":"D"},{"$f":"'Startovní listina'!B53","v":50},{"$f":"'Startovní listina'!C53","v":"Čuhel"},{"$f":"'Startovní listina'!D53","v":"Jiří"},{"$f":"'Startovní listina'!E53","v":1958},{"$f":"'Startovní listina'!F53","v":"Křtěnov"},"02:31:55"]
[1,null,{"$f":"'Startovní listina'!G54","v":"B"},{"$f":"'Startovní listina'!B54","v":51},{"$f":"'Startovní listina'!C54","v":"Weis"},{"$f":"'Startovní listina'!D54","v":"Josef"},{"$f":"'Startovní listina'!E54","v":1974},{"$f":"'Startovní listina'!F54","v":"Elite Sport Boskovice"},"03:05:47"]
[1,null,{"$f":"'Startovní listina'!G55","v":"A"},{"$f":"'Startovní listina'!B55","v":52},{"$f":"'Startovní listina'!C55","v":"Glier"},{"$f":"'Startovní listina'!D55","v":"Michal"},{"$f":"'Startovní listina'!E55","v":1982},{"$f":"'Startovní listina'!F55","v":"behejbrno.com"},"02:30:35"]
[1,null,{"$f":"'Startovní listina'!G56","v":"B"},{"$f":"'Startovní listina'!B56","v":53},{"$f":"'Startovní listina'!C56","v":"Orálek"},{"$f":"'Startovní listina'!D56","v":"Daniel"},{"$f":"'Startovní listina'!E56","v":1970},{"$f":"'Startovní listina'!F56","v":"behejbrno.com"},"02:09:13"]
[1,null,{"$f":"'Startovní listina'!G57","v":"B"},{"$f":"'Startovní listina'!B57","v":54},{"$f":"'Startovní listina'!C57","v":"Sajdl"},{"$f":"'Startovní listina'!D57","v":"Ondřej"},{"$f":"'Startovní listina'!E57","v":1978},{"$f":"'Startovní listina'!F57","v":"Brno"},"03:12:16"]
[1,null,{"$f":"'Startovní listina'!G58","v":"C"},{"$f":"'Startovní listina'!B58","v":55},{"$f":"'Startovní listina'!C58","v":"Šůstek"},{"$f":"'Startovní listina'!D58","v":"Roman"},{"$f":"'Startovní listina'!E58","v":1968},{"$f":"'Startovní listina'!F58","v":"Brno"},"03:16:18"]
[1,null,{"$f":"'Startovní listina'!G59","v":"B"},{"$f":"'Startovní listina'!B59","v":56},{"$f":"'Startovní listina'!C59","v":"Vykoupil"},{"$f":"'Startovní listina'!D59","v":"Miloslav"},{"$f":"'Startovní listina'!E59","v":1972},{"$f":"'Startovní listina'!F59","v":"Veverská Bitýška"},"02:47:04"]
[1,null,{"$f":"'Startovní listina'!G60","v":"B"},{"$f":"'Startovní listina'!B60","v":57},{"$f":"'Startovní listina'!C60","v":"Lorenčík"},{"$f":"'Startovní listina'!D60","v":"Aleš"},{"$f":"'Startovní listina'!E60","v":1973},{"$f":"'Startovní listina'!F60","v":"Chrudim"},"03:15:49"]
[1,null,{"$f":"'Startovní listina'!G61","v":"G"},{"$f":"'Startovní listina'!B61","v":58},{"$f":"'Startovní listina'!C61","v":"Jurgová"},{"$f":"'Startovní listina'!D61","v":"Martina"},{"$f":"'Startovní listina'!E61","v":1979},{"$f":"'Startovní listina'!F61","v":"Brno"},"03:18:32"]
[1,null,{"$f":"'Startovní listina'!G62","v":"C"},{"$f":"'Startovní listina'!B62","v":59},{"$f":"'Startovní listina'!C62","v":"Havlíček"},{"$f":"'Startovní listina'!D62","v":"Ivo"},{"$f":"'Startovní listina'!E62","v":1966},{"$f":"'Startovní listina'!F62","v":"Lánov Krkonoše"},"02:44:12"]
[1,null,{"$f":"'Startovní listina'!G63","v":"A"},{"$f":"'Startovní listina'!B63","v":60},{"$f":"'Startovní listina'!C63","v":"Zedník"},{"$f":"'Startovní listina'!D63","v":"Petr"},{"$f":"'Startovní listina'!E63","v":1982},{"$f":"'Startovní listina'!F63","v":"Dalečín"},"03:47:42"]
[1,null,{"$f":"'Startovní listina'!G64","v":"G"},{"$f":"'Startovní listina'!B64","v":61},{"$f":"'Startovní listina'!C64","v":"Munzarová"},{"$f":"'Startovní listina'!D64","v":"Věra"},{"$f":"'Startovní listina'!E64","v":1980},{"$f":"'Startovní listina'!F64","v":"Dalečín"},"03:47:40"]
[1,null,{"$f":"'Startovní listina'!G65","v":"C"},{"$f":"'Startovní listina'!B65","v":62},{"$f":"'Startovní listina'!C65","v":"Jílek"},{"$f":"'Startovní listina'!D65","v":"Jaroslav"},{"$f":"'Startovní listina'!E65","v":1966},{"$f":"'Startovní listina'!F65","v":"Bystřice nad Pernštejnem"},"02:40:41"]
[1,null,{"$f":"'Startovní listina'!G66","v":"D"},{"$f":"'Startovní listina'!B66","v":63},{"$f":"'Startovní listina'!C66","v":"Boháč"},{"$f":"'Startovní listina'!D66","v":"Jiří"},{"$f":"'Startovní listina'!E66","v":1954},{"$f":"'Startovní listina'!F66","v":"behejbrno.com"},"03:39:41"]
[1,null,{"$f":"'Startovní listina'!G67","v":"B"},{"$f":"'Startovní listina'!B67","v":64},{"$f":"'Startovní listina'!C67","v":"Bezchleba"},{"$f":"'Startovní listina'!D67","v":"Petr"},{"$f":"'Startovní listina'!E67","v":1978},{"$f":"'Startovní listina'!F67","v":"SK TRI CYKLOCHLUBNA"},"03:13:11"]
[1,null,{"$f":"'Startovní listina'!G68","v":"C"},{"$f":"'Startovní listina'!B68","v":65},{"$f":"'Startovní listina'!C68","v":"Čapka"},{"$f":"'Startovní listina'!D68","v":"František"},{"$f":"'Startovní listina'!E68","v":1968},{"$f":"'Startovní listina'!F68","v":"Minerva Boskovice"},"03:18:12"]
[1,null,{"$f":"'Startovní listina'!G69","v":"C"},{"$f":"'Startovní listina'!B69","v":66},{"$f":"'Startovní listina'!C69","v":"Prokop"},{"$f":"'Startovní listina'!D69","v":"Ondřej"},{"$f":"'Startovní listina'!E69","v":1962},{"$f":"'Startovní listina'!F69","v":"ČAU, Brno"},"03:15:05"]
[1,null,{"$f":"'Startovní listina'!G70","v":"B"},{"$f":"'Startovní listina'!B70","v":67},{"$f":"'Startovní listina'!C70","v":"Dušil"},{"$f":"'Startovní listina'!D70","v":"Jarda"},{"$f":"'Startovní listina'!E70","v":1970},{"$f":"'Startovní listina'!F70","v":"Slaměnka (Brno)"},"02:39:48"]
[1,null,{"$f":"'Startovní listina'!G71","v":"D"},{"$f":"'Startovní listina'!B71","v":68},{"$f":"'Startovní listina'!C71","v":"Sedláček"},{"$f":"'Startovní listina'!D71","v":"Svatopluk"},{"$f":"'Startovní listina'!E71","v":1957},{"$f":"'Startovní listina'!F71","v":"AC Moravská Slavia Brno"},"03:12:40"]
[1,null,{"$f":"'Startovní listina'!G72","v":"B"},{"$f":"'Startovní listina'!B72","v":69},{"$f":"'Startovní listina'!C72","v":"Crha"},{"$f":"'Startovní listina'!D72","v":"Radek"},{"$f":"'Startovní listina'!E72","v":1979},{"$f":"'Startovní listina'!F72","v":"NON AUTOS Radek CRHA (Vidonín)"},"04:03:55"]
[1,null,{"$f":"'Startovní listina'!G73","v":"B"},{"$f":"'Startovní listina'!B73","v":70},{"$f":"'Startovní listina'!C73","v":"Konečný"},{"$f":"'Startovní listina'!D73","v":"Libor"},{"$f":"'Startovní listina'!E73","v":1971},{"$f":"'Startovní listina'!F73","v":"Kuřim"},"02:22:26"]
[1,null,{"$f":"'Startovní listina'!G74","v":""},{"$f":"'Startovní listina'!B74","v":""},{"$f":"'Startovní listina'!C74","v":""},{"$f":"'Startovní listina'!D74","v":""},{"$f":"'Startovní listina'!E74","v":""},{"$f":"'Startovní listina'!F74","v":""}]
[1,null,{"$f":"'Startovní listina'!G75","v":""},{"$f":"'Startovní listina'!B75","v":""},{"$f":"'Startovní listina'!C75","v":""},{"$f":"'Startovní listina'!D75","v":""},{"$f":"'Startovní listina'!E75","v":""},{"$f":"'Startovní listina'!F75","v":""}]
[1,null,{"$f":"'Startovní listina'!G76","v":""},{"$f":"'Startovní listina'!B76","v":""},{"$f":"'Startovní listina'!C76","v":""},{"$f":"'Startovní listina'!D76","v":""},{"$f":"'Startovní listina'!E76","v":""},{"$f":"'Startovní listina'!F76","v":""}]
[1,null,{"$f":"'Startovní listina'!G77","v":""},{"$f":"'Startovní listina'!B77","v":""},{"$f":"'Startovní listina'!C77","v":""},{"$f":"'Startovní listina'!D77","v":""},{"$f":"'Startovní listina'!E77","v":""},{"$f":"'Startovní listina'!F77","v":""}]
[1,null,{"$f":"'Startovní listina'!G78","v":""},{"$f":"'Startovní listina'!B78","v":""},{"$f":"'Startovní listina'!C78","v":""},{"$f":"'Startovní listina'!D78","v":""},{"$f":"'Startovní listina'!E78","v":""},{"$f":"'Startovní listina'!F78","v":""}]
[1,null,{"$f":"'Startovní listina'!G79","v":""},{"$f":"'Startovní listina'!B79","v":""},{"$f":"'Startovní listina'!C79","v":""},{"$f":"'Startovní listina'!D79","v":""},{"$f":"'Startovní listina'!E79","v":""},{"$f":"'Startovní listina'!F79","v":""}]
[1,null,{"$f":"'Startovní listina'!G80","v":""},{"$f":"'Startovní listina'!B80","v":""},{"$f":"'Startovní listina'!C80","v":""},{"$f":"'Startovní listina'!D80","v":""},{"$f":"'Startovní listina'!E80","v":""},{"$f":"'Startovní listina'!F80","v":""}]
[1,null,{"$f":"'Startovní listina'!G81","v":""},{"$f":"'Startovní listina'!B81","v":""},{"$f":"'Startovní listina'!C81","v":""},{"$f":"'Startovní listina'!D81","v":""},{"$f":"'Startovní listina'!E81","v":""},{"$f":"'Startovní listina'!F81","v":""}]
[1,null,{"$f":"'Startovní listina'!G82","v":""},{"$f":"'Startovní listina'!B82","v":""},{"$f":"'Startovní listina'!C82","v":""},{"$f":"'Startovní listina'!D82","v":""},{"$f":"'Startovní listina'!E82","v":""},{"$f":"'Startovní listina'!F82","v":""}]
[1,null,{"$f":"'Startovní listina'!G83","v":""},{"$f":"'Startovní listina'!B83","v":""},{"$f":"'Startovní listina'!C83","v":""},{"$f":"'Startovní listina'!D83","v":""},{"$f":"'Startovní listina'!E83","v":""},{"$f":"'Startovní listina'!F83","v":""}]
[1,null,{"$f":"'Startovní listina'!G84","v":""},{"$f":"'Startovní listina'!B84","v":""},{"$f":"'Startovní listina'!C84","v":""},{"$f":"'Startovní listina'!D84","v":""},{"$f":"'Startovní listina'!E84","v":""},{"$f":"'Startovní listina'!F84","v":""}]
[1,null,{"$f":"'Startovní listina'!G85","v":""},{"$f":"'Startovní listina'!B85","v":""},{"$f":"'Startovní listina'!C85","v":""},{"$f":"'Startovní listina'!D85","v":""},{"$f":"'Startovní listina'!E85","v":""},{"$f":"'Startovní listina'!F85","v":""}]
[1,null,{"$f":"'Startovní listina'!G86","v":""},{"$f":"'Startovní listina'!B86","v":""},{"$f":"'Startovní listina'!C86","v":""},{"$f":"'Startovní listina'!D86","v":""},{"$f":"'Startovní listina'!E86","v":""},{"$f":"'Startovní listina'!F86","v":""}]
[1,null,{"$f":"'Startovní listina'!G87","v":""},{"$f":"'Startovní listina'!B87","v":""},{"$f":"'Startovní listina'!C87","v":""},{"$f":"'Startovní listina'!D87","v":""},{"$f":"'Startovní listina'!E87","v":""},{"$f":"'Startovní listina'!F87","v":""}]
[1,null,{"$f":"'Startovní listina'!G88","v":""},{"$f":"'Startovní listina'!B88","v":""},{"$f":"'Startovní listina'!C88","v":""},{"$f":"'Startovní listina'!D88","v":""},{"$f":"'Startovní listina'!E88","v":""},{"$f":"'Startovní listina'!F88","v":""}]
[1,null,{"$f":"'Startovní listina'!G89","v":""},{"$f":"'Startovní listina'!B89","v":""},{"$f":"'Startovní listina'!C89","v":""},{"$f":"'Startovní listina'!D89","v":""},{"$f":"'Startovní listina'!E89","v":""},{"$f":"'Startovní listina'!F89","v":""}]
[1,null,{"$f":"'Startovní listina'!G90","v":""},{"$f":"'Startovní listina'!B90","v":""},{"$f":"'Startovní listina'!C90","v":""},{"$f":"'Startovní listina'!D90","v":""},{"$f":"'Startovní listina'!E90","v":""},{"$f":"'Startovní listina'!F90","v":""}]
[1,null,{"$f":"'Startovní listina'!G91","v":""},{"$f":"'Startovní listina'!B91","v":""},{"$f":"'Startovní listina'!C91","v":""},{"$f":"'Startovní listina'!D91","v":""},{"$f":"'Startovní listina'!E91","v":""},{"$f":"'Startovní listina'!F91","v":""}]
[1,null,{"$f":"'Startovní listina'!G92","v":""},{"$f":"'Startovní listina'!B92","v":""},{"$f":"'Startovní listina'!C92","v":""},{"$f":"'Startovní listina'!D92","v":""},{"$f":"'Startovní listina'!E92","v":""},{"$f":"'Startovní listina'!F92","v":""}]
[1,null,{"$f":"'Startovní listina'!G93","v":""},{"$f":"'Startovní listina'!B93","v":""},{"$f":"'Startovní listina'!C93","v":""},{"$f":"'Startovní listina'!D93","v":""},{"$f":"'Startovní listina'!E93","v":""},{"$f":"'Startovní listina'!F93","v":""}]
[1,null,{"$f":"'Startovní listina'!G94","v":""},{"$f":"'Startovní listina'!B94","v":""},{"$f":"'Startovní listina'!C94","v":""},{"$f":"'Startovní listina'!D94","v":""},{"$f":"'Startovní listina'!E94","v":""},{"$f":"'Startovní listina'!F94","v":""}]
[1,null,{"$f":"'Startovní listina'!G95","v":""},{"$f":"'Startovní listina'!B95","v":""},{"$f":"'Startovní listina'!C95","v":""},{"$f":"'Startovní listina'!D95","v":""},{"$f":"'Startovní listina'!E95","v":""},{"$f":"'Startovní listina'!F95","v":""}]
[1,null,{"$f":"'Startovní listina'!G96","v":""},{"$f":"'Startovní listina'!B96","v":""},{"$f":"'Startovní listina'!C96","v":""},{"$f":"'Startovní listina'!D96","v":""},{"$f":"'Startovní listina'!E96","v":""},{"$f":"'Startovní listina'!F96","v":""}]
[1,null,{"$f":"'Startovní listina'!G97","v":""},{"$f":"'Startovní listina'!B97","v":""},{"$f":"'Startovní listina'!C97","v":""},{"$f":"'Startovní listina'!D97","v":""},{"$f":"'Startovní listina'!E97","v":""},{"$f":"'Startovní listina'!F97","v":""}]
[1,null,{"$f":"'Startovní listina'!G98","v":""},{"$f":"'Startovní listina'!B98","v":""},{"$f":"'Startovní listina'!C98","v":""},{"$f":"'Startovní listina'!D98","v":""},{"$f":"'Startovní listina'!E98","v":""},{"$f":"'Startovní listina'!F98","v":""}]
[1,null,{"$f":"'Startovní listina'!G99","v":""},{"$f":"'Startovní listina'!B99","v":""},{"$f":"'Startovní listina'!C99","v":""},{"$f":"'Startovní listina'!D99","v":""},{"$f":"'Startovní listina'!E99","v":""},{"$f":"'Startovní listina'!F99","v":""}]
[1,null,{"$f":"'Startovní listina'!G100","v":""},{"$f":"'Startovní listina'!B100","v":""},{"$f":"'Startovní listina'!C100","v":""},{"$f":"'Startovní listina'!D100","v":""},{"$f":"'Startovní listina'!E100","v":""},{"$f":"'Startovní listina'!F100","v":""}]
[1,null,{"$f":"'Startovní listina'!G101","v":""},{"$f":"'Startovní listina'!B101","v":""},{"$f":"'Startovní listina'!C101","v":""},{"$f":"'Startovní listina'!D101","v":""},{"$f":"'Startovní listina'!E101","v":""},{"$f":"'Startovní listina'!F101","v":""}]
[1,null,{"$f":"'Startovní listina'!G102","v":""},{"$f":"'Startovní listina'!B102","v":""},{"$f":"'Startovní listina'!C102","v":""},{"$f":"'Startovní listina'!D102","v":""},{"$f":"'Startovní listina'!E102","v":""},{"$f":"'Startovní listina'!F102","v":""}]
[1,null,{"$f":"'Startovní listina'!G103","v":""},{"$f":"'Startovní listina'!B103","v":""},{"$f":"'Startovní listina'!C103","v":""},{"$f":"'Startovní listina'!D103","v":""},{"$f":"'Startovní listina'!E103","v":""},{"$f":"'Startovní listina'!F103","v":""}]
[1,null,{"$f":"'Startovní listina'!G104","v":""},{"$f":"'Startovní listina'!B104","v":""},{"$f":"'Startovní listina'!C104","v":""},{"$f":"'Startovní listina'!D104","v":""},{"$f":"'Startovní listina'!E104","v":""},{"$f":"'Startovní listina'!F104","v":""}]

{"sheet":"Družstva (prac.)","index":7,"n_rows":21,"n_cols":11,"rows_kept":21,"cut":false,"hidden":true,"merged":[[19,1,20,1],[19,6,20,6],[19,8,20,8],[15,1,16,1],[15,6,16,6],[15,8,16,8],[17,1,18,1],[17,6,18,6],[17,8,18,8],[11,1,12,1],[11,6,12,6],[11,8,12,8],[13,1,14,1],[13,6,14,6],[13,8,14,8],[7,1,8,1],[7,6,8,6],[7,8,8,8],[9,1,10,1],[9,6,10,6],[9,8,10,8],[5,1,6,1],[5,6,6,6],[5,8,6,8],[0,1,0,8],[1,1,1,8],[3,1,4,1],[3,6,4,6],[3,8,4,8]]}
[null,{"$f":"\"Výsledková listina - Malý svratecký maratón \"&'Prezenční listina'!O2&\" - družstva\"","v":"Výsledková listina - Malý svratecký maratón 2019 - družstva"}]
[null,{"$f":"'Prezenční listina'!O2-1953&\". ročník\"","v":"66. ročník"}]
[null,"Pořadí","Startovní číslo","Příjmení","Jméno","Narození","Oddíl / Bydliště","Čas","Výsledný čas"]
[null,"1.",3,{"$f":"IF(ISERROR(VLOOKUP(C4,'Startovní listina'!$B$5:$F$141,2)),\"\",VLOOKUP(C4,'Startovní listina'!$B$5:$F$141,2))","v":"Timmermansá"},{"$f":"IF(ISERROR(VLOOKUP(C4,'Startovní listina'!$B$5:$F$141,3)),\"\",VLOOKUP(C4,'Startovní listina'!$B$5:$F$141,3))","v":"Aniek"},{"$f":"IF(ISERROR(VLOOKUP(C4,'Startovní listina'!$B$5:$F$141,4)),\"\",VLOOKUP(C4,'Startovní listina'!$B$5:$F$141,4))","v":1985},{"$f":"IF(K4=K5,K4,\"RŮZNÉ ODDÍLY !!!\")","v":"RŮZNÉ ODDÍLY !!!"},"03:07:50",{"$f":"IF((H4=0),\"\",H4+H5)","v":"05:48:15"},null,{"$f":"IF(ISERROR(VLOOKUP(C4,'Startovní listina'!$B$5:$F$141,5)),\"\",VLOOKUP(C4,'Startovní listina'!$B$5:$F$141,5))","v":"Autocamp Na Kopci"}]
[null,null,2,{"$f":"IF(ISERROR(VLOOKUP(C5,'Startovní listina'!$B$5:$F$141,2)),\"\",VLOOKUP(C5,'Startovní listina'!$B$5:$F$141,2))","v":"Psula"},{"$f":"IF(ISERROR(VLOOKUP(C5,'Startovní listina'!$B$5:$F$141,3)),\"\",VLOOKUP(C5,'Startovní listina'!$B$5:$F$141,3))","v":"Roman"},{"$f":"IF(ISERROR(VLOOKUP(C5,'Startovní listina'!$B$5:$F$141,4)),\"\",VLOOKUP(C5,'Startovní listina'!$B$5:$F$141,4))","v":1984},null,"02:40:25",null,null,{"$f":"IF(ISERROR(VLOOKUP(C5,'Startovní listina'!$B$5:$F$141,5)),\"\",VLOOKUP(C5,'Startovní listina'!$B$5:$F$141,5))","v":"Ladermon Team (Olomouc)"}]
[null,"2.",11,{"$f":"IF(ISERROR(VLOOKUP(C6,'Startovní listina'!$B$5:$F$141,2)),\"\",VLOOKUP(C6,'Startovní listina'!$B$5:$F$141,2))","v":"Komblisá"},{"$f":"IF(ISERROR(VLOOKUP(C6,'Startovní listina'!$B$5:$F$141,3)),\"\",VLOOKUP(C6,'Startovní listina'!$B$5:$F$141,3))","v":"Michaela"},{"$f":"IF(ISERROR(VLOOKUP(C6,'Startovní listina'!$B$5:$F$141,4)),\"\",VLOOKUP(C6,'Startovní listina'!$B$5:$F$141,4))","v":1981},{"$f":"IF(K6=K7,K6,\"RŮZNÉ ODDÍLY !!!\")","v":"RŮZNÉ ODDÍLY !!!"},"02:01:16",{"$f":"IF((H6=0),\"\",H6+H7)","v":"04:06:56"},null,{"$f":"IF(ISERROR(VLOOKUP(C6,'Startovní listina'!$B$5:$F$141,5)),\"\",VLOOKUP(C6,'Startovní listina'!$B$5:$F$141,5))","v":"Izrael"}]
[null,null,8,{"$f":"IF(ISERROR(VLOOKUP(C7,'Startovní listina'!$B$5:$F$141,2)),\"\",VLOOKUP(C7,'Startovní listina'!$B$5:$F$141,2))","v":"Dostálová"},{"$f":"IF(ISERROR(VLOOKUP(C7,'Startovní listina'!$B$5:$F$141,3)),\"\",VLOOKUP(C7,'Startovní listina'!$B$5:$F$141,3))","v":"Vendula"},{"$f":"IF(ISERROR(VLOOKUP(C7,'Startovní listina'!$B$5:$F$141,4)),\"\",VLOOKUP(C7,'Startovní listina'!$B$5:$F$141,4))","v":1981},null,"02:05:40",null,null,{"$f":"IF(ISERROR(VLOOKUP(C7,'Startovní listina'!$B$5:$F$141,5)),\"\",VLOOKUP(C7,'Startovní listina'!$B$5:$F$141,5))","v":"HALL 3000"}]
[null,"3.",9,{"$f":"IF(ISERROR(VLOOKUP(C8,'Startovní listina'!$B$5:$F$141,2)),\"\",VLOOKUP(C8,'Startovní listina'!$B$5:$F$141,2))","v":"Pivec"},{"$f":"IF(ISERROR(VLOOKUP(C8,'Startovní listina'!$B$5:$F$141,3)),\"\",VLOOKUP(C8,'Startovní listina'!$B$5:$F$141,3))","v":"Jan"},{"$f":"IF(ISERROR(VLOOKUP(C8,'Startovní listina'!$B$5:$F$141,4)),\"\",VLOOKUP(C8,'Startovní listina'!$B$5:$F$141,4))","v":1981},{"$f":"IF(K8=K9,K8,\"RŮZNÉ ODDÍLY !!!\")","v":"HALL 3000"},"02:40:16",{"$f":"IF((H8=0),\"\",H8+H9)","v":"05:12:53"},null,{"$f":"IF(ISERROR(VLOOKUP(C8,'Startovní listina'!$B$5:$F$141,5)),\"\",VLOOKUP(C8,'Startovní listina'!$B$5:$F$141,5))","v":"HALL 3000"}]
[null,null,10,{"$f":"IF(ISERROR(VLOOKUP(C9,'Startovní listina'!$B$5:$F$141,2)),\"\",VLOOKUP(C9,'Startovní listina'!$B$5:$F$141,2))","v":"Bečička"},{"$f":"IF(ISERROR(VLOOKUP(C9,'Startovní listina'!$B$5:$F$141,3)),\"\",VLOOKUP(C9,'Startovní listina'!$B$5:$F$141,3))","v":"Petr"},{"$f":"IF(ISERROR(VLOOKUP(C9,'Startovní listina'!$B$5:$F$141,4)),\"\",VLOOKUP(C9,'Startovní listina'!$B$5:$F$141,4))","v":1960},null,"02:32:37",null,null,{"$f":"IF(ISERROR(VLOOKUP(C9,'Startovní listina'!$B$5:$F$141,5)),\"\",VLOOKUP(C9,'Startovní listina'!$B$5:$F$141,5))","v":"HALL 3000"}]
[null,"4.",23,{"$f":"IF(ISERROR(VLOOKUP(C10,'Startovní listina'!$B$5:$F$141,2)),\"\",VLOOKUP(C10,'Startovní listina'!$B$5:$F$141,2))","v":"Holý"},{"$f":"IF(ISERROR(VLOOKUP(C10,'Startovní listina'!$B$5:$F$141,3)),\"\",VLOOKUP(C10,'Startovní listina'!$B$5:$F$141,3))","v":"Josef"},{"$f":"IF(ISERROR(VLOOKUP(C10,'Startovní listina'!$B$5:$F$141,4)),\"\",VLOOKUP(C10,'Startovní listina'!$B$5:$F$141,4))","v":1941},{"$f":"IF(K10=K11,K10,\"RŮZNÉ ODDÍLY !!!\")","v":"RŮZNÉ ODDÍLY !!!"},"03:04:10",{"$f":"IF((H10=0),\"\",H10+H11)","v":"06:10:48"},null,{"$f":"IF(ISERROR(VLOOKUP(C10,'Startovní listina'!$B$5:$F$141,5)),\"\",VLOOKUP(C10,'Startovní listina'!$B$5:$F$141,5))","v":"AC Moravská Slavia Brno"}]
[null,null,24,{"$f":"IF(ISERROR(VLOOKUP(C11,'Startovní listina'!$B$5:$F$141,2)),\"\",VLOOKUP(C11,'Startovní listina'!$B$5:$F$141,2))","v":"Koutník"},{"$f":"IF(ISERROR(VLOOKUP(C11,'Startovní listina'!$B$5:$F$141,3)),\"\",VLOOKUP(C11,'Startovní listina'!$B$5:$F$141,3))","v":"Lumír"},{"$f":"IF(ISERROR(VLOOKUP(C11,'Startovní listina'!$B$5:$F$141,4)),\"\",VLOOKUP(C11,'Startovní listina'!$B$5:$F$141,4))","v":1967},null,"03:06:38",null,null,{"$f":"IF(ISERROR(VLOOKUP(C11,'Startovní listina'!$B$5:$F$141,5)),\"\",VLOOKUP(C11,'Startovní listina'!$B$5:$F$141,5))","v":"A.O. Spartak Vrchlabí"}]
[null,"5.",35,{"$f":"IF(ISERROR(VLOOKUP(C12,'Startovní listina'!$B$5:$F$141,2)),\"\",VLOOKUP(C12,'Startovní listina'!$B$5:$F$141,2))","v":"Krátký"},{"$f":"IF(ISERROR(VLOOKUP(C12,'Startovní listina'!$B$5:$F$141,3)),\"\",VLOOKUP(C12,'Startovní listina'!$B$5:$F$141,3))","v":"Josef"},{"$f":"IF(ISERROR(VLOOKUP(C12,'Startovní listina'!$B$5:$F$141,4)),\"\",VLOOKUP(C12,'Startovní listina'!$B$5:$F$141,4))","v":1965},{"$f":"IF(K12=K13,K12,\"RŮZNÉ ODDÍLY !!!\")","v":"RŮZNÉ ODDÍLY !!!"},"02:31:40",{"$f":"IF((H12=0),\"\",H12+H13)","v":"06:21:15"},null,{"$f":"IF(ISERROR(VLOOKUP(C12,'Startovní listina'!$B$5:$F$141,5)),\"\",VLOOKUP(C12,'Startovní listina'!$B$5:$F$141,5))","v":"Hvězda Pardubice"}]
[null,null,36,{"$f":"IF(ISERROR(VLOOKUP(C13,'Startovní listina'!$B$5:$F$141,2)),\"\",VLOOKUP(C13,'Startovní listina'!$B$5:$F$141,2))","v":"Dvořáček"},{"$f":"IF(ISERROR(VLOOKUP(C13,'Startovní listina'!$B$5:$F$141,3)),\"\",VLOOKUP(C13,'Startovní listina'!$B$5:$F$141,3))","v":"Jiří"},{"$f":"IF(ISERROR(VLOOKUP(C13,'Startovní listina'!$B$5:$F$141,4)),\"\",VLOOKUP(C13,'Startovní listina'!$B$5:$F$141,4))","v":1968},null,"03:49:35",null,null,{"$f":"IF(ISERROR(VLOOKUP(C13,'Startovní listina'!$B$5:$F$141,5)),\"\",VLOOKUP(C13,'Startovní listina'!$B$5:$F$141,5))","v":"Petrovice"}]
[null,"6.",82,{"$f":"IF(ISERROR(VLOOKUP(C14,'Startovní listina'!$B$5:$F$141,2)),\"\",VLOOKUP(C14,'Startovní listina'!$B$5:$F$141,2))","v":"Konečný"},{"$f":"IF(ISERROR(VLOOKUP(C14,'Startovní listina'!$B$5:$F$141,3)),\"\",VLOOKUP(C14,'Startovní listina'!$B$5:$F$141,3))","v":"Libor"},{"$f":"IF(ISERROR(VLOOKUP(C14,'Startovní listina'!$B$5:$F$141,4)),\"\",VLOOKUP(C14,'Startovní listina'!$B$5:$F$141,4))","v":1971},{"$f":"IF(K14=K15,K14,\"RŮZNÉ ODDÍLY !!!\")","v":"Kuřim"},"02:11:00",{"$f":"IF((H14=0),\"\",H14+H15)","v":"04:05:34"},null,{"$f":"IF(ISERROR(VLOOKUP(C14,'Startovní listina'!$B$5:$F$141,5)),\"\",VLOOKUP(C14,'Startovní listina'!$B$5:$F$141,5))","v":"Kuřim"}]
[null,null,107,{"$f":"IF(ISERROR(VLOOKUP(C15,'Startovní listina'!$B$5:$F$141,2)),\"\",VLOOKUP(C15,'Startovní listina'!$B$5:$F$141,2))","v":"Konečný"},{"$f":"IF(ISERROR(VLOOKUP(C15,'Startovní listina'!$B$5:$F$141,3)),\"\",VLOOKUP(C15,'Startovní listina'!$B$5:$F$141,3))","v":"Libor"},{"$f":"IF(ISERROR(VLOOKUP(C15,'Startovní listina'!$B$5:$F$141,4)),\"\",VLOOKUP(C15,'Startovní listina'!$B$5:$F$141,4))","v":1971},null,"01:54:34",null,null,{"$f":"IF(ISERROR(VLOOKUP(C15,'Startovní listina'!$B$5:$F$141,5)),\"\",VLOOKUP(C15,'Startovní listina'!$B$5:$F$141,5))","v":"Kuřim"}]
[null,"7.",28,{"$f":"IF(ISERROR(VLOOKUP(C16,'Startovní listina'!$B$5:$F$141,2)),\"\",VLOOKUP(C16,'Startovní listina'!$B$5:$F$141,2))","v":"Fikejs"},{"$f":"IF(ISERROR(VLOOKUP(C16,'Startovní listina'!$B$5:$F$141,3)),\"\",VLOOKUP(C16,'Startovní listina'!$B$5:$F$141,3))","v":"Vladimír"},{"$f":"IF(ISERROR(VLOOKUP(C16,'Startovní listina'!$B$5:$F$141,4)),\"\",VLOOKUP(C16,'Startovní listina'!$B$5:$F$141,4))","v":1957},{"$f":"IF(K16=K17,K16,\"RŮZNÉ ODDÍLY !!!\")","v":"RŮZNÉ ODDÍLY !!!"},"02:19:07",{"$f":"IF((H16=0),\"\",H16+H17)","v":"04:24:14"},null,{"$f":"IF(ISERROR(VLOOKUP(C16,'Startovní listina'!$B$5:$F$141,5)),\"\",VLOOKUP(C16,'Startovní listina'!$B$5:$F$141,5))","v":"3D Finess Race Team (Žamberk)"}]
[null,null,26,{"$f":"IF(ISERROR(VLOOKUP(C17,'Startovní listina'!$B$5:$F$141,2)),\"\",VLOOKUP(C17,'Startovní listina'!$B$5:$F$141,2))","v":"Koudelka"},{"$f":"IF(ISERROR(VLOOKUP(C17,'Startovní listina'!$B$5:$F$141,3)),\"\",VLOOKUP(C17,'Startovní listina'!$B$5:$F$141,3))","v":"Drahomír"},{"$f":"IF(ISERROR(VLOOKUP(C17,'Startovní listina'!$B$5:$F$141,4)),\"\",VLOOKUP(C17,'Startovní listina'!$B$5:$F$141,4))","v":1971},null,"02:05:07",null,null,{"$f":"IF(ISERROR(VLOOKUP(C17,'Startovní listina'!$B$5:$F$141,5)),\"\",VLOOKUP(C17,'Startovní listina'!$B$5:$F$141,5))","v":"Meixner Consulting (Pětihosty)"}]
[null,"8.",null,{"$f":"IF(ISERROR(VLOOKUP(C18,'Startovní listina'!$B$5:$F$141,2)),\"\",VLOOKUP(C18,'Startovní listina'!$B$5:$F$141,2))","v":""},{"$f":"IF(ISERROR(VLOOKUP(C18,'Startovní listina'!$B$5:$F$141,3)),\"\",VLOOKUP(C18,'Startovní listina'!$B$5:$F$141,3))","v":""},{"$f":"IF(ISERROR(VLOOKUP(C18,'Startovní listina'!$B$5:$F$141,4)),\"\",VLOOKUP(C18,'Startovní listina'!$B$5:$F$141,4))","v":""},{"$f":"IF(K18=K19,K18,\"RŮZNÉ ODDÍLY !!!\")","v":""},null,{"$f":"IF((H18=0),\"\",H18+H19)","v":""},null,{"$f":"IF(ISERROR(VLOOKUP(C18,'Startovní listina'!$B$5:$F$141,5)),\"\",VLOOKUP(C18,'Startovní listina'!$B$5:$F$141,5))","v":""}]
[null,null,null,{"$f":"IF(ISERROR(VLOOKUP(C19,'Startovní listina'!$B$5:$F$141,2)),\"\",VLOOKUP(C19,'Startovní listina'!$B$5:$F$141,2))","v":""},{"$f":"IF(ISERROR(VLOOKUP(C19,'Startovní listina'!$B$5:$F$141,3)),\"\",VLOOKUP(C19,'Startovní listina'!$B$5:$F$141,3))","v":""},{"$f":"IF(ISERROR(VLOOKUP(C19,'Startovní listina'!$B$5:$F$141,4)),\"\",VLOOKUP(C19,'Startovní listina'!$B$5:$F$141,4))","v":""},null,null,null,null,{"$f":"IF(ISERROR(VLOOKUP(C19,'Startovní listina'!$B$5:$F$141,5)),\"\",VLOOKUP(C19,'Startovní listina'!$B$5:$F$141,5))","v":""}]
[null,"9.",null,{"$f":"IF(ISERROR(VLOOKUP(C20,'Startovní listina'!$B$5:$F$141,2)),\"\",VLOOKUP(C20,'Startovní listina'!$B$5:$F$141,2))","v":""},{"$f":"IF(ISERROR(VLOOKUP(C20,'Startovní listina'!$B$5:$F$141,3)),\"\",VLOOKUP(C20,'Startovní listina'!$B$5:$F$141,3))","v":""},{"$f":"IF(ISERROR(VLOOKUP(C20,'Startovní listina'!$B$5:$F$141,4)),\"\",VLOOKUP(C20,'Startovní listina'!$B$5:$F$141,4))","v":""},{"$f":"IF(K20=K21,K20,\"RŮZNÉ ODDÍLY !!!\")","v":""},null,{"$f":"IF((H20=0),\"\",H20+H21)","v":""},null,{"$f":"IF(ISERROR(VLOOKUP(C20,'Startovní listina'!$B$5:$F$141,5)),\"\",VLOOKUP(C20,'Startovní listina'!$B$5:$F$141,5))","v":""}]
[null,null,null,{"$f":"IF(ISERROR(VLOOKUP(C21,'Startovní listina'!$B$5:$F$141,2)),\"\",VLOOKUP(C21,'Startovní listina'!$B$5:$F$141,2))","v":""},{"$f":"IF(ISERROR(VLOOKUP(C21,'Startovní listina'!$B$5:$F$141,3)),\"\",VLOOKUP(C21,'Startovní listina'!$B$5:$F$141,3))","v":""},{"$f":"IF(ISERROR(VLOOKUP(C21,'Startovní listina'!$B$5:$F$141,4)),\"\",VLOOKUP(C21,'Startovní listina'!$B$5:$F$141,4))","v":""},null,null,null,null,{"$f":"IF(ISERROR(VLOOKUP(C21,'Startovní listina'!$B$5:$F$141,5)),\"\",VLOOKUP(C21,'Startovní listina'!$B$5:$F$141,5))","v":""}]

{"sheet":"Výsledková listina (2)","index":8,"n_rows":103,"n_cols":11,"rows_kept":103,"cut":false,"hidden":true,"merged":[[0,0,0,8],[1,0,1,8],[1,10,12,14],[2,0,2,8]]}
[{"$f":"\"Výsledková listina - Malý svratecký maraton \"&'Prezenční listina'!O2","v":"Výsledková listina - Malý svratecký maraton 2019"}]
["2015-08-22",null,null,null,null,null,null,null,null,null,"\nPoté, co jsou dopsány časy VŠECH běžců, stisknout tlačítko 1.řazení \n\n\nVe sloupci B (Pořadí v kategorii) vytvořit posloupnou číselnou řadu pro každou kategorii a poté stisknout tlačítko 2.řazení\n\n\n                      !!! POZOR!!!\n\n               Použití tlačítek je nevratný krok!"]
[{"$f":"'Prezenční listina'!O2-1953&\". ročník\"","v":"66. ročník"}]
["Celkové pořadí","Pořadí v kategorii","Kategorie","Startovní číslo","Příjmení","Jméno","Narození","Oddíl / Bydliště","Čas"]
[1,1,{"$f":"'Startovní listina'!G47","v":"B"},{"$f":"'Startovní listina'!B47","v":44},{"$f":"'Startovní listina'!C47","v":"Vintrlík"},{"$f":"'Startovní listina'!D47","v":"Martin"},{"$f":"'Startovní listina'!E47","v":1977},{"$f":"'Startovní listina'!F47","v":"Triatlon Křepice"},"02:19:48"]
[{"$f":"IF('Výsledková listina (2)'!D5<>\"\",A5+1,\"\")","v":2},null,{"$f":"'Startovní listina'!G71","v":"D"},{"$f":"'Startovní listina'!B71","v":68},{"$f":"'Startovní listina'!C71","v":"Sedláček"},{"$f":"'Startovní listina'!D71","v":"Svatopluk"},{"$f":"'Startovní listina'!E71","v":1957},{"$f":"'Startovní listina'!F71","v":"AC Moravská Slavia Brno"},"02:47:00"]
[{"$f":"IF('Výsledková listina (2)'!D6<>\"\",A6+1,\"\")","v":3},null,{"$f":"'Startovní listina'!G5","v":"A"},{"$f":"'Startovní listina'!B5","v":1},{"$f":"'Startovní listina'!C5","v":"Hanák"},{"$f":"'Startovní listina'!D5","v":"Martin"},{"$f":"'Startovní listina'!E5","v":1993},{"$f":"'Startovní listina'!F5","v":"Ujčov"},"03:02:17"]
[{"$f":"IF('Výsledková listina (2)'!D7<>\"\",A7+1,\"\")","v":4},null,{"$f":"'Startovní listina'!G85","v":""},{"$f":"'Startovní listina'!B85","v":""},{"$f":"'Startovní listina'!C85","v":""},{"$f":"'Startovní listina'!D85","v":""},{"$f":"'Startovní listina'!E85","v":""},{"$f":"'Startovní listina'!F85","v":""},"03:28:11"]
[{"$f":"IF('Výsledková listina (2)'!D8<>\"\",A8+1,\"\")","v":""},null,{"$f":"'Startovní listina'!G59","v":"B"},{"$f":"'Startovní listina'!B59","v":56},{"$f":"'Startovní listina'!C59","v":"Vykoupil"},{"$f":"'Startovní listina'!D59","v":"Miloslav"},{"$f":"'Startovní listina'!E59","v":1972},{"$f":"'Startovní listina'!F59","v":"Veverská Bitýška"},"02:23:11"]
[{"$f":"IF('Výsledková listina (2)'!D9<>\"\",A9+1,\"\")","v":{"$error":"#VALUE!"}},null,{"$f":"'Startovní listina'!G46","v":"A"},{"$f":"'Startovní listina'!B46","v":43},{"$f":"'Startovní listina'!C46","v":"Exner"},{"$f":"'Startovní listina'!D46","v":"Jakub"},{"$f":"'Startovní listina'!E46","v":1983},{"$f":"'Startovní listina'!F46","v":"Swoboda-pteam"},"02:50:33"]
[{"$f":"IF('Výsledková listina (2)'!D10<>\"\",A10+1,\"\")","v":{"$error":"#VALUE!"}},null,{"$f":"'Startovní listina'!G28","v":"B"},{"$f":"'Startovní listina'!B28","v":25},{"$f":"'Startovní listina'!C28","v":"Kratochvíl"},{"$f":"'Startovní listina'!D28","v":"Jaroslav"},{"$f":"'Startovní listina'!E28","v":1977},{"$f":"'Startovní listina'!F28","v":"SDH Hluboké"},"02:26:07"]
[{"$f":"IF('Výsledková listina (2)'!D11<>\"\",A11+1,\"\")","v":{"$error":"#VALUE!"}},null,{"$f":"'Startovní listina'!G67","v":"B"},{"$f":"'Startovní listina'!B67","v":64},{"$f":"'Startovní listina'!C67","v":"Bezchleba"},{"$f":"'Startovní listina'!D67","v":"Petr"},{"$f":"'Startovní listina'!E67","v":1978},{"$f":"'Startovní listina'!F67","v":"SK TRI CYKLOCHLUBNA"},"02:34:42"]
[{"$f":"IF('Výsledková listina (2)'!D12<>\"\",A12+1,\"\")","v":{"$error":"#VALUE!"}},null,{"$f":"'Startovní listina'!G68","v":"C"},{"$f":"'Startovní listina'!B68","v":65},{"$f":"'Startovní listina'!C68","v":"Čapka"},{"$f":"'Startovní listina'!D68","v":"František"},{"$f":"'Startovní listina'!E68","v":1968},{"$f":"'Startovní listina'!F68","v":"Minerva Boskovice"},"02:42:43"]
[{"$f":"IF('Výsledková listina (2)'!D13<>\"\",A13+1,\"\")","v":{"$error":"#VALUE!"}},null,{"$f":"'Startovní listina'!G62","v":"C"},{"$f":"'Startovní listina'!B62","v":59},{"$f":"'Startovní listina'!C62","v":"Havlíček"},{"$f":"'Startovní listina'!D62","v":"Ivo"},{"$f":"'Startovní listina'!E62","v":1966},{"$f":"'Startovní listina'!F62","v":"Lánov Krkonoše"},"02:42:35"]
[{"$f":"IF('Výsledková listina (2)'!D14<>\"\",A14+1,\"\")","v":{"$error":"#VALUE!"}},null,{"$f":"'Startovní listina'!G55","v":"A"},{"$f":"'Startovní listina'!B55","v":52},{"$f":"'Startovní listina'!C55","v":"Glier"},{"$f":"'Startovní listina'!D55","v":"Michal"},{"$f":"'Startovní listina'!E55","v":1982},{"$f":"'Startovní listina'!F55","v":"behejbrno.com"},"02:40:36"]
[{"$f":"IF('Výsledková listina (2)'!D15<>\"\",A15+1,\"\")","v":{"$error":"#VALUE!"}},null,{"$f":"'Startovní listina'!G60","v":"B"},{"$f":"'Startovní listina'!B60","v":57},{"$f":"'Startovní listina'!C60","v":"Lorenčík"},{"$f":"'Startovní listina'!D60","v":"Aleš"},{"$f":"'Startovní listina'!E60","v":1973},{"$f":"'Startovní listina'!F60","v":"Chrudim"},"02:38:54"]
[{"$f":"IF('Výsledková listina (2)'!D16<>\"\",A16+1,\"\")","v":{"$error":"#VALUE!"}},null,{"$f":"'Startovní listina'!G7","v":"F"},{"$f":"'Startovní listina'!B7","v":3},{"$f":"'Startovní listina'!C7","v":"Timmermansá"},{"$f":"'Startovní listina'!D7","v":"Aniek"},{"$f":"'Startovní listina'!E7","v":1985},{"$f":"'Startovní listina'!F7","v":"Autocamp Na Kopci"},"03:07:50"]
[{"$f":"IF('Výsledková listina (2)'!D17<>\"\",A17+1,\"\")","v":{"$error":"#VALUE!"}},null,{"$f":"'Startovní listina'!G63","v":"A"},{"$f":"'Startovní listina'!B63","v":60},{"$f":"'Startovní listina'!C63","v":"Zedník"},{"$f":"'Startovní listina'!D63","v":"Petr"},{"$f":"'Startovní listina'!E63","v":1982},{"$f":"'Startovní listina'!F63","v":"Dalečín"},"02:39:15"]
[{"$f":"IF('Výsledková listina (2)'!D18<>\"\",A18+1,\"\")","v":{"$error":"#VALUE!"}},null,{"$f":"'Startovní listina'!G49","v":"B"},{"$f":"'Startovní listina'!B49","v":46},{"$f":"'Startovní listina'!C49","v":"Bracek"},{"$f":"'Startovní listina'!D49","v":"Petr"},{"$f":"'Startovní listina'!E49","v":1979},{"$f":"'Startovní listina'!F49","v":"Kuřim"},"02:13:13"]
[{"$f":"IF('Výsledková listina (2)'!D19<>\"\",A19+1,\"\")","v":{"$error":"#VALUE!"}},null,{"$f":"'Startovní listina'!G14","v":"C"},{"$f":"'Startovní listina'!B14","v":10},{"$f":"'Startovní listina'!C14","v":"Bečička"},{"$f":"'Startovní listina'!D14","v":"Petr"},{"$f":"'Startovní listina'!E14","v":1960},{"$f":"'Startovní listina'!F14","v":"HALL 3000"},"02:32:37"]
[{"$f":"IF('Výsledková listina (2)'!D20<>\"\",A20+1,\"\")","v":{"$error":"#VALUE!"}},null,{"$f":"'Startovní listina'!G42","v":"B"},{"$f":"'Startovní listina'!B42","v":39},{"$f":"'Startovní listina'!C42","v":"Faja"},{"$f":"'Startovní listina'!D42","v":"Ondřej"},{"$f":"'Startovní listina'!E42","v":1976},{"$f":"'Startovní listina'!F42","v":"Brno"},"02:49:46"]
[{"$f":"IF('Výsledková listina (2)'!D22<>\"\",A21+1,\"\")","v":""},null,{"$f":"'Startovní listina'!G79","v":""},{"$f":"'Startovní listina'!B79","v":""},{"$f":"'Startovní listina'!C79","v":""},{"$f":"'Startovní listina'!D79","v":""},{"$f":"'Startovní listina'!E79","v":""},{"$f":"'Startovní listina'!F79","v":""},"02:13:29"]
[{"$f":"IF('Výsledková listina (2)'!D21<>\"\",A22+1,\"\")","v":{"$error":"#VALUE!"}},null,{"$f":"'Startovní listina'!G15","v":"G"},{"$f":"'Startovní listina'!B15","v":11},{"$f":"'Startovní listina'!C15","v":"Komblisá"},{"$f":"'Startovní listina'!D15","v":"Michaela"},{"$f":"'Startovní listina'!E15","v":1981},{"$f":"'Startovní listina'!F15","v":"Izrael"},"02:01:16"]
[{"$f":"IF('Výsledková listina (2)'!D23<>\"\",A23+1,\"\")","v":{"$error":"#VALUE!"}},null,{"$f":"'Startovní listina'!G91","v":""},{"$f":"'Startovní listina'!B91","v":""},{"$f":"'Startovní listina'!C91","v":""},{"$f":"'Startovní listina'!D91","v":""},{"$f":"'Startovní listina'!E91","v":""},{"$f":"'Startovní listina'!F91","v":""},"02:30:31"]
[{"$f":"IF('Výsledková listina (2)'!D24<>\"\",A24+1,\"\")","v":""},null,{"$f":"'Startovní listina'!G74","v":""},{"$f":"'Startovní listina'!B74","v":""},{"$f":"'Startovní listina'!C74","v":""},{"$f":"'Startovní listina'!D74","v":""},{"$f":"'Startovní listina'!E74","v":""},{"$f":"'Startovní listina'!F74","v":""},"02:11:00"]
[{"$f":"IF('Výsledková listina (2)'!D25<>\"\",A25+1,\"\")","v":""},null,{"$f":"'Startovní listina'!G44","v":"C"},{"$f":"'Startovní listina'!B44","v":41},{"$f":"'Startovní listina'!C44","v":"Otta"},{"$f":"'Startovní listina'!D44","v":"Roman"},{"$f":"'Startovní listina'!E44","v":1961},{"$f":"'Startovní listina'!F44","v":"Q Sport Vrchlabí"},"03:10:37"]
[{"$f":"IF('Výsledková listina (2)'!D26<>\"\",A26+1,\"\")","v":{"$error":"#VALUE!"}},null,{"$f":"'Startovní listina'!G84","v":""},{"$f":"'Startovní listina'!B84","v":""},{"$f":"'Startovní listina'!C84","v":""},{"$f":"'Startovní listina'!D84","v":""},{"$f":"'Startovní listina'!E84","v":""},{"$f":"'Startovní listina'!F84","v":""},"02:28:22"]
[{"$f":"IF('Výsledková listina (2)'!D27<>\"\",A27+1,\"\")","v":""},null,{"$f":"'Startovní listina'!G87","v":""},{"$f":"'Startovní listina'!B87","v":""},{"$f":"'Startovní listina'!C87","v":""},{"$f":"'Startovní listina'!D87","v":""},{"$f":"'Startovní listina'!E87","v":""},{"$f":"'Startovní listina'!F87","v":""},"02:29:21"]
[{"$f":"IF('Výsledková listina (2)'!D28<>\"\",A28+1,\"\")","v":""},null,{"$f":"'Startovní listina'!G75","v":""},{"$f":"'Startovní listina'!B75","v":""},{"$f":"'Startovní listina'!C75","v":""},{"$f":"'Startovní listina'!D75","v":""},{"$f":"'Startovní listina'!E75","v":""},{"$f":"'Startovní listina'!F75","v":""},"03:01:37"]
[{"$f":"IF('Výsledková listina (2)'!D29<>\"\",A29+1,\"\")","v":""},null,{"$f":"'Startovní listina'!G18","v":"E"},{"$f":"'Startovní listina'!B18","v":14},{"$f":"'Startovní listina'!C18","v":"Vytisk"},{"$f":"'Startovní listina'!D18","v":"Alfons"},{"$f":"'Startovní listina'!E18","v":1949},{"$f":"'Startovní listina'!F18","v":"MKS Ostrava"}]
[{"$f":"IF('Výsledková listina (2)'!D30<>\"\",A30+1,\"\")","v":{"$error":"#VALUE!"}},null,{"$f":"'Startovní listina'!G41","v":"C"},{"$f":"'Startovní listina'!B41","v":38},{"$f":"'Startovní listina'!C41","v":"Svoboda"},{"$f":"'Startovní listina'!D41","v":"Petr"},{"$f":"'Startovní listina'!E41","v":1968},{"$f":"'Startovní listina'!F41","v":"AC Moravská Slavia Brno"},"02:16:46"]
[{"$f":"IF('Výsledková listina (2)'!D31<>\"\",A31+1,\"\")","v":{"$error":"#VALUE!"}},null,{"$f":"'Startovní listina'!G23","v":"G"},{"$f":"'Startovní listina'!B23","v":20},{"$f":"'Startovní listina'!C23","v":"Ježová"},{"$f":"'Startovní listina'!D23","v":"Martina"},{"$f":"'Startovní listina'!E23","v":1975},{"$f":"'Startovní listina'!F23","v":"Brno"}]
[{"$f":"IF('Výsledková listina (2)'!D32<>\"\",A32+1,\"\")","v":{"$error":"#VALUE!"}},null,{"$f":"'Startovní listina'!G57","v":"B"},{"$f":"'Startovní listina'!B57","v":54},{"$f":"'Startovní listina'!C57","v":"Sajdl"},{"$f":"'Startovní listina'!D57","v":"Ondřej"},{"$f":"'Startovní listina'!E57","v":1978},{"$f":"'Startovní listina'!F57","v":"Brno"},"02:42:39"]
[{"$f":"IF('Výsledková listina (2)'!D33<>\"\",A33+1,\"\")","v":{"$error":"#VALUE!"}},null,{"$f":"'Startovní listina'!G40","v":"D"},{"$f":"'Startovní listina'!B40","v":37},{"$f":"'Startovní listina'!C40","v":"Mareš"},{"$f":"'Startovní listina'!D40","v":"Bohumil"},{"$f":"'Startovní listina'!E40","v":1951},{"$f":"'Startovní listina'!F40","v":"Posilovna Průvan Brno"},"02:10:10"]
[{"$f":"IF('Výsledková listina (2)'!D34<>\"\",A34+1,\"\")","v":{"$error":"#VALUE!"}},null,{"$f":"'Startovní listina'!G9","v":"B"},{"$f":"'Startovní listina'!B9","v":5},{"$f":"'Startovní listina'!C9","v":"Eliáš"},{"$f":"'Startovní listina'!D9","v":"Lukáš"},{"$f":"'Startovní listina'!E9","v":1979},{"$f":"'Startovní listina'!F9","v":"Ledová stěna Vír"},"02:05:55"]
[{"$f":"IF('Výsledková listina (2)'!D35<>\"\",A35+1,\"\")","v":{"$error":"#VALUE!"}},null,{"$f":"'Startovní listina'!G77","v":""},{"$f":"'Startovní listina'!B77","v":""},{"$f":"'Startovní listina'!C77","v":""},{"$f":"'Startovní listina'!D77","v":""},{"$f":"'Startovní listina'!E77","v":""},{"$f":"'Startovní listina'!F77","v":""}]
[{"$f":"IF('Výsledková listina (2)'!D36<>\"\",A36+1,\"\")","v":""},null,{"$f":"'Startovní listina'!G81","v":""},{"$f":"'Startovní listina'!B81","v":""},{"$f":"'Startovní listina'!C81","v":""},{"$f":"'Startovní listina'!D81","v":""},{"$f":"'Startovní listina'!E81","v":""},{"$f":"'Startovní listina'!F81","v":""},"03:24:59"]
[{"$f":"IF('Výsledková listina (2)'!D37<>\"\",A37+1,\"\")","v":""},null,{"$f":"'Startovní listina'!G54","v":"B"},{"$f":"'Startovní listina'!B54","v":51},{"$f":"'Startovní listina'!C54","v":"Weis"},{"$f":"'Startovní listina'!D54","v":"Josef"},{"$f":"'Startovní listina'!E54","v":1974},{"$f":"'Startovní listina'!F54","v":"Elite Sport Boskovice"},"02:37:38"]
[{"$f":"IF('Výsledková listina (2)'!D38<>\"\",A38+1,\"\")","v":{"$error":"#VALUE!"}},null,{"$f":"'Startovní listina'!G94","v":""},{"$f":"'Startovní listina'!B94","v":""},{"$f":"'Startovní listina'!C94","v":""},{"$f":"'Startovní listina'!D94","v":""},{"$f":"'Startovní listina'!E94","v":""},{"$f":"'Startovní listina'!F94","v":""},"03:13:50"]
[{"$f":"IF('Výsledková listina (2)'!D39<>\"\",A39+1,\"\")","v":""},null,{"$f":"'Startovní listina'!G20","v":"A"},{"$f":"'Startovní listina'!B20","v":16},{"$f":"'Startovní listina'!C20","v":"Berák"},{"$f":"'Startovní listina'!D20","v":"Lukáš"},{"$f":"'Startovní listina'!E20","v":1984},{"$f":"'Startovní listina'!F20","v":"Chotěvice"},"02:43:21"]
[{"$f":"IF('Výsledková listina (2)'!D40<>\"\",A40+1,\"\")","v":{"$error":"#VALUE!"}},null,{"$f":"'Startovní listina'!G19","v":"C"},{"$f":"'Startovní listina'!B19","v":15},{"$f":"'Startovní listina'!C19","v":"Dvorský"},{"$f":"'Startovní listina'!D19","v":"Ladislav"},{"$f":"'Startovní listina'!E19","v":1965},{"$f":"'Startovní listina'!F19","v":"MKS Ostrava"},"03:01:04"]
[{"$f":"IF('Výsledková listina (2)'!D41<>\"\",A41+1,\"\")","v":{"$error":"#VALUE!"}},null,{"$f":"'Startovní listina'!G69","v":"C"},{"$f":"'Startovní listina'!B69","v":66},{"$f":"'Startovní listina'!C69","v":"Prokop"},{"$f":"'Startovní listina'!D69","v":"Ondřej"},{"$f":"'Startovní listina'!E69","v":1962},{"$f":"'Startovní listina'!F69","v":"ČAU, Brno"},"DNF"]
[{"$f":"IF('Výsledková listina (2)'!D42<>\"\",A42+1,\"\")","v":{"$error":"#VALUE!"}},null,{"$f":"'Startovní listina'!G38","v":"C"},{"$f":"'Startovní listina'!B38","v":35},{"$f":"'Startovní listina'!C38","v":"Krátký"},{"$f":"'Startovní listina'!D38","v":"Josef"},{"$f":"'Startovní listina'!E38","v":1965},{"$f":"'Startovní listina'!F38","v":"Hvězda Pardubice"},"02:26:38"]
[{"$f":"IF('Výsledková listina (2)'!D43<>\"\",A43+1,\"\")","v":{"$error":"#VALUE!"}},null,{"$f":"'Startovní listina'!G80","v":""},{"$f":"'Startovní listina'!B80","v":""},{"$f":"'Startovní listina'!C80","v":""},{"$f":"'Startovní listina'!D80","v":""},{"$f":"'Startovní listina'!E80","v":""},{"$f":"'Startovní listina'!F80","v":""},"02:45:32"]
[{"$f":"IF('Výsledková listina (2)'!D44<>\"\",A44+1,\"\")","v":""},null,{"$f":"'Startovní listina'!G53","v":"D"},{"$f":"'Startovní listina'!B53","v":50},{"$f":"'Startovní listina'!C53","v":"Čuhel"},{"$f":"'Startovní listina'!D53","v":"Jiří"},{"$f":"'Startovní listina'!E53","v":1958},{"$f":"'Startovní listina'!F53","v":"Křtěnov"},"02:46:25"]
[{"$f":"IF('Výsledková listina (2)'!D45<>\"\",A45+1,\"\")","v":{"$error":"#VALUE!"}},null,{"$f":"'Startovní listina'!G11","v":"B"},{"$f":"'Startovní listina'!B11","v":7},{"$f":"'Startovní listina'!C11","v":"Kalaš"},{"$f":"'Startovní listina'!D11","v":"Rudolf"},{"$f":"'Startovní listina'!E11","v":1971},{"$f":"'Startovní listina'!F11","v":"Boskovice"},"02:45:37"]
[{"$f":"IF('Výsledková listina (2)'!D46<>\"\",A46+1,\"\")","v":{"$error":"#VALUE!"}},null,{"$f":"'Startovní listina'!G89","v":""},{"$f":"'Startovní listina'!B89","v":""},{"$f":"'Startovní listina'!C89","v":""},{"$f":"'Startovní listina'!D89","v":""},{"$f":"'Startovní listina'!E89","v":""},{"$f":"'Startovní listina'!F89","v":""},"02:23:07"]
[{"$f":"IF('Výsledková listina (2)'!D47<>\"\",A47+1,\"\")","v":""},null,{"$f":"'Startovní listina'!G93","v":""},{"$f":"'Startovní listina'!B93","v":""},{"$f":"'Startovní listina'!C93","v":""},{"$f":"'Startovní listina'!D93","v":""},{"$f":"'Startovní listina'!E93","v":""},{"$f":"'Startovní listina'!F93","v":""}]
[{"$f":"IF('Výsledková listina (2)'!D48<>\"\",A48+1,\"\")","v":""},null,{"$f":"'Startovní listina'!G78","v":""},{"$f":"'Startovní listina'!B78","v":""},{"$f":"'Startovní listina'!C78","v":""},{"$f":"'Startovní listina'!D78","v":""},{"$f":"'Startovní listina'!E78","v":""},{"$f":"'Startovní listina'!F78","v":""},"02:49:04"]
[{"$f":"IF('Výsledková listina (2)'!D49<>\"\",A49+1,\"\")","v":""},null,{"$f":"'Startovní listina'!G35","v":"B"},{"$f":"'Startovní listina'!B35","v":32},{"$f":"'Startovní listina'!C35","v":"Brázda"},{"$f":"'Startovní listina'!D35","v":"Richard"},{"$f":"'Startovní listina'!E35","v":1975},{"$f":"'Startovní listina'!F35","v":"Český běžecký klub, Brno"},"02:31:40"]
[{"$f":"IF('Výsledková listina (2)'!D50<>\"\",A50+1,\"\")","v":{"$error":"#VALUE!"}},null,{"$f":"'Startovní listina'!G36","v":"B"},{"$f":"'Startovní listina'!B36","v":33},{"$f":"'Startovní listina'!C36","v":"Krátký"},{"$f":"'Startovní listina'!D36","v":"Pavel"},{"$f":"'Startovní listina'!E36","v":1974},{"$f":"'Startovní listina'!F36","v":"TS Jan Kohut (Olomučany)"}]
[{"$f":"IF('Výsledková listina (2)'!D51<>\"\",A51+1,\"\")","v":{"$error":"#VALUE!"}},null,{"$f":"'Startovní listina'!G29","v":"B"},{"$f":"'Startovní listina'!B29","v":26},{"$f":"'Startovní listina'!C29","v":"Koudelka"},{"$f":"'Startovní listina'!D29","v":"Drahomír"},{"$f":"'Startovní listina'!E29","v":1971},{"$f":"'Startovní listina'!F29","v":"Meixner Consulting (Pětihosty)"},"02:19:07"]
[{"$f":"IF('Výsledková listina (2)'!D52<>\"\",A52+1,\"\")","v":{"$error":"#VALUE!"}},null,{"$f":"'Startovní listina'!G86","v":""},{"$f":"'Startovní listina'!B86","v":""},{"$f":"'Startovní listina'!C86","v":""},{"$f":"'Startovní listina'!D86","v":""},{"$f":"'Startovní listina'!E86","v":""},{"$f":"'Startovní listina'!F86","v":""},"02:21:00"]
[{"$f":"IF('Výsledková listina (2)'!D53<>\"\",A53+1,\"\")","v":""},null,{"$f":"'Startovní listina'!G17","v":"A"},{"$f":"'Startovní listina'!B17","v":13},{"$f":"'Startovní listina'!C17","v":"Fousek"},{"$f":"'Startovní listina'!D17","v":"Jan"},{"$f":"'Startovní listina'!E17","v":1991},{"$f":"'Startovní listina'!F17","v":"MKS Ostrava"},"03:06:22"]
[{"$f":"IF('Výsledková listina (2)'!D54<>\"\",A54+1,\"\")","v":{"$error":"#VALUE!"}},null,{"$f":"'Startovní listina'!G37","v":"A"},{"$f":"'Startovní listina'!B37","v":34},{"$f":"'Startovní listina'!C37","v":"Dvořák"},{"$f":"'Startovní listina'!D37","v":"Petr"},{"$f":"'Startovní listina'!E37","v":1986},{"$f":"'Startovní listina'!F37","v":"Brno"},"02:32:28"]
[{"$f":"IF('Výsledková listina (2)'!D55<>\"\",A55+1,\"\")","v":{"$error":"#VALUE!"}},null,{"$f":"'Startovní listina'!G32","v":"D"},{"$f":"'Startovní listina'!B32","v":29},{"$f":"'Startovní listina'!C32","v":"Novotný"},{"$f":"'Startovní listina'!D32","v":"Jaroslav"},{"$f":"'Startovní listina'!E32","v":1955},{"$f":"'Startovní listina'!F32","v":"TEP Trutnov"},"02:59:30"]
[{"$f":"IF('Výsledková listina (2)'!D56<>\"\",A56+1,\"\")","v":{"$error":"#VALUE!"}},null,{"$f":"'Startovní listina'!G58","v":"C"},{"$f":"'Startovní listina'!B58","v":55},{"$f":"'Startovní listina'!C58","v":"Šůstek"},{"$f":"'Startovní listina'!D58","v":"Roman"},{"$f":"'Startovní listina'!E58","v":1968},{"$f":"'Startovní listina'!F58","v":"Brno"},"02:07:54"]
[{"$f":"IF('Výsledková listina (2)'!D57<>\"\",A57+1,\"\")","v":{"$error":"#VALUE!"}},null,{"$f":"'Startovní listina'!G26","v":"E"},{"$f":"'Startovní listina'!B26","v":23},{"$f":"'Startovní listina'!C26","v":"Holý"},{"$f":"'Startovní listina'!D26","v":"Josef"},{"$f":"'Startovní listina'!E26","v":1941},{"$f":"'Startovní listina'!F26","v":"AC Moravská Slavia Brno"},"03:06:38"]
[{"$f":"IF('Výsledková listina (2)'!D58<>\"\",A58+1,\"\")","v":{"$error":"#VALUE!"}},null,{"$f":"'Startovní listina'!G52","v":"B"},{"$f":"'Startovní listina'!B52","v":49},{"$f":"'Startovní listina'!C52","v":"Kovačič"},{"$f":"'Startovní listina'!D52","v":"Sebastian"},{"$f":"'Startovní listina'!E52","v":1978},{"$f":"'Startovní listina'!F52","v":"Bílovice nad Svitavou"},"03:14:48"]
[{"$f":"IF('Výsledková listina (2)'!D59<>\"\",A59+1,\"\")","v":{"$error":"#VALUE!"}},null,{"$f":"'Startovní listina'!G66","v":"D"},{"$f":"'Startovní listina'!B66","v":63},{"$f":"'Startovní listina'!C66","v":"Boháč"},{"$f":"'Startovní listina'!D66","v":"Jiří"},{"$f":"'Startovní listina'!E66","v":1954},{"$f":"'Startovní listina'!F66","v":"behejbrno.com"},"02:46:48"]
[{"$f":"IF('Výsledková listina (2)'!D60<>\"\",A60+1,\"\")","v":{"$error":"#VALUE!"}},null,{"$f":"'Startovní listina'!G31","v":"D"},{"$f":"'Startovní listina'!B31","v":28},{"$f":"'Startovní listina'!C31","v":"Fikejs"},{"$f":"'Startovní listina'!D31","v":"Vladimír"},{"$f":"'Startovní listina'!E31","v":1957},{"$f":"'Startovní listina'!F31","v":"3D Finess Race Team (Žamberk)"},"02:38:44"]
[{"$f":"IF('Výsledková listina (2)'!D61<>\"\",A61+1,\"\")","v":{"$error":"#VALUE!"}},null,{"$f":"'Startovní listina'!G92","v":""},{"$f":"'Startovní listina'!B92","v":""},{"$f":"'Startovní listina'!C92","v":""},{"$f":"'Startovní listina'!D92","v":""},{"$f":"'Startovní listina'!E92","v":""},{"$f":"'Startovní listina'!F92","v":""},"03:04:27"]
[{"$f":"IF('Výsledková listina (2)'!D62<>\"\",A62+1,\"\")","v":""},null,{"$f":"'Startovní listina'!G45","v":"B"},{"$f":"'Startovní listina'!B45","v":42},{"$f":"'Startovní listina'!C45","v":"Šerák"},{"$f":"'Startovní listina'!D45","v":"Martin"},{"$f":"'Startovní listina'!E45","v":1978},{"$f":"'Startovní listina'!F45","v":"Sokol Bílovice nad Svitavou"},"03:21:11"]
[{"$f":"IF('Výsledková listina (2)'!D63<>\"\",A63+1,\"\")","v":{"$error":"#VALUE!"}},null,{"$f":"'Startovní listina'!G34","v":"D"},{"$f":"'Startovní listina'!B34","v":31},{"$f":"'Startovní listina'!C34","v":"Bělehrádek"},{"$f":"'Startovní listina'!D34","v":"Pavel"},{"$f":"'Startovní listina'!E34","v":1958},{"$f":"'Startovní listina'!F34","v":"TJ Čolek (Velké Tresné)"},"03:00:59"]
[{"$f":"IF('Výsledková listina (2)'!D64<>\"\",A64+1,\"\")","v":{"$error":"#VALUE!"}},null,{"$f":"'Startovní listina'!G8","v":"H"},{"$f":"'Startovní listina'!B8","v":4},{"$f":"'Startovní listina'!C8","v":"Komárková"},{"$f":"'Startovní listina'!D8","v":"Zdeňka"},{"$f":"'Startovní listina'!E8","v":1974},{"$f":"'Startovní listina'!F8","v":"SDH Bolešín"},"03:30:08"]
[{"$f":"IF('Výsledková listina (2)'!D65<>\"\",A65+1,\"\")","v":{"$error":"#VALUE!"}},null,{"$f":"'Startovní listina'!G73","v":"B"},{"$f":"'Startovní listina'!B73","v":70},{"$f":"'Startovní listina'!C73","v":"Konečný"},{"$f":"'Startovní listina'!D73","v":"Libor"},{"$f":"'Startovní listina'!E73","v":1971},{"$f":"'Startovní listina'!F73","v":"Kuřim"},"03:01:32"]
[{"$f":"IF('Výsledková listina (2)'!D66<>\"\",A66+1,\"\")","v":{"$error":"#VALUE!"}},null,{"$f":"'Startovní listina'!G27","v":"C"},{"$f":"'Startovní listina'!B27","v":24},{"$f":"'Startovní listina'!C27","v":"Koutník"},{"$f":"'Startovní listina'!D27","v":"Lumír"},{"$f":"'Startovní listina'!E27","v":1967},{"$f":"'Startovní listina'!F27","v":"A.O. Spartak Vrchlabí"},"02:05:07"]
[{"$f":"IF('Výsledková listina (2)'!D67<>\"\",A67+1,\"\")","v":{"$error":"#VALUE!"}},null,{"$f":"'Startovní listina'!G70","v":"B"},{"$f":"'Startovní listina'!B70","v":67},{"$f":"'Startovní listina'!C70","v":"Dušil"},{"$f":"'Startovní listina'!D70","v":"Jarda"},{"$f":"'Startovní listina'!E70","v":1970},{"$f":"'Startovní listina'!F70","v":"Slaměnka (Brno)"},"02:57:35"]
[{"$f":"IF('Výsledková listina (2)'!D68<>\"\",A68+1,\"\")","v":{"$error":"#VALUE!"}},null,{"$f":"'Startovní listina'!G51","v":"B"},{"$f":"'Startovní listina'!B51","v":48},{"$f":"'Startovní listina'!C51","v":"Viščor"},{"$f":"'Startovní listina'!D51","v":"Pavel"},{"$f":"'Startovní listina'!E51","v":1974},{"$f":"'Startovní listina'!F51","v":"Brno"},"02:19:36"]
[{"$f":"IF('Výsledková listina (2)'!D69<>\"\",A69+1,\"\")","v":{"$error":"#VALUE!"}},null,{"$f":"'Startovní listina'!G98","v":""},{"$f":"'Startovní listina'!B98","v":""},{"$f":"'Startovní listina'!C98","v":""},{"$f":"'Startovní listina'!D98","v":""},{"$f":"'Startovní listina'!E98","v":""},{"$f":"'Startovní listina'!F98","v":""},"01:54:34"]
[{"$f":"IF('Výsledková listina (2)'!D70<>\"\",A70+1,\"\")","v":""},null,{"$f":"'Startovní listina'!G50","v":"C"},{"$f":"'Startovní listina'!B50","v":47},{"$f":"'Startovní listina'!C50","v":"Plachý"},{"$f":"'Startovní listina'!D50","v":"Martin"},{"$f":"'Startovní listina'!E50","v":1965},{"$f":"'Startovní listina'!F50","v":"MK Prostějov"},"02:21:57"]
[{"$f":"IF('Výsledková listina (2)'!D71<>\"\",A71+1,\"\")","v":{"$error":"#VALUE!"}},null,{"$f":"'Startovní listina'!G21","v":"C"},{"$f":"'Startovní listina'!B21","v":17},{"$f":"'Startovní listina'!C21","v":"Tůma"},{"$f":"'Startovní listina'!D21","v":"Petr"},{"$f":"'Startovní listina'!E21","v":1968},{"$f":"'Startovní listina'!F21","v":"Slatinští šneci (Slatina)"}]
[{"$f":"IF('Výsledková listina (2)'!D72<>\"\",A72+1,\"\")","v":{"$error":"#VALUE!"}},null,{"$f":"'Startovní listina'!G6","v":"A"},{"$f":"'Startovní listina'!B6","v":2},{"$f":"'Startovní listina'!C6","v":"Psula"},{"$f":"'Startovní listina'!D6","v":"Roman"},{"$f":"'Startovní listina'!E6","v":1984},{"$f":"'Startovní listina'!F6","v":"Ladermon Team (Olomouc)"},"02:40:25"]
[{"$f":"IF('Výsledková listina (2)'!D73<>\"\",A73+1,\"\")","v":{"$error":"#VALUE!"}},null,{"$f":"'Startovní listina'!G48","v":"B"},{"$f":"'Startovní listina'!B48","v":45},{"$f":"'Startovní listina'!C48","v":"Kropáček"},{"$f":"'Startovní listina'!D48","v":"Jaroslav"},{"$f":"'Startovní listina'!E48","v":1970},{"$f":"'Startovní listina'!F48","v":"Triatlon Křepice"},"02:21:35"]
[{"$f":"IF('Výsledková listina (2)'!D74<>\"\",A74+1,\"\")","v":{"$error":"#VALUE!"}},null,{"$f":"'Startovní listina'!G97","v":""},{"$f":"'Startovní listina'!B97","v":""},{"$f":"'Startovní listina'!C97","v":""},{"$f":"'Startovní listina'!D97","v":""},{"$f":"'Startovní listina'!E97","v":""},{"$f":"'Startovní listina'!F97","v":""},"03:14:54"]
[{"$f":"IF('Výsledková listina (2)'!D75<>\"\",A75+1,\"\")","v":""},null,{"$f":"'Startovní listina'!G22","v":"D"},{"$f":"'Startovní listina'!B22","v":18},{"$f":"'Startovní listina'!C22","v":"Bouček"},{"$f":"'Startovní listina'!D22","v":"Zdeněk"},{"$f":"'Startovní listina'!E22","v":1956},{"$f":"'Startovní listina'!F22","v":"Velké Meziříčí"},"02:25:09"]
[{"$f":"IF('Výsledková listina (2)'!D76<>\"\",A76+1,\"\")","v":{"$error":"#VALUE!"}},null,{"$f":"'Startovní listina'!G82","v":""},{"$f":"'Startovní listina'!B82","v":""},{"$f":"'Startovní listina'!C82","v":""},{"$f":"'Startovní listina'!D82","v":""},{"$f":"'Startovní listina'!E82","v":""},{"$f":"'Startovní listina'!F82","v":""},"02:50:59"]
[{"$f":"IF('Výsledková listina (2)'!D77<>\"\",A77+1,\"\")","v":""},null,{"$f":"'Startovní listina'!G96","v":""},{"$f":"'Startovní listina'!B96","v":""},{"$f":"'Startovní listina'!C96","v":""},{"$f":"'Startovní listina'!D96","v":""},{"$f":"'Startovní listina'!E96","v":""},{"$f":"'Startovní listina'!F96","v":""},"03:12:26"]
[{"$f":"IF('Výsledková listina (2)'!D78<>\"\",A78+1,\"\")","v":""},null,{"$f":"'Startovní listina'!G30","v":"D"},{"$f":"'Startovní listina'!B30","v":27},{"$f":"'Startovní listina'!C30","v":"Kubík"},{"$f":"'Startovní listina'!D30","v":"Jaromír"},{"$f":"'Startovní listina'!E30","v":1955},{"$f":"'Startovní listina'!F30","v":"Blansko"},"02:37:53"]
[{"$f":"IF('Výsledková listina (2)'!D79<>\"\",A79+1,\"\")","v":{"$error":"#VALUE!"}},null,{"$f":"'Startovní listina'!G64","v":"G"},{"$f":"'Startovní listina'!B64","v":61},{"$f":"'Startovní listina'!C64","v":"Munzarová"},{"$f":"'Startovní listina'!D64","v":"Věra"},{"$f":"'Startovní listina'!E64","v":1980},{"$f":"'Startovní listina'!F64","v":"Dalečín"},"03:18:47"]
[{"$f":"IF('Výsledková listina (2)'!D80<>\"\",A80+1,\"\")","v":{"$error":"#VALUE!"}},null,{"$f":"'Startovní listina'!G39","v":"C"},{"$f":"'Startovní listina'!B39","v":36},{"$f":"'Startovní listina'!C39","v":"Dvořáček"},{"$f":"'Startovní listina'!D39","v":"Jiří"},{"$f":"'Startovní listina'!E39","v":1968},{"$f":"'Startovní listina'!F39","v":"Petrovice"},"02:07:35"]
[{"$f":"IF('Výsledková listina (2)'!D81<>\"\",A81+1,\"\")","v":{"$error":"#VALUE!"}},null,{"$f":"'Startovní listina'!G56","v":"B"},{"$f":"'Startovní listina'!B56","v":53},{"$f":"'Startovní listina'!C56","v":"Orálek"},{"$f":"'Startovní listina'!D56","v":"Daniel"},{"$f":"'Startovní listina'!E56","v":1970},{"$f":"'Startovní listina'!F56","v":"behejbrno.com"},"02:24:19"]
[{"$f":"IF('Výsledková listina (2)'!D82<>\"\",A82+1,\"\")","v":{"$error":"#VALUE!"}},null,{"$f":"'Startovní listina'!G83","v":""},{"$f":"'Startovní listina'!B83","v":""},{"$f":"'Startovní listina'!C83","v":""},{"$f":"'Startovní listina'!D83","v":""},{"$f":"'Startovní listina'!E83","v":""},{"$f":"'Startovní listina'!F83","v":""},"02:31:15"]
[{"$f":"IF('Výsledková listina (2)'!D83<>\"\",A83+1,\"\")","v":""},null,{"$f":"'Startovní listina'!G61","v":"G"},{"$f":"'Startovní listina'!B61","v":58},{"$f":"'Startovní listina'!C61","v":"Jurgová"},{"$f":"'Startovní listina'!D61","v":"Martina"},{"$f":"'Startovní listina'!E61","v":1979},{"$f":"'Startovní listina'!F61","v":"Brno"},"02:27:55"]
[{"$f":"IF('Výsledková listina (2)'!D84<>\"\",A84+1,\"\")","v":{"$error":"#VALUE!"}},null,{"$f":"'Startovní listina'!G95","v":""},{"$f":"'Startovní listina'!B95","v":""},{"$f":"'Startovní listina'!C95","v":""},{"$f":"'Startovní listina'!D95","v":""},{"$f":"'Startovní listina'!E95","v":""},{"$f":"'Startovní listina'!F95","v":""},"02:34:44"]
[{"$f":"IF('Výsledková listina (2)'!D85<>\"\",A85+1,\"\")","v":""},null,{"$f":"'Startovní listina'!G65","v":"C"},{"$f":"'Startovní listina'!B65","v":62},{"$f":"'Startovní listina'!C65","v":"Jílek"},{"$f":"'Startovní listina'!D65","v":"Jaroslav"},{"$f":"'Startovní listina'!E65","v":1966},{"$f":"'Startovní listina'!F65","v":"Bystřice nad Pernštejnem"},"02:58:55"]
[{"$f":"IF('Výsledková listina (2)'!D86<>\"\",A86+1,\"\")","v":{"$error":"#VALUE!"}},null,{"$f":"'Startovní listina'!G43","v":"B"},{"$f":"'Startovní listina'!B43","v":40},{"$f":"'Startovní listina'!C43","v":"Řezníček"},{"$f":"'Startovní listina'!D43","v":"Petr"},{"$f":"'Startovní listina'!E43","v":1973},{"$f":"'Startovní listina'!F43","v":"Polnička"},"02:32:49"]
[{"$f":"IF('Výsledková listina (2)'!D87<>\"\",A87+1,\"\")","v":{"$error":"#VALUE!"}},null,{"$f":"'Startovní listina'!G33","v":"A"},{"$f":"'Startovní listina'!B33","v":30},{"$f":"'Startovní listina'!C33","v":"Příhoda"},{"$f":"'Startovní listina'!D33","v":"Jan"},{"$f":"'Startovní listina'!E33","v":1983},{"$f":"'Startovní listina'!F33","v":"Brno"}]
[{"$f":"IF('Výsledková listina (2)'!D88<>\"\",A88+1,\"\")","v":{"$error":"#VALUE!"}},null,{"$f":"'Startovní listina'!G76","v":""},{"$f":"'Startovní listina'!B76","v":""},{"$f":"'Startovní listina'!C76","v":""},{"$f":"'Startovní listina'!D76","v":""},{"$f":"'Startovní listina'!E76","v":""},{"$f":"'Startovní listina'!F76","v":""},"03:18:56"]
[{"$f":"IF('Výsledková listina (2)'!D89<>\"\",A89+1,\"\")","v":""},null,{"$f":"'Startovní listina'!G12","v":"G"},{"$f":"'Startovní listina'!B12","v":8},{"$f":"'Startovní listina'!C12","v":"Dostálová"},{"$f":"'Startovní listina'!D12","v":"Vendula"},{"$f":"'Startovní listina'!E12","v":1981},{"$f":"'Startovní listina'!F12","v":"HALL 3000"},"02:05:40"]
[{"$f":"IF('Výsledková listina (2)'!D90<>\"\",A90+1,\"\")","v":{"$error":"#VALUE!"}},null,{"$f":"'Startovní listina'!G24","v":"A"},{"$f":"'Startovní listina'!B24","v":21},{"$f":"'Startovní listina'!C24","v":"Podsedník"},{"$f":"'Startovní listina'!D24","v":"Marek"},{"$f":"'Startovní listina'!E24","v":1985},{"$f":"'Startovní listina'!F24","v":"Brno"},"02:08:44"]
[{"$f":"IF('Výsledková listina (2)'!D91<>\"\",A91+1,\"\")","v":{"$error":"#VALUE!"}},null,{"$f":"'Startovní listina'!G16","v":"E"},{"$f":"'Startovní listina'!B16","v":12},{"$f":"'Startovní listina'!C16","v":"Glier"},{"$f":"'Startovní listina'!D16","v":"Miroslav"},{"$f":"'Startovní listina'!E16","v":1949},{"$f":"'Startovní listina'!F16","v":"Ústí nad Labem"}]
[{"$f":"IF('Výsledková listina (2)'!D92<>\"\",A92+1,\"\")","v":{"$error":"#VALUE!"}},null,{"$f":"'Startovní listina'!G88","v":""},{"$f":"'Startovní listina'!B88","v":""},{"$f":"'Startovní listina'!C88","v":""},{"$f":"'Startovní listina'!D88","v":""},{"$f":"'Startovní listina'!E88","v":""},{"$f":"'Startovní listina'!F88","v":""},"02:53:55"]
[{"$f":"IF('Výsledková listina (2)'!D93<>\"\",A93+1,\"\")","v":""},null,{"$f":"'Startovní listina'!G90","v":""},{"$f":"'Startovní listina'!B90","v":""},{"$f":"'Startovní listina'!C90","v":""},{"$f":"'Startovní listina'!D90","v":""},{"$f":"'Startovní listina'!E90","v":""},{"$f":"'Startovní listina'!F90","v":""},"02:55:52"]
[{"$f":"IF('Výsledková listina (2)'!D94<>\"\",A94+1,\"\")","v":""},null,{"$f":"'Startovní listina'!G25","v":"D"},{"$f":"'Startovní listina'!B25","v":22},{"$f":"'Startovní listina'!C25","v":"Zejda"},{"$f":"'Startovní listina'!D25","v":"Ivo"},{"$f":"'Startovní listina'!E25","v":1956},{"$f":"'Startovní listina'!F25","v":"AC Moravská Slavia Brno"},"03:04:10"]
[{"$f":"IF('Výsledková listina (2)'!D95<>\"\",A95+1,\"\")","v":{"$error":"#VALUE!"}},null,{"$f":"'Startovní listina'!G72","v":"B"},{"$f":"'Startovní listina'!B72","v":69},{"$f":"'Startovní listina'!C72","v":"Crha"},{"$f":"'Startovní listina'!D72","v":"Radek"},{"$f":"'Startovní listina'!E72","v":1979},{"$f":"'Startovní listina'!F72","v":"NON AUTOS Radek CRHA (Vidonín)"}]
[{"$f":"IF('Výsledková listina (2)'!D96<>\"\",A96+1,\"\")","v":{"$error":"#VALUE!"}},null,{"$f":"'Startovní listina'!G13","v":"A"},{"$f":"'Startovní listina'!B13","v":9},{"$f":"'Startovní listina'!C13","v":"Pivec"},{"$f":"'Startovní listina'!D13","v":"Jan"},{"$f":"'Startovní listina'!E13","v":1981},{"$f":"'Startovní listina'!F13","v":"HALL 3000"},"02:40:16"]
[{"$f":"IF('Výsledková listina (2)'!D97<>\"\",A97+1,\"\")","v":{"$error":"#VALUE!"}},null,{"$f":"'Startovní listina'!G10","v":"C"},{"$f":"'Startovní listina'!B10","v":6},{"$f":"'Startovní listina'!C10","v":"Rychecký"},{"$f":"'Startovní listina'!D10","v":"Tomáš"},{"$f":"'Startovní listina'!E10","v":1966},{"$f":"'Startovní listina'!F10","v":"HH Smíchov"},"03:00:21"]
[{"$f":"IF('Výsledková listina (2)'!D98<>\"\",A98+1,\"\")","v":{"$error":"#VALUE!"}},null,{"$f":"'Startovní listina'!G99","v":""},{"$f":"'Startovní listina'!B99","v":""},{"$f":"'Startovní listina'!C99","v":""},{"$f":"'Startovní listina'!D99","v":""},{"$f":"'Startovní listina'!E99","v":""},{"$f":"'Startovní listina'!F99","v":""}]
[{"$f":"IF('Výsledková listina (2)'!D99<>\"\",A99+1,\"\")","v":""},null,{"$f":"'Startovní listina'!G100","v":""},{"$f":"'Startovní listina'!B100","v":""},{"$f":"'Startovní listina'!C100","v":""},{"$f":"'Startovní listina'!D100","v":""},{"$f":"'Startovní listina'!E100","v":""},{"$f":"'Startovní listina'!F100","v":""}]
[{"$f":"IF('Výsledková listina (2)'!D100<>\"\",A100+1,\"\")","v":""},null,{"$f":"'Startovní listina'!G101","v":""},{"$f":"'Startovní listina'!B101","v":""},{"$f":"'Startovní listina'!C101","v":""},{"$f":"'Startovní listina'!D101","v":""},{"$f":"'Startovní listina'!E101","v":""},{"$f":"'Startovní listina'!F101","v":""}]
[{"$f":"IF('Výsledková listina (2)'!D101<>\"\",A101+1,\"\")","v":""},null,{"$f":"'Startovní listina'!G102","v":""},{"$f":"'Startovní listina'!B102","v":""},{"$f":"'Startovní listina'!C102","v":""},{"$f":"'Startovní listina'!D102","v":""},{"$f":"'Startovní listina'!E102","v":""},{"$f":"'Startovní listina'!F102","v":""}]
[{"$f":"IF('Výsledková listina (2)'!D102<>\"\",A102+1,\"\")","v":""},null,{"$f":"'Startovní listina'!G103","v":""},{"$f":"'Startovní listina'!B103","v":""},{"$f":"'Startovní listina'!C103","v":""},{"$f":"'Startovní listina'!D103","v":""},{"$f":"'Startovní listina'!E103","v":""},{"$f":"'Startovní listina'!F103","v":""}]